Body Name,Body,Service Area Catergorisation,Service Division Catergorisation,Responsible Unit,Expenses Type,Detailed Expenses Type,Expenses Code,Date,Transaction Number,Amount,Capital / Revenue,Supplier Name,Supplier ID
North East Lincolnshire Council,http://statistics.data.gov.uk/id/local-authority/00FC),Chief Executive,Director Of Finance,Backlog Maintenance,Cap Land/Build-Prof Fees,Cap Land/Build-Prof Fees,YA103,03/05/2016,407280,1172.21,CAPITAL,COFELY WORKPLACE LIMITED,123983
North East Lincolnshire Council,http://statistics.data.gov.uk/id/local-authority/00FC),Chief Executive,Director Of Finance,Backlog Maintenance,Cap Land/Build-Build Enh Wrk,Cap Land/Build-Build Enh Wrk,YA102,19/05/2016,410449,12566,CAPITAL,KES BUILDING MAINTENANCE LIMITED,100786
North East Lincolnshire Council,http://statistics.data.gov.uk/id/local-authority/00FC),Chief Executive,Director Of Finance,Backlog Maintenance,Cap Land/Build-Build Enh Wrk,Cap Land/Build-Build Enh Wrk,YA102,26/05/2016,412161,3449.12,CAPITAL,SYLVESTER-KEAL LTD,100593
North East Lincolnshire Council,http://statistics.data.gov.uk/id/local-authority/00FC),Chief Executive,Director Of Finance,Backlog Maintenance,Cap Land/Build-Build Enh Wrk,Cap Land/Build-Build Enh Wrk,YA102,05/05/2016,408287,500,CAPITAL,HAITHS HEATING LTD,101342
North East Lincolnshire Council,http://statistics.data.gov.uk/id/local-authority/00FC),Chief Executive,Director Of Finance,Backlog Maintenance,Cap Land/Build-Build Enh Wrk,Cap Land/Build-Build Enh Wrk,YA102,19/05/2016,410277,2565,CAPITAL,ETON-LINCS LIMITED,101510
North East Lincolnshire Council,http://statistics.data.gov.uk/id/local-authority/00FC),Chief Executive,Director Of Finance,Backlog Maintenance,Cap Land/Build-Build Enh Wrk,Cap Land/Build-Build Enh Wrk,YA102,31/05/2016,411769,643,CAPITAL,HAITHS HEATING LTD,101342
North East Lincolnshire Council,http://statistics.data.gov.uk/id/local-authority/00FC),Chief Executive,Director Of Finance,Backlog Maintenance,Cap Land/Build-Build Enh Wrk,Cap Land/Build-Build Enh Wrk,YA102,31/05/2016,411936,1345,CAPITAL,HEMSWELL SURFACING LTD,100615
North East Lincolnshire Council,http://statistics.data.gov.uk/id/local-authority/00FC),Chief Executive,Director Of Finance,Backlog Maintenance,Cap Land/Build-Prof Fees,Cap Land/Build-Prof Fees,YA103,03/05/2016,407280,2160.58,CAPITAL,COFELY WORKPLACE LIMITED,123983
North East Lincolnshire Council,http://statistics.data.gov.uk/id/local-authority/00FC),Chief Executive,Director Of Finance,Backlog Maintenance,Cap Land/Build-Prof Fees,Cap Land/Build-Prof Fees,YA103,03/05/2016,407280,477.1,CAPITAL,COFELY WORKPLACE LIMITED,123983
North East Lincolnshire Council,http://statistics.data.gov.uk/id/local-authority/00FC),Chief Executive,Director Of Finance,Backlog Maintenance,Cap Land/Build-Prof Fees,Cap Land/Build-Prof Fees,YA103,03/05/2016,407280,269.75,CAPITAL,COFELY WORKPLACE LIMITED,123983
North East Lincolnshire Council,http://statistics.data.gov.uk/id/local-authority/00FC),Chief Executive,Director Of Finance,Property Rationalisation Prog,Cap Land/Build-Prof Fees,Cap Land/Build-Prof Fees,YA103,03/05/2016,407280,30509.1,CAPITAL,COFELY WORKPLACE LIMITED,123983
North East Lincolnshire Council,http://statistics.data.gov.uk/id/local-authority/00FC),Chief Executive,Director Of Finance,Property Rationalisation Prog,Cap Land/Build-Build Enh Wrk,Cap Land/Build-Build Enh Wrk,YA102,31/05/2016,412154,877.18,CAPITAL,BELL WASTE CONTROL,101433
North East Lincolnshire Council,http://statistics.data.gov.uk/id/local-authority/00FC),Chief Executive,Director Of Finance,Property Rationalisation Prog,Cap Land/Build-Prof Fees,Cap Land/Build-Prof Fees,YA103,03/05/2016,407280,1829.95,CAPITAL,COFELY WORKPLACE LIMITED,123983
North East Lincolnshire Council,http://statistics.data.gov.uk/id/local-authority/00FC),Chief Executive,Director Of Finance,Property Rationalisation Prog,Cap Land/Build-Build Enh Wrk,Cap Land/Build-Build Enh Wrk,YA102,31/05/2016,412834,8000,CAPITAL,ENGIE SERVICES LTD,133267
North East Lincolnshire Council,http://statistics.data.gov.uk/id/local-authority/00FC),Chief Executive,Director Of Finance,Property Rationalisation Prog,Cap Land/Build-Prof Fees,Cap Land/Build-Prof Fees,YA103,03/05/2016,407280,4903.49,CAPITAL,COFELY WORKPLACE LIMITED,123983
North East Lincolnshire Council,http://statistics.data.gov.uk/id/local-authority/00FC),Chief Executive,Ad Joint Delivery,New Ict Framework,Cap Intangible Assets,Cap Intangible Assets,YH101,19/05/2016,410724,3997.5,CAPITAL,CAPITA BUSINESS SERVICES LTD,102314
North East Lincolnshire Council,http://statistics.data.gov.uk/id/local-authority/00FC),Chief Executive,Ad Joint Delivery,New Ict Framework,Cap Intangible Assets,Cap Intangible Assets,YH101,19/05/2016,410726,4180,CAPITAL,CAPITA BUSINESS SERVICES LTD,102314
North East Lincolnshire Council,http://statistics.data.gov.uk/id/local-authority/00FC),Chief Executive,Ad Joint Delivery,New Ict Framework,Cap Intangible Assets,Cap Intangible Assets,YH101,10/05/2016,408777,1300,CAPITAL,IMPERIAL CIVIL ENFORCEMENT SOLUTIONS LTD,102442
North East Lincolnshire Council,http://statistics.data.gov.uk/id/local-authority/00FC),Chief Executive,Ad Joint Delivery,New Ict Framework,Cap Intangible Assets,Cap Intangible Assets,YH101,03/05/2016,408012,999,CAPITAL,CAPITA BUSINESS SERVICES LTD,102314
North East Lincolnshire Council,http://statistics.data.gov.uk/id/local-authority/00FC),Chief Executive,Ad Joint Delivery,New Leisure Centre At Grimsby,Cap Land/Build-Build Enh Wrk,Cap Land/Build-Build Enh Wrk,YA102,26/05/2016,412003,65050.06,CAPITAL,INTERSERVE CONSTRUCTION,128140
North East Lincolnshire Council,http://statistics.data.gov.uk/id/local-authority/00FC),Chief Executive,Ad Joint Delivery,New Leisure Centre At Grimsby,Cap Land/Build-Build Enh Wrk,Cap Land/Build-Build Enh Wrk,YA102,05/05/2016,396089,8977.09,CAPITAL,JOHNSON HEALTH TECH UK LTD,118830
North East Lincolnshire Council,http://statistics.data.gov.uk/id/local-authority/00FC),Chief Executive,Ad Joint Delivery,New Leisure Centre At Grimsby,Cap Land/Build-Build Enh Wrk,Cap Land/Build-Build Enh Wrk,YA102,26/05/2016,411637,3402.39,CAPITAL,J MCCANN & CO LTD,100841
North East Lincolnshire Council,http://statistics.data.gov.uk/id/local-authority/00FC),Chief Executive,Ad Joint Delivery,New Leisure Centre At Grimsby,Cap Land/Build-Build Enh Wrk,Cap Land/Build-Build Enh Wrk,YA102,26/05/2016,411636,450,CAPITAL,SPECIALIST SURFACING LIMITED,100579
North East Lincolnshire Council,http://statistics.data.gov.uk/id/local-authority/00FC),Chief Executive,Ad Joint Delivery,New Leisure Centre At Grimsby,Cap Land/Build-Prof Fees,Cap Land/Build-Prof Fees,YA103,09/05/2016,408065,7542,CAPITAL,COFELY WORKPLACE LIMITED,123983
North East Lincolnshire Council,http://statistics.data.gov.uk/id/local-authority/00FC),Chief Executive,Ad Joint Delivery,Replacement/Refurbishment  It,Cap Veh Plt Eqp-Purchase,Cap Veh Plt Eqp-Purchase,YB101,19/05/2016,410543,-1740,CAPITAL,INSIGHT DIRECT (UK) LTD,101011
North East Lincolnshire Council,http://statistics.data.gov.uk/id/local-authority/00FC),Chief Executive,Ad Joint Delivery,Replacement/Refurbishment  It,Cap Veh Plt Eqp-Purchase,Cap Veh Plt Eqp-Purchase,YB101,23/05/2016,410549,1740,CAPITAL,INSIGHT DIRECT (UK) LTD,101011
North East Lincolnshire Council,http://statistics.data.gov.uk/id/local-authority/00FC),Chief Executive,Ad Joint Delivery,Replacement/Refurbishment  It,Cap Veh Plt Eqp-Purchase,Cap Veh Plt Eqp-Purchase,YB101,17/05/2016,404131,17500,CAPITAL,DACOLL LTD,133412
North East Lincolnshire Council,http://statistics.data.gov.uk/id/local-authority/00FC),Chief Executive,Ad Joint Delivery,Replacement/Refurbishment  It,Cap Veh Plt Eqp-Purchase,Cap Veh Plt Eqp-Purchase,YB101,17/05/2016,404213,558.6,CAPITAL,THE SAFE SHOP LTD,105622
North East Lincolnshire Council,http://statistics.data.gov.uk/id/local-authority/00FC),Chief Executive,Ad Joint Delivery,Replacement/Refurbishment  It,Cap Veh Plt Eqp-Purchase,Cap Veh Plt Eqp-Purchase,YB101,17/05/2016,404213,7954.2,CAPITAL,THE SAFE SHOP LTD,105622
North East Lincolnshire Council,http://statistics.data.gov.uk/id/local-authority/00FC),Chief Executive,Ad Joint Delivery,Decommission Gy Swimming Pool,Cap Land/Build-Build Enh Wrk,Cap Land/Build-Build Enh Wrk,YA102,26/05/2016,412004,80806.57,CAPITAL,RHODAR LIMITED,107725
North East Lincolnshire Council,http://statistics.data.gov.uk/id/local-authority/00FC),Chief Executive,Ad Joint Delivery,Decommission Gy Swimming Pool,Cap Land/Build-Build Enh Wrk,Cap Land/Build-Build Enh Wrk,YA102,09/05/2016,408634,862,CAPITAL,NORTHERN POWERGRID (YORKSHIRE) PLC,108328
North East Lincolnshire Council,http://statistics.data.gov.uk/id/local-authority/00FC),Chief Executive,Director Of Economy & Growth,Hps-Disabled Fac. Grants,Cap Grants To O/Side Sources,Cap Grants To O/Side Sources,YJ101,09/05/2016,407778,5101.12,CAPITAL,F R TOWNSEND & CO LTD,104217
North East Lincolnshire Council,http://statistics.data.gov.uk/id/local-authority/00FC),Chief Executive,Director Of Economy & Growth,Hps-Disabled Fac. Grants,Cap Grants To O/Side Sources,Cap Grants To O/Side Sources,YJ101,10/05/2016,408236,7203.62,CAPITAL,TOPCON CONSTRUCTION LTD,108462
North East Lincolnshire Council,http://statistics.data.gov.uk/id/local-authority/00FC),Chief Executive,Director Of Economy & Growth,Hps-Disabled Fac. Grants,Cap Grants To O/Side Sources,Cap Grants To O/Side Sources,YJ101,05/05/2016,407822,2979.34,CAPITAL,OBAM LIFT SERVICES LTD,112666
North East Lincolnshire Council,http://statistics.data.gov.uk/id/local-authority/00FC),Chief Executive,Director Of Economy & Growth,Hps-Disabled Fac. Grants,Cap Grants To O/Side Sources,Cap Grants To O/Side Sources,YJ101,23/05/2016,411164,5812,CAPITAL,P G INGOLDBY & SONS LTD,100591
North East Lincolnshire Council,http://statistics.data.gov.uk/id/local-authority/00FC),Chief Executive,Director Of Economy & Growth,Hps-Disabled Fac. Grants,Cap Grants To O/Side Sources,Cap Grants To O/Side Sources,YJ101,05/05/2016,407823,2175,CAPITAL,DOLPHIN MOBILITY EAST MIDLANDS LTD,101317
North East Lincolnshire Council,http://statistics.data.gov.uk/id/local-authority/00FC),Chief Executive,Director Of Economy & Growth,Hps-Disabled Fac. Grants,Cap Grants To O/Side Sources,Cap Grants To O/Side Sources,YJ101,16/05/2016,407235,1020,CAPITAL,STEPHEN HEYWOOD DESIGN LTD,132818
North East Lincolnshire Council,http://statistics.data.gov.uk/id/local-authority/00FC),Chief Executive,Director Of Economy & Growth,Local Transport Plan Schemes,Cap Land/Build-Build Enh Wrk,Cap Land/Build-Build Enh Wrk,YA102,19/05/2016,410577,42114.4,CAPITAL,SPECIALIST SURFACING LIMITED,100579
North East Lincolnshire Council,http://statistics.data.gov.uk/id/local-authority/00FC),Chief Executive,Director Of Economy & Growth,Local Transport Plan Schemes,Cap Infrastr-Build Enh Wrk,Cap Infrastr-Build Enh Wrk,YC102,12/05/2016,409597,28725.43,CAPITAL,C R REYNOLDS (CONSTRUCTION) LTD,103021
North East Lincolnshire Council,http://statistics.data.gov.uk/id/local-authority/00FC),Chief Executive,Director Of Economy & Growth,Local Transport Plan Schemes,Cap Land/Build-Build Enh Wrk,Cap Land/Build-Build Enh Wrk,YA102,05/05/2016,408030,562.64,CAPITAL,NORTHERN POWERGRID (YORKSHIRE) PLC,108328
North East Lincolnshire Council,http://statistics.data.gov.uk/id/local-authority/00FC),Chief Executive,Director Of Economy & Growth,Local Transport Plan Schemes,Cap Land/Build-Build Enh Wrk,Cap Land/Build-Build Enh Wrk,YA102,24/05/2016,411389,389.99,CAPITAL,NORTHERN POWERGRID (YORKSHIRE) PLC,108328
North East Lincolnshire Council,http://statistics.data.gov.uk/id/local-authority/00FC),Chief Executive,Director Of Economy & Growth,Local Transport Plan Schemes,Cap Land/Build-Build Enh Wrk,Cap Land/Build-Build Enh Wrk,YA102,05/05/2016,408027,366.63,CAPITAL,NORTHERN POWERGRID (YORKSHIRE) PLC,108328
North East Lincolnshire Council,http://statistics.data.gov.uk/id/local-authority/00FC),Chief Executive,Director Of Economy & Growth,Local Transport Plan Schemes,Cap Infrastr-Build Enh Wrk,Cap Infrastr-Build Enh Wrk,YC102,31/05/2016,410955,1020,CAPITAL,SYSTEMATIC PRINT MANAGEMENT LTD,101147
North East Lincolnshire Council,http://statistics.data.gov.uk/id/local-authority/00FC),Chief Executive,Director Of Economy & Growth,Local Transport Plan Schemes,Cap Infrastr-Build Enh Wrk,Cap Infrastr-Build Enh Wrk,YC102,05/05/2016,407939,521,CAPITAL,C E SMITH & SONS,104444
North East Lincolnshire Council,http://statistics.data.gov.uk/id/local-authority/00FC),Chief Executive,Director Of Economy & Growth,Local Transport Plan Schemes,Cap Infrastr-Build Enh Wrk,Cap Infrastr-Build Enh Wrk,YC102,24/05/2016,410744,1425,CAPITAL,NATIONWIDE DATA COLLECTION,127290
North East Lincolnshire Council,http://statistics.data.gov.uk/id/local-authority/00FC),Chief Executive,Director Of Economy & Growth,Local Transport Plan Schemes,Cap Infrastr-Purchase,Cap Infrastr-Purchase,YC101,05/05/2016,408033,562.64,CAPITAL,NORTHERN POWERGRID (YORKSHIRE) PLC,108328
North East Lincolnshire Council,http://statistics.data.gov.uk/id/local-authority/00FC),Chief Executive,Director Of Economy & Growth,Local Transport Plan Schemes,Cap Infrastr-Purchase,Cap Infrastr-Purchase,YC101,05/05/2016,408031,779.84,CAPITAL,NORTHERN POWERGRID (YORKSHIRE) PLC,108328
North East Lincolnshire Council,http://statistics.data.gov.uk/id/local-authority/00FC),Chief Executive,Director Of Economy & Growth,Local Transport Plan Schemes,Cap Infrastr-Purchase,Cap Infrastr-Purchase,YC101,05/05/2016,408032,562.64,CAPITAL,NORTHERN POWERGRID (YORKSHIRE) PLC,108328
North East Lincolnshire Council,http://statistics.data.gov.uk/id/local-authority/00FC),Chief Executive,Director Of Economy & Growth,Local Transport Plan Schemes,Cap Infrastr-Purchase,Cap Infrastr-Purchase,YC101,05/05/2016,408029,562.64,CAPITAL,NORTHERN POWERGRID (YORKSHIRE) PLC,108328
North East Lincolnshire Council,http://statistics.data.gov.uk/id/local-authority/00FC),Chief Executive,Director Of Economy & Growth,Local Transport Plan Schemes,Cap Infrastr-Build Enh Wrk,Cap Infrastr-Build Enh Wrk,YC102,24/05/2016,411746,955,CAPITAL,HOUGH'S OF LINCOLNSHIRE,109758
North East Lincolnshire Council,http://statistics.data.gov.uk/id/local-authority/00FC),Chief Executive,Director Of Economy & Growth,Local Transport Plan Schemes,Cap Infrastr-Build Enh Wrk,Cap Infrastr-Build Enh Wrk,YC102,26/05/2016,410645,54582.29,CAPITAL,SPECIALIST SURFACING LIMITED,100579
North East Lincolnshire Council,http://statistics.data.gov.uk/id/local-authority/00FC),Chief Executive,Director Of Economy & Growth,Local Transport Plan Schemes,Cap Infrastr-Build Enh Wrk,Cap Infrastr-Build Enh Wrk,YC102,23/05/2016,410354,2640,CAPITAL,P H CONSTRUCTION SERVICES LTD,102107
North East Lincolnshire Council,http://statistics.data.gov.uk/id/local-authority/00FC),Chief Executive,Director Of Economy & Growth,Local Transport Plan Schemes,Cap Infrastr-Build Enh Wrk,Cap Infrastr-Build Enh Wrk,YC102,26/05/2016,410645,190735.3,CAPITAL,SPECIALIST SURFACING LIMITED,100579
North East Lincolnshire Council,http://statistics.data.gov.uk/id/local-authority/00FC),Chief Executive,Director Of Economy & Growth,Local Transport Plan Schemes,Cap Infrastr-Build Enh Wrk,Cap Infrastr-Build Enh Wrk,YC102,16/05/2016,392182,1500,CAPITAL,J MCCANN & CO LTD,100841
North East Lincolnshire Council,http://statistics.data.gov.uk/id/local-authority/00FC),Chief Executive,Director Of Economy & Growth,Local Transport Plan Schemes,Cap Infrastr-Purchase,Cap Infrastr-Purchase,YC101,26/05/2016,410709,10795,CAPITAL,SPECIALIST SURFACING LIMITED,100579
North East Lincolnshire Council,http://statistics.data.gov.uk/id/local-authority/00FC),Chief Executive,Director Of Economy & Growth,Local Transport Plan Schemes,Cap Land/Build-Build Enh Wrk,Cap Land/Build-Build Enh Wrk,YA102,16/05/2016,408694,850,CAPITAL,J MCCANN & CO LTD,100841
North East Lincolnshire Council,http://statistics.data.gov.uk/id/local-authority/00FC),Chief Executive,Director Of Economy & Growth,Local Transport Plan Schemes,Cap Land/Build-Build Enh Wrk,Cap Land/Build-Build Enh Wrk,YA102,16/05/2016,408694,391.08,CAPITAL,J MCCANN & CO LTD,100841
North East Lincolnshire Council,http://statistics.data.gov.uk/id/local-authority/00FC),Chief Executive,Director Of Economy & Growth,Local Transport Plan Schemes,Cap Land/Build-Build Enh Wrk,Cap Land/Build-Build Enh Wrk,YA102,16/05/2016,408694,479.63,CAPITAL,J MCCANN & CO LTD,100841
North East Lincolnshire Council,http://statistics.data.gov.uk/id/local-authority/00FC),Chief Executive,Director Of Economy & Growth,Local Transport Plan Schemes,Cap Land/Build-Build Enh Wrk,Cap Land/Build-Build Enh Wrk,YA102,16/05/2016,408694,1181.54,CAPITAL,J MCCANN & CO LTD,100841
North East Lincolnshire Council,http://statistics.data.gov.uk/id/local-authority/00FC),Chief Executive,Director Of Economy & Growth,Housing Assist Grants And Loan,Cap Grants To O/Side Sources,Cap Grants To O/Side Sources,YJ101,26/05/2016,411767,1130,CAPITAL,DEAN WILLETT & SONS,101982
North East Lincolnshire Council,http://statistics.data.gov.uk/id/local-authority/00FC),Chief Executive,Director Of Economy & Growth,Housing Assist Grants And Loan,Cap Grants To O/Side Sources,Cap Grants To O/Side Sources,YJ101,05/05/2016,407720,2488.54,CAPITAL,BEESON PLUMBING & HEATING LTD,127313
North East Lincolnshire Council,http://statistics.data.gov.uk/id/local-authority/00FC),Chief Executive,Director Of Economy & Growth,Housing Assist Grants And Loan,Cap Grants To O/Side Sources,Cap Grants To O/Side Sources,YJ101,03/05/2016,407963,37020,CAPITAL,SHEFFIELD CITY COUNCIL,119344
North East Lincolnshire Council,http://statistics.data.gov.uk/id/local-authority/00FC),Chief Executive,Director Of Economy & Growth,Housing Assist Grants And Loan,Cap Grants To O/Side Sources,Cap Grants To O/Side Sources,YJ101,12/05/2016,409052,10780,CAPITAL,SHEFFIELD CITY COUNCIL,119344
North East Lincolnshire Council,http://statistics.data.gov.uk/id/local-authority/00FC),Chief Executive,Director Of Economy & Growth,Housing Assist Grants And Loan,Cap Grants To O/Side Sources,Cap Grants To O/Side Sources,YJ101,12/05/2016,409053,11908,CAPITAL,SHEFFIELD CITY COUNCIL,119344
North East Lincolnshire Council,http://statistics.data.gov.uk/id/local-authority/00FC),Chief Executive,Director Of Economy & Growth,Housing Assist Grants And Loan,Cap Grants To O/Side Sources,Cap Grants To O/Side Sources,YJ101,16/05/2016,408312,394,CAPITAL,LOCAL WORLD LIMITED,118774
North East Lincolnshire Council,http://statistics.data.gov.uk/id/local-authority/00FC),Chief Executive,Director Of Economy & Growth,A18 - A180 Link Road,Cap Infrastr-Build Enh Wrk,Cap Infrastr-Build Enh Wrk,YC102,24/05/2016,411268,44651.88,CAPITAL,I & H BROWN LTD,129380
North East Lincolnshire Council,http://statistics.data.gov.uk/id/local-authority/00FC),Chief Executive,Director Of Economy & Growth,A18 - A180 Link Road,Cap Infrastr-Build Enh Wrk,Cap Infrastr-Build Enh Wrk,YC102,26/05/2016,404691,6346.41,CAPITAL,NETWORK RAIL,103407
North East Lincolnshire Council,http://statistics.data.gov.uk/id/local-authority/00FC),Chief Executive,Director Of Economy & Growth,A18 - A180 Link Road,Cap Infrastr-Build Enh Wrk,Cap Infrastr-Build Enh Wrk,YC102,26/05/2016,403753,87500,CAPITAL,COFELY WORKPLACE LIMITED,123983
North East Lincolnshire Council,http://statistics.data.gov.uk/id/local-authority/00FC),Chief Executive,Director Of Economy & Growth,A18 - A180 Link Road,Cap Infrastr-Build Enh Wrk,Cap Infrastr-Build Enh Wrk,YC102,26/05/2016,410238,2441.8,CAPITAL,J MCCANN & CO LTD,100841
North East Lincolnshire Council,http://statistics.data.gov.uk/id/local-authority/00FC),Chief Executive,Director Of Economy & Growth,A18 - A180 Link Road,Cap Infrastr-Build Enh Wrk,Cap Infrastr-Build Enh Wrk,YC102,12/05/2016,409143,4450.36,CAPITAL,NORTHERN POWERGRID (YORKSHIRE) PLC,108328
North East Lincolnshire Council,http://statistics.data.gov.uk/id/local-authority/00FC),Chief Executive,Director Of Economy & Growth,Victoria Mills,Cap Land/Build-Build Enh Wrk,Cap Land/Build-Build Enh Wrk,YA102,19/05/2016,410450,45303.8,CAPITAL,LINDUM GROUP LIMITED,101185
North East Lincolnshire Council,http://statistics.data.gov.uk/id/local-authority/00FC),Chief Executive,Director Of Economy & Growth,Victoria Mills,Cap Land/Build-Build Enh Wrk,Cap Land/Build-Build Enh Wrk,YA102,03/05/2016,408061,1575,CAPITAL,HOLIDAY INN EXPRESS GRIMSBY,133151
North East Lincolnshire Council,http://statistics.data.gov.uk/id/local-authority/00FC),Chief Executive,Director Of Economy & Growth,Victoria Mills,Cap Land/Build-Build Enh Wrk,Cap Land/Build-Build Enh Wrk,YA102,05/05/2016,408308,1575,CAPITAL,HOLIDAY INN EXPRESS GRIMSBY,133151
North East Lincolnshire Council,http://statistics.data.gov.uk/id/local-authority/00FC),Chief Executive,Director Of Economy & Growth,Victoria Mills,Cap Land/Build-Build Enh Wrk,Cap Land/Build-Build Enh Wrk,YA102,05/05/2016,408309,1687.5,CAPITAL,HOLIDAY INN EXPRESS GRIMSBY,133151
North East Lincolnshire Council,http://statistics.data.gov.uk/id/local-authority/00FC),Chief Executive,Director Of Economy & Growth,Victoria Mills,Cap Land/Build-Build Enh Wrk,Cap Land/Build-Build Enh Wrk,YA102,10/05/2016,408594,1575,CAPITAL,HOLIDAY INN EXPRESS GRIMSBY,133151
North East Lincolnshire Council,http://statistics.data.gov.uk/id/local-authority/00FC),Chief Executive,Director Of Economy & Growth,Victoria Mills,Cap Land/Build-Build Enh Wrk,Cap Land/Build-Build Enh Wrk,YA102,19/05/2016,410651,1350,CAPITAL,HOLIDAY INN EXPRESS GRIMSBY,133151
North East Lincolnshire Council,http://statistics.data.gov.uk/id/local-authority/00FC),Chief Executive,Director Of Economy & Growth,Immingham Hub,Cap Land/Build-Build Enh Wrk,Cap Land/Build-Build Enh Wrk,YA102,23/05/2016,411144,800,CAPITAL,W R CULLUM,100811
North East Lincolnshire Council,http://statistics.data.gov.uk/id/local-authority/00FC),Chief Executive,Director Of Economy & Growth,Victoria St Refresh,Cap Infrastr-Build Enh Wrk,Cap Infrastr-Build Enh Wrk,YC102,23/05/2016,410334,845,CAPITAL,HODSON & KAUSS,100620
North East Lincolnshire Council,http://statistics.data.gov.uk/id/local-authority/00FC),Chief Executive,Director Of Economy & Growth,Cartergate Office Development,Cap Invest Prop-Build Enh Wrk,Cap Invest Prop-Build Enh Wrk,YE102,10/05/2016,409120,485118.75,CAPITAL,THE GELDER GROUP,103601
North East Lincolnshire Council,http://statistics.data.gov.uk/id/local-authority/00FC),Chief Executive,Director Of Economy & Growth,Cartergate Office Development,Cap Invest Prop-Prof Fees,Cap Invest Prop-Prof Fees,YE103,19/05/2016,410320,15000,CAPITAL,COFELY WORKPLACE LIMITED,123983
North East Lincolnshire Council,http://statistics.data.gov.uk/id/local-authority/00FC),Chief Executive,Director Of Economy & Growth,Town Centre Works Lep,Cap Infrastr-Build Enh Wrk,Cap Infrastr-Build Enh Wrk,YC102,05/05/2016,407683,546.44,CAPITAL,NORTHERN POWERGRID (YORKSHIRE) PLC,108328
North East Lincolnshire Council,http://statistics.data.gov.uk/id/local-authority/00FC),Chief Executive,Director Of Economy & Growth,Town Centre Works Lep,Cap Infrastr-Build Enh Wrk,Cap Infrastr-Build Enh Wrk,YC102,05/05/2016,407684,403.52,CAPITAL,NORTHERN POWERGRID (YORKSHIRE) PLC,108328
North East Lincolnshire Council,http://statistics.data.gov.uk/id/local-authority/00FC),Chief Executive,Director Of Economy & Growth,Town Centre Works Lep,Cap Infrastr-Build Enh Wrk,Cap Infrastr-Build Enh Wrk,YC102,05/05/2016,407707,546.44,CAPITAL,NORTHERN POWERGRID (YORKSHIRE) PLC,108328
North East Lincolnshire Council,http://statistics.data.gov.uk/id/local-authority/00FC),Chief Executive,Director Of Economy & Growth,Town Centre Works Lep,Cap Infrastr-Build Enh Wrk,Cap Infrastr-Build Enh Wrk,YC102,05/05/2016,407711,546.44,CAPITAL,NORTHERN POWERGRID (YORKSHIRE) PLC,108328
North East Lincolnshire Council,http://statistics.data.gov.uk/id/local-authority/00FC),Chief Executive,Director Of Economy & Growth,Town Centre Works Lep,Cap Infrastr-Build Enh Wrk,Cap Infrastr-Build Enh Wrk,YC102,05/05/2016,407708,546.44,CAPITAL,NORTHERN POWERGRID (YORKSHIRE) PLC,108328
North East Lincolnshire Council,http://statistics.data.gov.uk/id/local-authority/00FC),Chief Executive,Director Of Economy & Growth,Town Centre Works Lep,Cap Infrastr-Build Enh Wrk,Cap Infrastr-Build Enh Wrk,YC102,05/05/2016,407709,546.44,CAPITAL,NORTHERN POWERGRID (YORKSHIRE) PLC,108328
North East Lincolnshire Council,http://statistics.data.gov.uk/id/local-authority/00FC),Chief Executive,Director Of Economy & Growth,Town Centre Works Lep,Cap Infrastr-Build Enh Wrk,Cap Infrastr-Build Enh Wrk,YC102,05/05/2016,407710,546.44,CAPITAL,NORTHERN POWERGRID (YORKSHIRE) PLC,108328
North East Lincolnshire Council,http://statistics.data.gov.uk/id/local-authority/00FC),Chief Executive,Director Of Economy & Growth,Town Centre Works Lep,Cap Infrastr-Build Enh Wrk,Cap Infrastr-Build Enh Wrk,YC102,05/05/2016,407712,403.52,CAPITAL,NORTHERN POWERGRID (YORKSHIRE) PLC,108328
North East Lincolnshire Council,http://statistics.data.gov.uk/id/local-authority/00FC),Chief Executive,Director Of Economy & Growth,Town Centre Works Lep,Cap Infrastr-Build Enh Wrk,Cap Infrastr-Build Enh Wrk,YC102,05/05/2016,407702,546.44,CAPITAL,NORTHERN POWERGRID (YORKSHIRE) PLC,108328
North East Lincolnshire Council,http://statistics.data.gov.uk/id/local-authority/00FC),Chief Executive,Director Of Economy & Growth,Town Centre Works Lep,Cap Infrastr-Build Enh Wrk,Cap Infrastr-Build Enh Wrk,YC102,05/05/2016,407703,403.52,CAPITAL,NORTHERN POWERGRID (YORKSHIRE) PLC,108328
North East Lincolnshire Council,http://statistics.data.gov.uk/id/local-authority/00FC),Chief Executive,Director Of Economy & Growth,Town Centre Works Lep,Cap Infrastr-Build Enh Wrk,Cap Infrastr-Build Enh Wrk,YC102,05/05/2016,407700,546.44,CAPITAL,NORTHERN POWERGRID (YORKSHIRE) PLC,108328
North East Lincolnshire Council,http://statistics.data.gov.uk/id/local-authority/00FC),Chief Executive,Director Of Economy & Growth,Town Centre Works Lep,Cap Infrastr-Build Enh Wrk,Cap Infrastr-Build Enh Wrk,YC102,05/05/2016,407701,546.44,CAPITAL,NORTHERN POWERGRID (YORKSHIRE) PLC,108328
North East Lincolnshire Council,http://statistics.data.gov.uk/id/local-authority/00FC),Chief Executive,Director Of Economy & Growth,Town Centre Works Lep,Cap Infrastr-Build Enh Wrk,Cap Infrastr-Build Enh Wrk,YC102,05/05/2016,408028,545.99,CAPITAL,NORTHERN POWERGRID (YORKSHIRE) PLC,108328
North East Lincolnshire Council,http://statistics.data.gov.uk/id/local-authority/00FC),Chief Executive,Director Of Economy & Growth,Town Centre Works Lep,Cap Infrastr-Build Enh Wrk,Cap Infrastr-Build Enh Wrk,YC102,05/05/2016,407689,546.44,CAPITAL,NORTHERN POWERGRID (YORKSHIRE) PLC,108328
North East Lincolnshire Council,http://statistics.data.gov.uk/id/local-authority/00FC),Chief Executive,Director Of Economy & Growth,Town Centre Works Lep,Cap Infrastr-Build Enh Wrk,Cap Infrastr-Build Enh Wrk,YC102,05/05/2016,407690,546.44,CAPITAL,NORTHERN POWERGRID (YORKSHIRE) PLC,108328
North East Lincolnshire Council,http://statistics.data.gov.uk/id/local-authority/00FC),Chief Executive,Director Of Economy & Growth,Town Centre Works Lep,Cap Infrastr-Build Enh Wrk,Cap Infrastr-Build Enh Wrk,YC102,05/05/2016,407706,403.52,CAPITAL,NORTHERN POWERGRID (YORKSHIRE) PLC,108328
North East Lincolnshire Council,http://statistics.data.gov.uk/id/local-authority/00FC),Chief Executive,Director Of Economy & Growth,Town Centre Works Lep,Cap Infrastr-Build Enh Wrk,Cap Infrastr-Build Enh Wrk,YC102,05/05/2016,407704,738.22,CAPITAL,NORTHERN POWERGRID (YORKSHIRE) PLC,108328
North East Lincolnshire Council,http://statistics.data.gov.uk/id/local-authority/00FC),Chief Executive,Director Of Economy & Growth,Town Centre Works Lep,Cap Infrastr-Build Enh Wrk,Cap Infrastr-Build Enh Wrk,YC102,05/05/2016,407705,403.52,CAPITAL,NORTHERN POWERGRID (YORKSHIRE) PLC,108328
North East Lincolnshire Council,http://statistics.data.gov.uk/id/local-authority/00FC),Chief Executive,Director Of Economy & Growth,Town Centre Works Lep,Cap Infrastr-Build Enh Wrk,Cap Infrastr-Build Enh Wrk,YC102,05/05/2016,407687,546.44,CAPITAL,NORTHERN POWERGRID (YORKSHIRE) PLC,108328
North East Lincolnshire Council,http://statistics.data.gov.uk/id/local-authority/00FC),Chief Executive,Director Of Economy & Growth,Town Centre Works Lep,Cap Infrastr-Build Enh Wrk,Cap Infrastr-Build Enh Wrk,YC102,05/05/2016,407688,546.44,CAPITAL,NORTHERN POWERGRID (YORKSHIRE) PLC,108328
North East Lincolnshire Council,http://statistics.data.gov.uk/id/local-authority/00FC),Chief Executive,Director Of Economy & Growth,Town Centre Works Lep,Cap Infrastr-Build Enh Wrk,Cap Infrastr-Build Enh Wrk,YC102,05/05/2016,407682,546.44,CAPITAL,NORTHERN POWERGRID (YORKSHIRE) PLC,108328
North East Lincolnshire Council,http://statistics.data.gov.uk/id/local-authority/00FC),Chief Executive,Director Of Economy & Growth,Town Centre Works Lep,Cap Infrastr-Build Enh Wrk,Cap Infrastr-Build Enh Wrk,YC102,05/05/2016,407678,546.44,CAPITAL,NORTHERN POWERGRID (YORKSHIRE) PLC,108328
North East Lincolnshire Council,http://statistics.data.gov.uk/id/local-authority/00FC),Chief Executive,Director Of Economy & Growth,Town Centre Works Lep,Cap Infrastr-Build Enh Wrk,Cap Infrastr-Build Enh Wrk,YC102,05/05/2016,407679,546.44,CAPITAL,NORTHERN POWERGRID (YORKSHIRE) PLC,108328
North East Lincolnshire Council,http://statistics.data.gov.uk/id/local-authority/00FC),Chief Executive,Director Of Economy & Growth,Town Centre Works Lep,Cap Infrastr-Build Enh Wrk,Cap Infrastr-Build Enh Wrk,YC102,05/05/2016,407681,546.44,CAPITAL,NORTHERN POWERGRID (YORKSHIRE) PLC,108328
North East Lincolnshire Council,http://statistics.data.gov.uk/id/local-authority/00FC),Chief Executive,Director Of Economy & Growth,Town Centre Works Lep,Cap Infrastr-Build Enh Wrk,Cap Infrastr-Build Enh Wrk,YC102,05/05/2016,407694,896.99,CAPITAL,NORTHERN POWERGRID (YORKSHIRE) PLC,108328
North East Lincolnshire Council,http://statistics.data.gov.uk/id/local-authority/00FC),Chief Executive,Director Of Economy & Growth,Town Centre Works Lep,Cap Infrastr-Build Enh Wrk,Cap Infrastr-Build Enh Wrk,YC102,05/05/2016,407680,546.44,CAPITAL,NORTHERN POWERGRID (YORKSHIRE) PLC,108328
North East Lincolnshire Council,http://statistics.data.gov.uk/id/local-authority/00FC),Chief Executive,Director Of Economy & Growth,Town Centre Works Lep,Cap Infrastr-Build Enh Wrk,Cap Infrastr-Build Enh Wrk,YC102,05/05/2016,407692,546.44,CAPITAL,NORTHERN POWERGRID (YORKSHIRE) PLC,108328
North East Lincolnshire Council,http://statistics.data.gov.uk/id/local-authority/00FC),Chief Executive,Director Of Economy & Growth,Town Centre Works Lep,Cap Infrastr-Build Enh Wrk,Cap Infrastr-Build Enh Wrk,YC102,05/05/2016,407691,546.44,CAPITAL,NORTHERN POWERGRID (YORKSHIRE) PLC,108328
North East Lincolnshire Council,http://statistics.data.gov.uk/id/local-authority/00FC),Chief Executive,Director Of Economy & Growth,Town Centre Works Lep,Cap Infrastr-Build Enh Wrk,Cap Infrastr-Build Enh Wrk,YC102,05/05/2016,407693,546.44,CAPITAL,NORTHERN POWERGRID (YORKSHIRE) PLC,108328
North East Lincolnshire Council,http://statistics.data.gov.uk/id/local-authority/00FC),Chief Executive,Director Of Economy & Growth,Town Centre Works Lep,Cap Infrastr-Build Enh Wrk,Cap Infrastr-Build Enh Wrk,YC102,05/05/2016,407685,403.52,CAPITAL,NORTHERN POWERGRID (YORKSHIRE) PLC,108328
North East Lincolnshire Council,http://statistics.data.gov.uk/id/local-authority/00FC),Chief Executive,Director Of Economy & Growth,Town Centre Works Lep,Cap Infrastr-Build Enh Wrk,Cap Infrastr-Build Enh Wrk,YC102,05/05/2016,407686,546.44,CAPITAL,NORTHERN POWERGRID (YORKSHIRE) PLC,108328
North East Lincolnshire Council,http://statistics.data.gov.uk/id/local-authority/00FC),Chief Executive,Director Of Economy & Growth,Town Centre Works Lep,Cap Infrastr-Build Enh Wrk,Cap Infrastr-Build Enh Wrk,YC102,05/05/2016,407696,546.44,CAPITAL,NORTHERN POWERGRID (YORKSHIRE) PLC,108328
North East Lincolnshire Council,http://statistics.data.gov.uk/id/local-authority/00FC),Chief Executive,Director Of Economy & Growth,Town Centre Works Lep,Cap Infrastr-Build Enh Wrk,Cap Infrastr-Build Enh Wrk,YC102,05/05/2016,407697,546.44,CAPITAL,NORTHERN POWERGRID (YORKSHIRE) PLC,108328
North East Lincolnshire Council,http://statistics.data.gov.uk/id/local-authority/00FC),Chief Executive,Director Of Economy & Growth,Town Centre Works Lep,Cap Infrastr-Build Enh Wrk,Cap Infrastr-Build Enh Wrk,YC102,05/05/2016,407695,546.44,CAPITAL,NORTHERN POWERGRID (YORKSHIRE) PLC,108328
North East Lincolnshire Council,http://statistics.data.gov.uk/id/local-authority/00FC),Chief Executive,Director Of Economy & Growth,Town Centre Works Lep,Cap Infrastr-Build Enh Wrk,Cap Infrastr-Build Enh Wrk,YC102,05/05/2016,407698,546.44,CAPITAL,NORTHERN POWERGRID (YORKSHIRE) PLC,108328
North East Lincolnshire Council,http://statistics.data.gov.uk/id/local-authority/00FC),Chief Executive,Director Of Economy & Growth,Town Centre Works Lep,Cap Infrastr-Build Enh Wrk,Cap Infrastr-Build Enh Wrk,YC102,05/05/2016,407699,546.44,CAPITAL,NORTHERN POWERGRID (YORKSHIRE) PLC,108328
North East Lincolnshire Council,http://statistics.data.gov.uk/id/local-authority/00FC),Chief Executive,Director Of Economy & Growth,Town Centre Works Lep,Cap Infrastr-Build Enh Wrk,Cap Infrastr-Build Enh Wrk,YC102,19/05/2016,410504,190582.82,CAPITAL,PBS CONSTRUCTION (NORTH EAST) LTD,127459
North East Lincolnshire Council,http://statistics.data.gov.uk/id/local-authority/00FC),Chief Executive,Director Of Economy & Growth,Catch Offshore,Cap Land/Build-Build Enh Wrk,Cap Land/Build-Build Enh Wrk,YA102,17/05/2016,410006,5035,CAPITAL,DELTA-SIMONS ENVIRONMENTAL CONSULTANTS LTD,122455
North East Lincolnshire Council,http://statistics.data.gov.uk/id/local-authority/00FC),Chief Executive,Director Of Economy & Growth,Catch Offshore,Cap Land/Build-Prof Fees,Cap Land/Build-Prof Fees,YA103,12/05/2016,409365,10000,CAPITAL,ENGIE SERVICES LTD,133267
North East Lincolnshire Council,http://statistics.data.gov.uk/id/local-authority/00FC),Chief Executive,Director Of Economy & Growth,Catch Offshore,Cap Land/Build-Purchase,Cap Land/Build-Purchase,YA101,31/05/2016,412661,16644,CAPITAL,HM REVENUE AND CUSTOMS,129635
North East Lincolnshire Council,http://statistics.data.gov.uk/id/local-authority/00FC),Chief Executive,Director Of Economy & Growth,Catch Offshore,Cap Infrastr-Prof Fees,Cap Infrastr-Prof Fees,YC103,12/05/2016,408937,10077,CAPITAL,ENGIE SERVICES LTD,133267
North East Lincolnshire Council,http://statistics.data.gov.uk/id/local-authority/00FC),Chief Executive,Director Of Finance,Accountancy,Grants And Subscriptions,Subscriptions,LJ101,12/05/2016,409380,10000,REVENUE,GRANT THORNTON UK LLP,130563
North East Lincolnshire Council,http://statistics.data.gov.uk/id/local-authority/00FC),Chief Executive,Director Of Finance,Chief Finance Officer,Equip / Furniture / Materials,Promotions,LA124,24/05/2016,411596,6051.5,REVENUE,CPO MEDIA,102186
North East Lincolnshire Council,http://statistics.data.gov.uk/id/local-authority/00FC),Chief Executive,Director Of Finance,Chief Exec & Support,Miscellaneous Expenses,Hospitality,LL112,09/05/2016,407788,278.79,REVENUE,PEROS LTD,119430
North East Lincolnshire Council,http://statistics.data.gov.uk/id/local-authority/00FC),Chief Executive,Director Of Finance,Chief Exec & Support,Expenses,Course/Conf Accom - Employees,LH102,19/05/2016,410673,1575,REVENUE,THE TROUVILLE HOTEL,134044
North East Lincolnshire Council,http://statistics.data.gov.uk/id/local-authority/00FC),Chief Executive,Director Of Finance,Chief Exec & Support,Contributions To Provisions,Contributions - Third Sector,LK102,10/05/2016,408700,2000,REVENUE,LINCOLNSHIRE COUNTY COUNCIL,130779
North East Lincolnshire Council,http://statistics.data.gov.uk/id/local-authority/00FC),Chief Executive,Director Of Finance,Chief Exec & Support,Private Contractors,Third Party Prov - Private,PH101,09/05/2016,407789,2772,REVENUE,TAPE2TAPE,132803
North East Lincolnshire Council,http://statistics.data.gov.uk/id/local-authority/00FC),Chief Executive,Director Of Finance,Cfs Assets & Pc Programme,Water Services,Water,GE101,10/05/2016,408695,2567.94,REVENUE,WALTHAM LEAS PRIMARY ACADEMY,109335
North East Lincolnshire Council,http://statistics.data.gov.uk/id/local-authority/00FC),Chief Executive,Director Of Finance,Cfs Assets & Pc Programme,Cleaning And Domestic Supplies,Refuse Collection,GH104,10/05/2016,408695,1711.39,REVENUE,WALTHAM LEAS PRIMARY ACADEMY,109335
North East Lincolnshire Council,http://statistics.data.gov.uk/id/local-authority/00FC),Chief Executive,Director Of Finance,Cfs Assets & Pc Programme,Rep Alterations Maint Building,Buildings - Repairs And Maint,GA102,03/05/2016,407280,2780.05,REVENUE,COFELY WORKPLACE LIMITED,123983
North East Lincolnshire Council,http://statistics.data.gov.uk/id/local-authority/00FC),Chief Executive,Director Of Finance,Cfs Assets & Pc Programme,Rep Alterations Maint Building,Buildings - Repairs And Maint,GA102,05/05/2016,408292,5935,REVENUE,TOPCON CONSTRUCTION LTD,108462
North East Lincolnshire Council,http://statistics.data.gov.uk/id/local-authority/00FC),Chief Executive,Director Of Finance,Cfs Assets & Pc Programme,Rates,Rates,GD101,05/05/2016,408233,2150.01,REVENUE,NORTH EAST LINCOLNSHIRE COUNCIL,100894
North East Lincolnshire Council,http://statistics.data.gov.uk/id/local-authority/00FC),Chief Executive,Director Of Finance,Cfs Assets & Pc Programme,Government Grants,Grants,VA101,03/05/2016,407715,2372.45,REVENUE,GROUNDWORK UK,133740
North East Lincolnshire Council,http://statistics.data.gov.uk/id/local-authority/00FC),Chief Executive,Director Of Finance,Facilities Management,Cleaning And Domestic Supplies,Cleaning - Services,GH102,31/05/2016,412167,1955.01,REVENUE,OCS LIMITED,101291
North East Lincolnshire Council,http://statistics.data.gov.uk/id/local-authority/00FC),Chief Executive,Director Of Finance,Facilities Management,Cleaning And Domestic Supplies,Cleaning - Services,GH102,31/05/2016,412658,43246.64,REVENUE,SUPERCLEAN SERVICES WOTHORPE LIMITED,133882
North East Lincolnshire Council,http://statistics.data.gov.uk/id/local-authority/00FC),Chief Executive,Director Of Finance,Facilities Management,Energy Costs,Heating Fuel,GB103,12/05/2016,408953,553.54,REVENUE,CERTAS ENERGY,124794
North East Lincolnshire Council,http://statistics.data.gov.uk/id/local-authority/00FC),Chief Executive,Director Of Finance,Facilities Management,Energy Costs,Heating Fuel,GB103,31/05/2016,411161,762.2,REVENUE,CERTAS ENERGY,124794
North East Lincolnshire Council,http://statistics.data.gov.uk/id/local-authority/00FC),Chief Executive,Director Of Finance,Facilities Management,Premises Insurance,Premises Insurance - Premiums,GK101,10/05/2016,408682,2737.74,REVENUE,WYKELAND GROUP LTD,101729
North East Lincolnshire Council,http://statistics.data.gov.uk/id/local-authority/00FC),Chief Executive,Director Of Finance,Facilities Management,Rates,Rates,GD101,05/05/2016,408303,1254.18,REVENUE,NORTH EAST LINCOLNSHIRE COUNCIL,100894
North East Lincolnshire Council,http://statistics.data.gov.uk/id/local-authority/00FC),Chief Executive,Director Of Finance,Facilities Management,Water Services,Water,GE101,19/05/2016,410652,609.32,REVENUE,ANGLIAN WATER,100508
North East Lincolnshire Council,http://statistics.data.gov.uk/id/local-authority/00FC),Chief Executive,Director Of Finance,Facilities Management,Water Services,Water,GE101,19/05/2016,410643,811.93,REVENUE,ANGLIAN WATER,100508
North East Lincolnshire Council,http://statistics.data.gov.uk/id/local-authority/00FC),Chief Executive,Director Of Finance,Facilities Management,Energy Costs,Electricity,GB102,09/05/2016,408650,384.69,REVENUE,OLD CLEE PRIMARY ACADEMY,119822
North East Lincolnshire Council,http://statistics.data.gov.uk/id/local-authority/00FC),Chief Executive,Director Of Finance,Facilities Management,Energy Costs,Gas,GB101,10/05/2016,408681,276.02,REVENUE,OLD CLEE PRIMARY ACADEMY,119822
North East Lincolnshire Council,http://statistics.data.gov.uk/id/local-authority/00FC),Chief Executive,Director Of Finance,Facilities Management,Rents,Rent,GC101,31/05/2016,412169,1250,REVENUE,THE GRIMSBY INSTITUTE OF FURTHER,102742
North East Lincolnshire Council,http://statistics.data.gov.uk/id/local-authority/00FC),Chief Executive,Director Of Finance,Facilities Management,Rents,Rent,GC101,05/05/2016,408257,1250,REVENUE,THE GRIMSBY INSTITUTE OF FURTHER,102742
North East Lincolnshire Council,http://statistics.data.gov.uk/id/local-authority/00FC),Chief Executive,Director Of Finance,Facilities Management,Rents,Service Charge,GC102,05/05/2016,408257,1100,REVENUE,THE GRIMSBY INSTITUTE OF FURTHER,102742
North East Lincolnshire Council,http://statistics.data.gov.uk/id/local-authority/00FC),Chief Executive,Director Of Finance,Facilities Management,Energy Costs,Electricity,GB102,31/05/2016,412706,1011.32,REVENUE,BRITISH GAS TRADING LTD,101507
North East Lincolnshire Council,http://statistics.data.gov.uk/id/local-authority/00FC),Chief Executive,Director Of Finance,Facilities Management,Energy Costs,Electricity,GB102,31/05/2016,412707,584.18,REVENUE,BRITISH GAS TRADING LTD,101507
North East Lincolnshire Council,http://statistics.data.gov.uk/id/local-authority/00FC),Chief Executive,Director Of Finance,Commercial Estate,Cleaning And Domestic Supplies,Refuse Collection,GH104,05/05/2016,408286,300,REVENUE,BRIANPLANT (HUMBERSIDE) LTD,100583
North East Lincolnshire Council,http://statistics.data.gov.uk/id/local-authority/00FC),Chief Executive,Director Of Finance,Commercial Estate,Cleaning And Domestic Supplies,Refuse Collection,GH104,31/05/2016,412156,343.5,REVENUE,BELL WASTE CONTROL,101433
North East Lincolnshire Council,http://statistics.data.gov.uk/id/local-authority/00FC),Chief Executive,Director Of Finance,Commercial Estate,Cleaning And Domestic Supplies,Refuse Collection,GH104,31/05/2016,412154,333.1,REVENUE,BELL WASTE CONTROL,101433
North East Lincolnshire Council,http://statistics.data.gov.uk/id/local-authority/00FC),Chief Executive,Director Of Finance,Commercial Estate,Cleaning And Domestic Supplies,Refuse Collection,GH104,12/05/2016,409427,279.9,REVENUE,BELL WASTE CONTROL,101433
North East Lincolnshire Council,http://statistics.data.gov.uk/id/local-authority/00FC),Chief Executive,Director Of Finance,Commercial Estate,Cleaning And Domestic Supplies,Refuse Collection,GH104,17/05/2016,409426,274.6,REVENUE,BELL WASTE CONTROL,101433
North East Lincolnshire Council,http://statistics.data.gov.uk/id/local-authority/00FC),Chief Executive,Director Of Finance,Commercial Estate,Energy Costs,Electricity,GB102,12/05/2016,409374,330,REVENUE,NPOWER LIMITED,101414
North East Lincolnshire Council,http://statistics.data.gov.uk/id/local-authority/00FC),Chief Executive,Director Of Finance,Commercial Estate,Energy Costs,Electricity,GB102,31/05/2016,412721,8398.96,REVENUE,BOURNE LEISURE LTD,109336
North East Lincolnshire Council,http://statistics.data.gov.uk/id/local-authority/00FC),Chief Executive,Director Of Finance,Commercial Estate,Energy Costs,Electricity,GB102,19/05/2016,410472,8011.3,REVENUE,BOURNE LEISURE LTD,109336
North East Lincolnshire Council,http://statistics.data.gov.uk/id/local-authority/00FC),Chief Executive,Director Of Finance,Commercial Estate,Water Services,Water,GE101,19/05/2016,410530,2070.79,REVENUE,ASSOCIATED BRITISH PORTS,100834
North East Lincolnshire Council,http://statistics.data.gov.uk/id/local-authority/00FC),Chief Executive,Director Of Finance,Comm & Strategic Support Unit,Public Transport,Public Transport - Employees,JD101,19/05/2016,410947,-34.5,REVENUE,CLICK TRAVEL,127476
North East Lincolnshire Council,http://statistics.data.gov.uk/id/local-authority/00FC),Chief Executive,Director Of Finance,Comm & Strategic Support Unit,Public Transport,Public Transport - Employees,JD101,19/05/2016,410946,-7.1,REVENUE,CLICK TRAVEL,127476
North East Lincolnshire Council,http://statistics.data.gov.uk/id/local-authority/00FC),Chief Executive,Director Of Finance,Comm & Strategic Support Unit,Car Allowances,Travel - Employees,JF101,19/05/2016,410949,-94,REVENUE,CLICK TRAVEL,127476
North East Lincolnshire Council,http://statistics.data.gov.uk/id/local-authority/00FC),Chief Executive,Director Of Finance,Comm & Strategic Support Unit,Car Allowances,Travel - Employees,JF101,19/05/2016,410950,-94,REVENUE,CLICK TRAVEL,127476
North East Lincolnshire Council,http://statistics.data.gov.uk/id/local-authority/00FC),Chief Executive,Director Of Finance,Comm & Strategic Support Unit,Equip / Furniture / Materials,Equipment - Hire,LA102,16/05/2016,405811,1857.5,REVENUE,BLOCKFREE SERVICES LTD,111032
North East Lincolnshire Council,http://statistics.data.gov.uk/id/local-authority/00FC),Chief Executive,Director Of Finance,Comm & Strategic Support Unit,Equip / Furniture / Materials,Equipment - Hire,LA102,26/05/2016,411969,520,REVENUE,TOOL & ENGINEERING SERVICES LTD,134050
North East Lincolnshire Council,http://statistics.data.gov.uk/id/local-authority/00FC),Chief Executive,Director Of Economy & Growth,Environment,Consultancy,Consultancy,PL101,10/05/2016,408782,19850,REVENUE,COFELY WORKPLACE LIMITED,123983
North East Lincolnshire Council,http://statistics.data.gov.uk/id/local-authority/00FC),Chief Executive,Director Of Economy & Growth,Discovery Centre,Equip / Furniture / Materials,Goods For Resale,LA123,16/05/2016,409306,-8.51,REVENUE,HEAVEN SENDS LTD,107722
North East Lincolnshire Council,http://statistics.data.gov.uk/id/local-authority/00FC),Chief Executive,Director Of Economy & Growth,Discovery Centre,Equip / Furniture / Materials,Equipment - Purchase,LA101,09/05/2016,408362,-37.6,REVENUE,SYLVESTER-KEAL LTD,100593
North East Lincolnshire Council,http://statistics.data.gov.uk/id/local-authority/00FC),Chief Executive,Director Of Economy & Growth,Discovery Centre,Equip / Furniture / Materials,Equipment - Purchase,LA101,09/05/2016,408320,-25.74,REVENUE,SYLVESTER-KEAL LTD,100593
North East Lincolnshire Council,http://statistics.data.gov.uk/id/local-authority/00FC),Chief Executive,Director Of Economy & Growth,Discovery Centre,Equip / Furniture / Materials,Equipment - Purchase,LA101,09/05/2016,408363,-61.02,REVENUE,SYLVESTER-KEAL LTD,100593
North East Lincolnshire Council,http://statistics.data.gov.uk/id/local-authority/00FC),Chief Executive,Director Of Economy & Growth,Discovery Centre,Equip / Furniture / Materials,Goods For Resale,LA123,13/05/2016,409907,-131.5,REVENUE,THE BAKE HOUSE,131741
North East Lincolnshire Council,http://statistics.data.gov.uk/id/local-authority/00FC),Chief Executive,Director Of Economy & Growth,Discovery Centre,Equip / Furniture / Materials,Goods For Resale,LA123,26/05/2016,410960,-7.6,REVENUE,HOLDSWORTH LTD,121021
North East Lincolnshire Council,http://statistics.data.gov.uk/id/local-authority/00FC),Chief Executive,Director Of Economy & Growth,Discovery Centre,Equip / Furniture / Materials,Goods For Resale,LA123,26/05/2016,410966,-5.4,REVENUE,HOLDSWORTH LTD,121021
North East Lincolnshire Council,http://statistics.data.gov.uk/id/local-authority/00FC),Chief Executive,Director Of Economy & Growth,Discovery Centre,Equip / Furniture / Materials,Goods For Resale,LA123,26/05/2016,410968,-23.12,REVENUE,HOLDSWORTH LTD,121021
North East Lincolnshire Council,http://statistics.data.gov.uk/id/local-authority/00FC),Chief Executive,Director Of Economy & Growth,Discovery Centre,Equip / Furniture / Materials,Goods For Resale,LA123,26/05/2016,410962,-1.31,REVENUE,HOLDSWORTH LTD,121021
North East Lincolnshire Council,http://statistics.data.gov.uk/id/local-authority/00FC),Chief Executive,Director Of Economy & Growth,Discovery Centre,Equip / Furniture / Materials,Goods For Resale,LA123,26/05/2016,410970,-9.44,REVENUE,HOLDSWORTH LTD,121021
North East Lincolnshire Council,http://statistics.data.gov.uk/id/local-authority/00FC),Chief Executive,Director Of Economy & Growth,Discovery Centre,Equip / Furniture / Materials,Goods For Resale,LA123,26/05/2016,410963,-6.95,REVENUE,HOLDSWORTH LTD,121021
North East Lincolnshire Council,http://statistics.data.gov.uk/id/local-authority/00FC),Chief Executive,Director Of Economy & Growth,Discovery Centre,Equip / Furniture / Materials,Goods For Resale,LA123,26/05/2016,410967,-5.1,REVENUE,HOLDSWORTH LTD,121021
North East Lincolnshire Council,http://statistics.data.gov.uk/id/local-authority/00FC),Chief Executive,Director Of Economy & Growth,Discovery Centre,Equip / Furniture / Materials,Goods For Resale,LA123,31/05/2016,410964,-17.3,REVENUE,HOLDSWORTH LTD,121021
North East Lincolnshire Council,http://statistics.data.gov.uk/id/local-authority/00FC),Chief Executive,Director Of Economy & Growth,Discovery Centre,Equip / Furniture / Materials,Goods For Resale,LA123,31/05/2016,410965,-6.35,REVENUE,HOLDSWORTH LTD,121021
North East Lincolnshire Council,http://statistics.data.gov.uk/id/local-authority/00FC),Chief Executive,Director Of Economy & Growth,Discovery Centre,Equip / Furniture / Materials,Goods For Resale,LA123,31/05/2016,410969,-9.95,REVENUE,HOLDSWORTH LTD,121021
North East Lincolnshire Council,http://statistics.data.gov.uk/id/local-authority/00FC),Chief Executive,Director Of Economy & Growth,Discovery Centre,Equip / Furniture / Materials,Goods For Resale,LA123,31/05/2016,411126,-2.62,REVENUE,HOLDSWORTH LTD,121021
North East Lincolnshire Council,http://statistics.data.gov.uk/id/local-authority/00FC),Chief Executive,Director Of Economy & Growth,Discovery Centre,Equip / Furniture / Materials,Goods For Resale,LA123,31/05/2016,411127,-19.44,REVENUE,HOLDSWORTH LTD,121021
North East Lincolnshire Council,http://statistics.data.gov.uk/id/local-authority/00FC),Chief Executive,Director Of Economy & Growth,Discovery Centre,Equip / Furniture / Materials,Goods For Resale,LA123,26/05/2016,410961,-5.75,REVENUE,HOLDSWORTH LTD,121021
North East Lincolnshire Council,http://statistics.data.gov.uk/id/local-authority/00FC),Chief Executive,Director Of Economy & Growth,Discovery Centre,Equip / Furniture / Materials,Goods For Resale,LA123,16/05/2016,408613,543.57,REVENUE,ROBINSON FARM SHOP (WALTHAM) LTD,119467
North East Lincolnshire Council,http://statistics.data.gov.uk/id/local-authority/00FC),Chief Executive,Director Of Economy & Growth,Discovery Centre,Equip / Furniture / Materials,Goods For Resale,LA123,09/05/2016,408338,868.9,REVENUE,JOHN TURNER,100921
North East Lincolnshire Council,http://statistics.data.gov.uk/id/local-authority/00FC),Chief Executive,Director Of Economy & Growth,Discovery Centre,Equip / Furniture / Materials,Goods For Resale,LA123,26/05/2016,410959,-5.4,REVENUE,JOHN TURNER,100921
North East Lincolnshire Council,http://statistics.data.gov.uk/id/local-authority/00FC),Chief Executive,Director Of Economy & Growth,Discovery Centre,Equip / Furniture / Materials,Goods For Resale,LA123,12/05/2016,409153,500.24,REVENUE,EDEN FARM HULLEYS,133466
North East Lincolnshire Council,http://statistics.data.gov.uk/id/local-authority/00FC),Chief Executive,Director Of Economy & Growth,Discovery Centre,Equip / Furniture / Materials,Goods For Resale,LA123,26/05/2016,412120,283.1,REVENUE,EDEN FARM HULLEYS,133466
North East Lincolnshire Council,http://statistics.data.gov.uk/id/local-authority/00FC),Chief Executive,Director Of Economy & Growth,Discovery Centre,Equip / Furniture / Materials,Goods For Resale,LA123,26/05/2016,411726,401.94,REVENUE,HOLDSWORTH LTD,121021
North East Lincolnshire Council,http://statistics.data.gov.uk/id/local-authority/00FC),Chief Executive,Director Of Economy & Growth,Discovery Centre,Equip / Furniture / Materials,Goods For Resale,LA123,26/05/2016,411726,289.38,REVENUE,HOLDSWORTH LTD,121021
North East Lincolnshire Council,http://statistics.data.gov.uk/id/local-authority/00FC),Chief Executive,Director Of Economy & Growth,Discovery Centre,Equip / Furniture / Materials,Goods For Resale,LA123,26/05/2016,411704,279.3,REVENUE,R W STOKES & SONS LTD,123706
North East Lincolnshire Council,http://statistics.data.gov.uk/id/local-authority/00FC),Chief Executive,Director Of Economy & Growth,Events,Rep Alterations Maint Building,Buildings - Repairs And Maint,GA102,31/05/2016,412240,1806.1,REVENUE,PHS GROUP LTD,100554
North East Lincolnshire Council,http://statistics.data.gov.uk/id/local-authority/00FC),Chief Executive,Director Of Economy & Growth,Events,Grounds Maintenance Costs,Grounds Maintenance,GJ101,19/05/2016,409923,3805.86,REVENUE,ENGIE SERVICES LTD,133267
North East Lincolnshire Council,http://statistics.data.gov.uk/id/local-authority/00FC),Chief Executive,Director Of Economy & Growth,Events,Equip / Furniture / Materials,Equipment - Purchase,LA101,10/05/2016,408814,1629.36,REVENUE,PRS FOR MUSIC,100946
North East Lincolnshire Council,http://statistics.data.gov.uk/id/local-authority/00FC),Chief Executive,Director Of Economy & Growth,Events,Equip / Furniture / Materials,Equipment - Purchase,LA101,10/05/2016,408815,1629.36,REVENUE,PRS FOR MUSIC,100946
North East Lincolnshire Council,http://statistics.data.gov.uk/id/local-authority/00FC),Chief Executive,Director Of Economy & Growth,Events,Equip / Furniture / Materials,Equipment - Purchase,LA101,10/05/2016,408593,1629.36,REVENUE,PRS FOR MUSIC,100946
North East Lincolnshire Council,http://statistics.data.gov.uk/id/local-authority/00FC),Chief Executive,Director Of Economy & Growth,Marketing And Promotion,Equip / Furniture / Materials,Promotions,LA124,09/05/2016,408204,5182,REVENUE,PRODUCTION 78 LTD,126975
North East Lincolnshire Council,http://statistics.data.gov.uk/id/local-authority/00FC),Chief Executive,Director Of Economy & Growth,Marketing And Promotion,Equip / Furniture / Materials,Promotions,LA124,31/05/2016,412237,350,REVENUE,RIVERSIDE PRINT AND DISPLAY LIMITED,128206
North East Lincolnshire Council,http://statistics.data.gov.uk/id/local-authority/00FC),Chief Executive,Director Of Economy & Growth,Marketing And Promotion,Equip / Furniture / Materials,Promotions,LA124,26/05/2016,411887,5000,REVENUE,OUR BIG PICTURE LTD,134087
North East Lincolnshire Council,http://statistics.data.gov.uk/id/local-authority/00FC),Chief Executive,Director Of Economy & Growth,Museums & N F Heritage Centre,Print Stationery / Gen Off Exp,Advertising,LD104,26/05/2016,410029,600,REVENUE,HERITAGE TRUST OF LINCOLNSHIRE,110652
North East Lincolnshire Council,http://statistics.data.gov.uk/id/local-authority/00FC),Chief Executive,Director Of Economy & Growth,Museums & N F Heritage Centre,Equip / Furniture / Materials,Goods For Resale,LA123,26/05/2016,411129,-15.15,REVENUE,HOLDSWORTH LTD,121021
North East Lincolnshire Council,http://statistics.data.gov.uk/id/local-authority/00FC),Chief Executive,Director Of Economy & Growth,Museums & N F Heritage Centre,Equip / Furniture / Materials,Goods For Resale,LA123,26/05/2016,411130,-10.55,REVENUE,HOLDSWORTH LTD,121021
North East Lincolnshire Council,http://statistics.data.gov.uk/id/local-authority/00FC),Chief Executive,Director Of Economy & Growth,Museums & N F Heritage Centre,Equip / Furniture / Materials,Goods For Resale,LA123,26/05/2016,411131,-2.4,REVENUE,HOLDSWORTH LTD,121021
North East Lincolnshire Council,http://statistics.data.gov.uk/id/local-authority/00FC),Chief Executive,Director Of Economy & Growth,Museums & N F Heritage Centre,Equip / Furniture / Materials,Goods For Resale,LA123,31/05/2016,411128,-1.95,REVENUE,HOLDSWORTH LTD,121021
North East Lincolnshire Council,http://statistics.data.gov.uk/id/local-authority/00FC),Chief Executive,Director Of Economy & Growth,Museums & N F Heritage Centre,Equip / Furniture / Materials,Goods For Resale,LA123,26/05/2016,412112,280,REVENUE,DELI-LICIOUS,101903
North East Lincolnshire Council,http://statistics.data.gov.uk/id/local-authority/00FC),Chief Executive,Director Of Economy & Growth,Museums & N F Heritage Centre,Equip / Furniture / Materials,Goods For Resale,LA123,26/05/2016,412125,273.72,REVENUE,KEYCRAFT,106556
North East Lincolnshire Council,http://statistics.data.gov.uk/id/local-authority/00FC),Chief Executive,Director Of Economy & Growth,Tourist Information Centre,Equip / Furniture / Materials,Goods For Resale,LA123,31/05/2016,412238,360,REVENUE,RADAR KEY COMPANY,130068
North East Lincolnshire Council,http://statistics.data.gov.uk/id/local-authority/00FC),Chief Executive,Director Of Economy & Growth,Tourist Information Centre,Print Stationery / Gen Off Exp,Publicity,LD105,19/05/2016,410068,660,REVENUE,TAKE ONE MEDIA LTD,101362
North East Lincolnshire Council,http://statistics.data.gov.uk/id/local-authority/00FC),Chief Executive,Director Of Economy & Growth,Tourist Information Centre,Private Contractors,Third Party Prov - Private,PH101,09/05/2016,408810,1148.5,REVENUE,THE CAXTON PLAYERS,129590
North East Lincolnshire Council,http://statistics.data.gov.uk/id/local-authority/00FC),Chief Executive,Director Of Economy & Growth,Tourist Information Centre,Private Contractors,Third Party Prov - Private,PH101,10/05/2016,408805,374,REVENUE,FUSION YOUTH THEATRE & COMMUNITY ARTS,132337
North East Lincolnshire Council,http://statistics.data.gov.uk/id/local-authority/00FC),Chief Executive,Director Of Economy & Growth,Tourist Information Centre,Private Contractors,Third Party Prov - Private,PH101,23/05/2016,411463,1363.55,REVENUE,NATIONAL EXPRESS LTD,100835
North East Lincolnshire Council,http://statistics.data.gov.uk/id/local-authority/00FC),Chief Executive,Director Of Economy & Growth,Tourist Information Centre,Private Contractors,Third Party Prov - Private,PH101,23/05/2016,411462,1014.6,REVENUE,NATIONAL EXPRESS LTD,100835
North East Lincolnshire Council,http://statistics.data.gov.uk/id/local-authority/00FC),Chief Executive,Director Of Economy & Growth,Tourist Information Centre,Private Contractors,Third Party Prov - Private,PH101,09/05/2016,408800,494,REVENUE,GRIMSBY AUDITORIUM,128160
North East Lincolnshire Council,http://statistics.data.gov.uk/id/local-authority/00FC),Chief Executive,Director Of Economy & Growth,Tourist Information Centre,Private Contractors,Third Party Prov - Private,PH101,10/05/2016,408799,913.5,REVENUE,GRIMSBY AUDITORIUM,128160
North East Lincolnshire Council,http://statistics.data.gov.uk/id/local-authority/00FC),Chief Executive,Director Of Economy & Growth,Tourist Information Centre,Private Contractors,Third Party Prov - Private,PH101,09/05/2016,408798,445,REVENUE,COMMUNITIES TOGETHER,131130
North East Lincolnshire Council,http://statistics.data.gov.uk/id/local-authority/00FC),Chief Executive,Director Of Economy & Growth,Tourist Information Centre,Other Agencies,Performers,PJ101,10/05/2016,408811,305,REVENUE,THE CAXTON PLAYERS,129590
North East Lincolnshire Council,http://statistics.data.gov.uk/id/local-authority/00FC),Chief Executive,Director Of Economy & Growth,Community Investment Team,Private Contractors,Third Party Prov - Private,PH101,16/05/2016,409823,2000,REVENUE,LCS GROUP,128526
North East Lincolnshire Council,http://statistics.data.gov.uk/id/local-authority/00FC),Chief Executive,Director Of Economy & Growth,Community Investment Team,Private Contractors,Third Party Prov - Private,PH101,09/05/2016,407988,4771.33,REVENUE,SCANIA (GREAT BRITAIN) LTD,101361
North East Lincolnshire Council,http://statistics.data.gov.uk/id/local-authority/00FC),Chief Executive,Director Of Economy & Growth,Community Investment Team,Private Contractors,Third Party Prov - Private,PH101,16/05/2016,408631,2343.22,REVENUE,SCANIA (GREAT BRITAIN) LTD,101361
North East Lincolnshire Council,http://statistics.data.gov.uk/id/local-authority/00FC),Chief Executive,Director Of Economy & Growth,Community Investment Team,Private Contractors,Third Party Prov - Private,PH101,16/05/2016,408623,2604.22,REVENUE,SCANIA (GREAT BRITAIN) LTD,101361
North East Lincolnshire Council,http://statistics.data.gov.uk/id/local-authority/00FC),Chief Executive,Director Of Economy & Growth,Community Investment Team,Private Contractors,Third Party Prov - Private,PH101,19/05/2016,408632,3408.33,REVENUE,SCANIA (GREAT BRITAIN) LTD,101361
North East Lincolnshire Council,http://statistics.data.gov.uk/id/local-authority/00FC),Chief Executive,Director Of Economy & Growth,Community Investment Team,Private Contractors,Third Party Prov - Private,PH101,19/05/2016,410635,-580,REVENUE,SCANIA (GREAT BRITAIN) LTD,101361
North East Lincolnshire Council,http://statistics.data.gov.uk/id/local-authority/00FC),Chief Executive,Director Of Economy & Growth,Community Investment Team,Private Contractors,Third Party Prov - Private,PH101,23/05/2016,408633,1921,REVENUE,SCANIA (GREAT BRITAIN) LTD,101361
North East Lincolnshire Council,http://statistics.data.gov.uk/id/local-authority/00FC),Chief Executive,Director Of Economy & Growth,Community Investment Team,Private Contractors,Third Party Prov - Private,PH101,31/05/2016,412572,851.25,REVENUE,SCANIA (GREAT BRITAIN) LTD,101361
North East Lincolnshire Council,http://statistics.data.gov.uk/id/local-authority/00FC),Chief Executive,Director Of Economy & Growth,Community Investment Team,Private Contractors,Third Party Prov - Private,PH101,12/05/2016,409312,1443,REVENUE,NORTH SEA SERVICES LTD,132176
North East Lincolnshire Council,http://statistics.data.gov.uk/id/local-authority/00FC),Chief Executive,Director Of Economy & Growth,Community Investment Team,Private Contractors,Third Party Prov - Private,PH101,10/05/2016,409040,1500,REVENUE,INVENTO SOFTWARE LTD,124554
North East Lincolnshire Council,http://statistics.data.gov.uk/id/local-authority/00FC),Chief Executive,Director Of Economy & Growth,Community Investment Team,Private Contractors,Third Party Prov - Private,PH101,03/05/2016,407996,1500,REVENUE,CAPACITY BUILDINGS LTD,109881
North East Lincolnshire Council,http://statistics.data.gov.uk/id/local-authority/00FC),Chief Executive,Director Of Economy & Growth,Community Investment Team,Private Contractors,Third Party Prov - Private,PH101,31/05/2016,412101,8050,REVENUE,HUMBER AND WOLDS RURAL COMMUNITY COUNCIL,134026
North East Lincolnshire Council,http://statistics.data.gov.uk/id/local-authority/00FC),Chief Executive,Director Of Economy & Growth,Community Investment Team,Other Agencies,Grants Pd Over To Third Party,PJ138,31/05/2016,412250,277371.65,REVENUE,GRIMSBY FISH DOCK ENTERPRISES LTD,110874
North East Lincolnshire Council,http://statistics.data.gov.uk/id/local-authority/00FC),Chief Executive,Director Of Economy & Growth,Community Investment Team,Other Agencies,Grants Pd Over To Third Party,PJ138,26/05/2016,412244,18890.26,REVENUE,GRAPHITENE LTD,131344
North East Lincolnshire Council,http://statistics.data.gov.uk/id/local-authority/00FC),Chief Executive,Director Of Economy & Growth,Community Investment Team,Other Agencies,Grants Pd Over To Third Party,PJ138,12/05/2016,408592,1490.43,REVENUE,ARNOTT PLANT HIRE LTD T/A GOHIRE,133811
North East Lincolnshire Council,http://statistics.data.gov.uk/id/local-authority/00FC),Chief Executive,Director Of Economy & Growth,Community Investment Team,Other Agencies,Grants Pd Over To Third Party,PJ138,23/05/2016,410626,5966.09,REVENUE,ARNOTT PLANT HIRE LTD T/A GOHIRE,133811
North East Lincolnshire Council,http://statistics.data.gov.uk/id/local-authority/00FC),Chief Executive,Director Of Economy & Growth,Community Investment Team,Other Agencies,Grants Pd Over To Third Party,PJ138,26/05/2016,412248,12543.49,REVENUE,ARNOTT PLANT HIRE LTD T/A GOHIRE,133811
North East Lincolnshire Council,http://statistics.data.gov.uk/id/local-authority/00FC),Chief Executive,Director Of Economy & Growth,Community Investment Team,Other Agencies,Grants Pd Over To Third Party,PJ138,31/05/2016,412651,8843.35,REVENUE,WILKIN & CHAPMAN LLP CLIENT ACCOUNT,130718
North East Lincolnshire Council,http://statistics.data.gov.uk/id/local-authority/00FC),Chief Executive,Director Of Economy & Growth,Community Investment Team,Grants And Subscriptions,Subscriptions,LJ101,12/05/2016,409340,1812,REVENUE,RENEWABLEUK,105536
North East Lincolnshire Council,http://statistics.data.gov.uk/id/local-authority/00FC),Chief Executive,Director Of Economy & Growth,Community Investment Team,Grants And Subscriptions,Subscriptions,LJ101,12/05/2016,409342,1812,REVENUE,RENEWABLEUK,105536
North East Lincolnshire Council,http://statistics.data.gov.uk/id/local-authority/00FC),Chief Executive,Director Of Economy & Growth,Community Investment Team,Private Contractors,Third Party Prov - Private,PH101,12/05/2016,409498,802.5,REVENUE,NOMADIC STRUCTURES (UK) LTD,101432
North East Lincolnshire Council,http://statistics.data.gov.uk/id/local-authority/00FC),Chief Executive,Director Of Economy & Growth,Community Investment Team,Private Contractors,Third Party Prov - Private,PH101,23/05/2016,411294,4500,REVENUE,BONDHOLDER SCHEME LTD,122925
North East Lincolnshire Council,http://statistics.data.gov.uk/id/local-authority/00FC),Chief Executive,Director Of Economy & Growth,Community Investment Team,Private Contractors,Third Party Prov - Private,PH101,26/05/2016,412232,398,REVENUE,NOMADIC STRUCTURES (UK) LTD,101432
North East Lincolnshire Council,http://statistics.data.gov.uk/id/local-authority/00FC),Chief Executive,Director Of Economy & Growth,Community Investment Team,Private Contractors,Third Party Prov - Private,PH101,19/05/2016,410227,2300,REVENUE,EAST COAST PICTURES LTD,102719
North East Lincolnshire Council,http://statistics.data.gov.uk/id/local-authority/00FC),Chief Executive,Director Of Economy & Growth,Community Investment Team,Private Contractors,Third Party Prov - Private,PH101,19/05/2016,410471,10000,REVENUE,BLUESTORM DESIGN & MARKETING LTD,125864
North East Lincolnshire Council,http://statistics.data.gov.uk/id/local-authority/00FC),Chief Executive,Director Of Economy & Growth,Community Investment Team,Private Contractors,Third Party Prov - Private,PH101,19/05/2016,410467,9540,REVENUE,RENEWABLEUK,105536
North East Lincolnshire Council,http://statistics.data.gov.uk/id/local-authority/00FC),Chief Executive,Director Of Economy & Growth,Community Investment Team,Private Contractors,Third Party Prov - Private,PH101,23/05/2016,410627,4932,REVENUE,TEAM HUMBER MARINE ALLIANCE,119558
North East Lincolnshire Council,http://statistics.data.gov.uk/id/local-authority/00FC),Chief Executive,Director Of Economy & Growth,Community Investment Team,Private Contractors,Third Party Prov - Private,PH101,23/05/2016,410629,1350,REVENUE,COMPASS FM,104416
North East Lincolnshire Council,http://statistics.data.gov.uk/id/local-authority/00FC),Chief Executive,Director Of Economy & Growth,Community Investment Team,Private Contractors,Third Party Prov - Private,PH101,23/05/2016,411194,1850,REVENUE,CHRISTOPHER WAUD,129079
North East Lincolnshire Council,http://statistics.data.gov.uk/id/local-authority/00FC),Chief Executive,Director Of Economy & Growth,Community Investment Team,Private Contractors,Third Party Prov - Private,PH101,26/05/2016,411686,14727.89,REVENUE,KINGSTON UPON HULL CITY COUNCIL,100541
North East Lincolnshire Council,http://statistics.data.gov.uk/id/local-authority/00FC),Chief Executive,Director Of Economy & Growth,Community Investment Team,Private Contractors,Third Party Prov - Private,PH101,26/05/2016,412138,285,REVENUE,ABBYS WINE BAR & BISTRO LTD,108412
North East Lincolnshire Council,http://statistics.data.gov.uk/id/local-authority/00FC),Chief Executive,Director Of Economy & Growth,Community Investment Team,Private Contractors,Third Party Prov - Private,PH101,26/05/2016,411679,2600,REVENUE,GRIMSBY RENEWABLES PARTNERSHIP LTD,130733
North East Lincolnshire Council,http://statistics.data.gov.uk/id/local-authority/00FC),Chief Executive,Director Of Economy & Growth,Community Investment Team,Private Contractors,Third Party Prov - Private,PH101,26/05/2016,411678,1430,REVENUE,BLUESTORM DESIGN & MARKETING LTD,125864
North East Lincolnshire Council,http://statistics.data.gov.uk/id/local-authority/00FC),Chief Executive,Director Of Economy & Growth,Community Investment Team,Private Contractors,Third Party Prov - Private,PH101,26/05/2016,411680,780,REVENUE,BLUESTORM DESIGN & MARKETING LTD,125864
North East Lincolnshire Council,http://statistics.data.gov.uk/id/local-authority/00FC),Chief Executive,Director Of Economy & Growth,Community Investment Team,Private Contractors,Third Party Prov - Private,PH101,26/05/2016,412230,6745,REVENUE,CLARITY BUSINESS STRATEGIES LTD,134102
North East Lincolnshire Council,http://statistics.data.gov.uk/id/local-authority/00FC),Chief Executive,Director Of Economy & Growth,Community Investment Team,Private Contractors,Third Party Prov - Private,PH101,26/05/2016,412231,2600,REVENUE,EAST COAST PICTURES LTD,102719
North East Lincolnshire Council,http://statistics.data.gov.uk/id/local-authority/00FC),Chief Executive,Director Of Economy & Growth,Community Investment Team,Private Contractors,Third Party Prov - Private,PH101,31/05/2016,412223,3000,REVENUE,LINCOLNSHIRE COUNTY COUNCIL,130779
North East Lincolnshire Council,http://statistics.data.gov.uk/id/local-authority/00FC),Chief Executive,Director Of Economy & Growth,Community Investment Team,Private Contractors,Third Party Prov - Private,PH101,26/05/2016,412229,968.2,REVENUE,VEVI INTEGRATE T/A GIANT DECKCHAIRS,134114
North East Lincolnshire Council,http://statistics.data.gov.uk/id/local-authority/00FC),Chief Executive,Director Of Economy & Growth,Community Investment Team,Private Contractors,Third Party Prov - Private,PH101,26/05/2016,412247,1000,REVENUE,SIGNS EXPRESS (N & NE LINCS),100983
North East Lincolnshire Council,http://statistics.data.gov.uk/id/local-authority/00FC),Chief Executive,Director Of Economy & Growth,Community Investment Team,Private Contractors,Third Party Prov - Private,PH101,26/05/2016,412246,4680,REVENUE,FABRIFORM ENGINEERING LTD,134106
North East Lincolnshire Council,http://statistics.data.gov.uk/id/local-authority/00FC),Chief Executive,Director Of Economy & Growth,Community Investment Team,Private Contractors,Third Party Prov - Private,PH101,31/05/2016,412856,344.5,REVENUE,THE CLEETHORPES MEMORIAL HALL TRUST,108500
North East Lincolnshire Council,http://statistics.data.gov.uk/id/local-authority/00FC),Chief Executive,Director Of Economy & Growth,Community Investment Team,Other Agencies,Grants Pd Over To Third Party,PJ138,12/05/2016,409316,690650.16,REVENUE,YOUNGS SEAFOOD LTD,111391
North East Lincolnshire Council,http://statistics.data.gov.uk/id/local-authority/00FC),Chief Executive,Director Of Economy & Growth,Community Investment Team,Other Agencies,Grants Pd Over To Third Party,PJ138,26/05/2016,411684,21557.76,REVENUE,YOUNGS SEAFOOD LTD,111391
North East Lincolnshire Council,http://statistics.data.gov.uk/id/local-authority/00FC),Chief Executive,Director Of Economy & Growth,Community Investment Team,Contributions To Provisions,Contributions - Other,LK103,10/05/2016,408550,40138,REVENUE,KINGSTON UPON HULL CITY COUNCIL,100541
North East Lincolnshire Council,http://statistics.data.gov.uk/id/local-authority/00FC),Chief Executive,Director Of Economy & Growth,Community Investment Team,Contributions To Provisions,Contributions - Other,LK103,10/05/2016,408550,4219,REVENUE,KINGSTON UPON HULL CITY COUNCIL,100541
North East Lincolnshire Council,http://statistics.data.gov.uk/id/local-authority/00FC),Chief Executive,Director Of Economy & Growth,Community Investment Team,Other Agencies,Grants Pd Over To Third Party,PJ138,19/05/2016,410469,33912.93,REVENUE,AIRCO REFRIDGERATION & AIR CONDITIONING LTD,116742
North East Lincolnshire Council,http://statistics.data.gov.uk/id/local-authority/00FC),Chief Executive,Director Of Economy & Growth,Community Investment Team,Other Agencies,Grants Pd Over To Third Party,PJ138,23/05/2016,411192,252.44,REVENUE,SCOPE ENGINEERS LIMITED,132089
North East Lincolnshire Council,http://statistics.data.gov.uk/id/local-authority/00FC),Chief Executive,Director Of Economy & Growth,Community Investment Team,Other Agencies,Grants Pd Over To Third Party,PJ138,26/05/2016,411685,3126.49,REVENUE,SPORTS IDENTITY,122004
North East Lincolnshire Council,http://statistics.data.gov.uk/id/local-authority/00FC),Chief Executive,Director Of Economy & Growth,Community Investment Team,Other Agencies,Grants Pd Over To Third Party,PJ138,05/05/2016,407717,4500,REVENUE,GRP BUILDING SOLUTIONS LTD,127276
North East Lincolnshire Council,http://statistics.data.gov.uk/id/local-authority/00FC),Chief Executive,Director Of Economy & Growth,Community Investment Team,Other Agencies,Grants Pd Over To Third Party,PJ138,16/05/2016,408620,2100,REVENUE,GRP BUILDING SOLUTIONS LTD,127276
North East Lincolnshire Council,http://statistics.data.gov.uk/id/local-authority/00FC),Chief Executive,Director Of Economy & Growth,Community Investment Team,Other Agencies,Grants Pd Over To Third Party,PJ138,23/05/2016,410666,6710.01,REVENUE,GRP BUILDING SOLUTIONS LTD,127276
North East Lincolnshire Council,http://statistics.data.gov.uk/id/local-authority/00FC),Chief Executive,Director Of Economy & Growth,Community Investment Team,Other Agencies,Grants Pd Over To Third Party,PJ138,23/05/2016,410631,17519.86,REVENUE,MARTIN WILLIAMS (HULL) LTD,122299
North East Lincolnshire Council,http://statistics.data.gov.uk/id/local-authority/00FC),Chief Executive,Director Of Economy & Growth,Community Investment Team,Other Agencies,Grants Pd Over To Third Party,PJ138,16/05/2016,409310,574.18,REVENUE,OLD CLEE BAKERY LIMITED,129963
North East Lincolnshire Council,http://statistics.data.gov.uk/id/local-authority/00FC),Chief Executive,Director Of Economy & Growth,Community Investment Team,Other Agencies,Grants Pd Over To Third Party,PJ138,23/05/2016,411227,4679.64,REVENUE,OLD CLEE BAKERY LIMITED,129963
North East Lincolnshire Council,http://statistics.data.gov.uk/id/local-authority/00FC),Chief Executive,Director Of Economy & Growth,Community Investment Team,Other Agencies,Grants Pd Over To Third Party,PJ138,26/05/2016,411761,8039.39,REVENUE,FOCUS PACKAGING & DESIGN lTD,132801
North East Lincolnshire Council,http://statistics.data.gov.uk/id/local-authority/00FC),Chief Executive,Director Of Economy & Growth,Community Investment Team,Other Agencies,Grants Pd Over To Third Party,PJ138,26/05/2016,411402,17263.42,REVENUE,AGRIMIN LIMITED,130564
North East Lincolnshire Council,http://statistics.data.gov.uk/id/local-authority/00FC),Chief Executive,Director Of Economy & Growth,Community Investment Team,Other Agencies,Grants Pd Over To Third Party,PJ138,12/05/2016,409150,53039.45,REVENUE,RICK BESTWICK (NORTH) LIMITED,133698
North East Lincolnshire Council,http://statistics.data.gov.uk/id/local-authority/00FC),Chief Executive,Director Of Economy & Growth,Community Investment Team,Other Agencies,Grants Pd Over To Third Party,PJ138,31/05/2016,412227,73697.75,REVENUE,RICK BESTWICK (NORTH) LIMITED,133698
North East Lincolnshire Council,http://statistics.data.gov.uk/id/local-authority/00FC),Chief Executive,Director Of Economy & Growth,Community Investment Team,Other Agencies,Grants Pd Over To Third Party,PJ138,05/05/2016,407997,6130,REVENUE,G COWLEY LTD,103933
North East Lincolnshire Council,http://statistics.data.gov.uk/id/local-authority/00FC),Chief Executive,Director Of Economy & Growth,Community Investment Team,Other Agencies,Grants Pd Over To Third Party,PJ138,19/05/2016,410468,2435.05,REVENUE,MPH FULFILMENT LTD,128058
North East Lincolnshire Council,http://statistics.data.gov.uk/id/local-authority/00FC),Chief Executive,Director Of Economy & Growth,Community Investment Team,Other Agencies,Grants Pd Over To Third Party,PJ138,19/05/2016,410223,5135.24,REVENUE,YOUNGS FOODS LTD,133319
North East Lincolnshire Council,http://statistics.data.gov.uk/id/local-authority/00FC),Chief Executive,Director Of Economy & Growth,Retained Function,Grounds Maintenance Costs,Grounds Maintenance,GJ101,05/05/2016,408357,11261.9,REVENUE,NAVIGO,104262
North East Lincolnshire Council,http://statistics.data.gov.uk/id/local-authority/00FC),Chief Executive,Director Of Economy & Growth,Retained Function,Grounds Maintenance Costs,Grounds Maintenance,GJ101,05/05/2016,408356,2400,REVENUE,CHAINSAW SCULPTURE LTD,119900
North East Lincolnshire Council,http://statistics.data.gov.uk/id/local-authority/00FC),Chief Executive,Director Of Economy & Growth,Retained Function,Grounds Maintenance Costs,Grounds Maintenance,GJ101,05/05/2016,408354,1025,REVENUE,TRADITIONAL GATES,108564
North East Lincolnshire Council,http://statistics.data.gov.uk/id/local-authority/00FC),Chief Executive,Director Of Economy & Growth,Retained Function,Grants And Subscriptions,Subscriptions,LJ101,26/05/2016,412245,3180,REVENUE,SPRINGBOARD RESEARCH LTD,102452
North East Lincolnshire Council,http://statistics.data.gov.uk/id/local-authority/00FC),Chief Executive,Director Of Economy & Growth,Retained Function,Grants And Subscriptions,Subscriptions,LJ101,26/05/2016,412085,500,REVENUE,E-FACTOR (NEL LTD),122549
North East Lincolnshire Council,http://statistics.data.gov.uk/id/local-authority/00FC),Chief Executive,Director Of Economy & Growth,Retained Function,Miscellaneous Expenses,Hospitality,LL112,19/05/2016,409521,540,REVENUE,E-FACTOR (NEL LTD),122549
North East Lincolnshire Council,http://statistics.data.gov.uk/id/local-authority/00FC),Chief Executive,Director Of Economy & Growth,Retained Function,Miscellaneous Expenses,Legal Fees - General,LL103,12/05/2016,409323,350,REVENUE,THOMPSONS SOLICITORS,101854
North East Lincolnshire Council,http://statistics.data.gov.uk/id/local-authority/00FC),Chief Executive,Director Of Economy & Growth,Retained Function,Miscellaneous Expenses,Other Expenses General,LL119,17/05/2016,410226,733,REVENUE,BENTLEY SYSTEMS INTERNATIONAL LTD,105733
North East Lincolnshire Council,http://statistics.data.gov.uk/id/local-authority/00FC),Chief Executive,Director Of Economy & Growth,Retained Function,Private Contractors,Third Party Prov - Private,PH101,12/05/2016,408559,1000,REVENUE,ENGIE SERVICES LTD,133267
North East Lincolnshire Council,http://statistics.data.gov.uk/id/local-authority/00FC),Chief Executive,Director Of Economy & Growth,Retained Function,Direct Transport Costs,Hired Transport - Employees,JA101,16/05/2016,409117,275,REVENUE,SHERWOOD TRAVEL,100868
North East Lincolnshire Council,http://statistics.data.gov.uk/id/local-authority/00FC),Chief Executive,Director Of Economy & Growth,In Scope Contract,Private Contractors,Contract Payments,PH105,05/05/2016,407914,86927.5,REVENUE,ENGIE SERVICES LTD,133267
North East Lincolnshire Council,http://statistics.data.gov.uk/id/local-authority/00FC),Chief Executive,Director Of Economy & Growth,In Scope Contract,Private Contractors,Contract Payments,PH105,26/05/2016,412038,86927.5,REVENUE,ENGIE SERVICES LTD,133267
North East Lincolnshire Council,http://statistics.data.gov.uk/id/local-authority/00FC),Chief Executive,Director Of Economy & Growth,In Scope Contract,Private Contractors,Contract Payments,PH105,05/05/2016,407914,288453.33,REVENUE,ENGIE SERVICES LTD,133267
North East Lincolnshire Council,http://statistics.data.gov.uk/id/local-authority/00FC),Chief Executive,Director Of Economy & Growth,In Scope Contract,Private Contractors,Contract Payments,PH105,26/05/2016,412038,288453.33,REVENUE,ENGIE SERVICES LTD,133267
North East Lincolnshire Council,http://statistics.data.gov.uk/id/local-authority/00FC),Chief Executive,Director Of Economy & Growth,In Scope Contract,Private Contractors,Contract Payments,PH105,05/05/2016,407914,13624.17,REVENUE,ENGIE SERVICES LTD,133267
North East Lincolnshire Council,http://statistics.data.gov.uk/id/local-authority/00FC),Chief Executive,Director Of Economy & Growth,In Scope Contract,Private Contractors,Contract Payments,PH105,26/05/2016,412038,13624.17,REVENUE,ENGIE SERVICES LTD,133267
North East Lincolnshire Council,http://statistics.data.gov.uk/id/local-authority/00FC),Chief Executive,Director Of Economy & Growth,In Scope Contract,Private Contractors,Contract Payments,PH105,05/05/2016,407914,459310,REVENUE,ENGIE SERVICES LTD,133267
North East Lincolnshire Council,http://statistics.data.gov.uk/id/local-authority/00FC),Chief Executive,Director Of Economy & Growth,In Scope Contract,Private Contractors,Contract Payments,PH105,26/05/2016,412038,459310,REVENUE,ENGIE SERVICES LTD,133267
North East Lincolnshire Council,http://statistics.data.gov.uk/id/local-authority/00FC),Chief Executive,Director Of Economy & Growth,In Scope Contract,Private Contractors,Contract Payments,PH105,05/05/2016,407914,5325,REVENUE,ENGIE SERVICES LTD,133267
North East Lincolnshire Council,http://statistics.data.gov.uk/id/local-authority/00FC),Chief Executive,Director Of Economy & Growth,In Scope Contract,Private Contractors,Contract Payments,PH105,26/05/2016,412038,5325,REVENUE,ENGIE SERVICES LTD,133267
North East Lincolnshire Council,http://statistics.data.gov.uk/id/local-authority/00FC),Chief Executive,Director Of Economy & Growth,In Scope Contract,Private Contractors,Contract Payments,PH105,05/05/2016,407914,69896.25,REVENUE,ENGIE SERVICES LTD,133267
North East Lincolnshire Council,http://statistics.data.gov.uk/id/local-authority/00FC),Chief Executive,Director Of Economy & Growth,In Scope Contract,Private Contractors,Contract Payments,PH105,26/05/2016,412038,69896.25,REVENUE,ENGIE SERVICES LTD,133267
North East Lincolnshire Council,http://statistics.data.gov.uk/id/local-authority/00FC),Chief Executive,Director Of Economy & Growth,In Scope Contract,Private Contractors,Contract Payments,PH105,05/05/2016,407914,34407.5,REVENUE,ENGIE SERVICES LTD,133267
North East Lincolnshire Council,http://statistics.data.gov.uk/id/local-authority/00FC),Chief Executive,Director Of Economy & Growth,In Scope Contract,Private Contractors,Contract Payments,PH105,26/05/2016,412038,34407.5,REVENUE,ENGIE SERVICES LTD,133267
North East Lincolnshire Council,http://statistics.data.gov.uk/id/local-authority/00FC),Chief Executive,Director Of Economy & Growth,Car Parks,Customer And Client Receipts,Penalty Charge Income - Vat 4,VC138,26/05/2016,413445,707,REVENUE,REDACTED PERSONAL INFORMATION,REDACTED PERSONAL INFORMATION
North East Lincolnshire Council,http://statistics.data.gov.uk/id/local-authority/00FC),Chief Executive,Director Of Economy & Growth,Planning,Customer And Client Receipts,Fees/Chrgs-O/Side Scope Vat 4,VC125,05/05/2016,407742,385,REVENUE,CDC ARCHITECTURE LTD,110894
North East Lincolnshire Council,http://statistics.data.gov.uk/id/local-authority/00FC),Chief Executive,Director Of Economy & Growth,Drainage & Coastal Defence,Miscellaneous Expenses,Other Interest Charged,LL124,09/05/2016,407777,28194.67,REVENUE,ENVIRONMENT AGENCY,101076
North East Lincolnshire Council,http://statistics.data.gov.uk/id/local-authority/00FC),Chief Executive,Director Of Economy & Growth,Drainage & Coastal Defence,Private Contractors,Third Party Prov - Private,PH101,26/05/2016,412113,860,REVENUE,BEVAN BRITTAN LLP,131317
North East Lincolnshire Council,http://statistics.data.gov.uk/id/local-authority/00FC),Chief Executive,Director Of Economy & Growth,Drainage & Coastal Defence,Private Contractors,Third Party Prov - Private,PH101,26/05/2016,412109,2218,REVENUE,BEVAN BRITTAN LLP,131317
North East Lincolnshire Council,http://statistics.data.gov.uk/id/local-authority/00FC),Chief Executive,Director Of Economy & Growth,Highways Dso,Dlo Holding,Depot Fuel Holding Account,LM101,10/05/2016,407942,14626.73,REVENUE,CERTAS ENERGY,124794
North East Lincolnshire Council,http://statistics.data.gov.uk/id/local-authority/00FC),Chief Executive,Director Of Economy & Growth,Highways Dso,Dlo Holding,Depot Fuel Holding Account,LM101,12/05/2016,408952,15021.83,REVENUE,CERTAS ENERGY,124794
North East Lincolnshire Council,http://statistics.data.gov.uk/id/local-authority/00FC),Chief Executive,Director Of Economy & Growth,Highways Dso,Dlo Holding,Depot Fuel Holding Account,LM101,12/05/2016,408951,940.75,REVENUE,CERTAS ENERGY,124794
North East Lincolnshire Council,http://statistics.data.gov.uk/id/local-authority/00FC),Chief Executive,Director Of Economy & Growth,Highways Dso,Dlo Holding,Depot Fuel Holding Account,LM101,12/05/2016,409151,15240.6,REVENUE,CERTAS ENERGY,124794
North East Lincolnshire Council,http://statistics.data.gov.uk/id/local-authority/00FC),Chief Executive,Director Of Economy & Growth,Highways Dso,Dlo Holding,Depot Fuel Holding Account,LM101,31/05/2016,411162,952.75,REVENUE,CERTAS ENERGY,124794
North East Lincolnshire Council,http://statistics.data.gov.uk/id/local-authority/00FC),Chief Executive,Director Of Economy & Growth,Street Lighting,Private Contractors,Third Party Prov - Private,PH101,05/05/2016,408026,562.64,REVENUE,NORTHERN POWERGRID (YORKSHIRE) PLC,108328
North East Lincolnshire Council,http://statistics.data.gov.uk/id/local-authority/00FC),Chief Executive,Director Of Economy & Growth,Street Lighting,Private Contractors,Third Party Prov - Private,PH101,05/05/2016,408025,366.63,REVENUE,NORTHERN POWERGRID (YORKSHIRE) PLC,108328
North East Lincolnshire Council,http://statistics.data.gov.uk/id/local-authority/00FC),Chief Executive,Director Of Economy & Growth,Street Lighting,Rep Alterations Maint Building,Street Lighting-General Maint,GA111,24/05/2016,411380,389.99,REVENUE,NORTHERN POWERGRID (YORKSHIRE) PLC,108328
North East Lincolnshire Council,http://statistics.data.gov.uk/id/local-authority/00FC),Chief Executive,Director Of Economy & Growth,Street Lighting,Rep Alterations Maint Building,Street Lighting-General Maint,GA111,24/05/2016,411381,779.98,REVENUE,NORTHERN POWERGRID (YORKSHIRE) PLC,108328
North East Lincolnshire Council,http://statistics.data.gov.uk/id/local-authority/00FC),Chief Executive,Director Of Economy & Growth,Street Lighting,Rep Alterations Maint Building,Street Lighting-General Maint,GA111,24/05/2016,411382,389.99,REVENUE,NORTHERN POWERGRID (YORKSHIRE) PLC,108328
North East Lincolnshire Council,http://statistics.data.gov.uk/id/local-authority/00FC),Chief Executive,Director Of Economy & Growth,Street Lighting,Rep Alterations Maint Building,Street Lighting - Energy,GA110,03/05/2016,407402,452.74,REVENUE,NPOWER LIMITED,101414
North East Lincolnshire Council,http://statistics.data.gov.uk/id/local-authority/00FC),Chief Executive,Director Of Economy & Growth,Street Lighting,Rep Alterations Maint Building,Traffic Mgmt-Irrecoverable Dam,GA115,23/05/2016,411387,389.99,REVENUE,NORTHERN POWERGRID (YORKSHIRE) PLC,108328
North East Lincolnshire Council,http://statistics.data.gov.uk/id/local-authority/00FC),Chief Executive,Director Of Economy & Growth,Street Lighting,Private Contractors,Third Party Prov - Private,PH101,24/05/2016,411388,389.99,REVENUE,NORTHERN POWERGRID (YORKSHIRE) PLC,108328
North East Lincolnshire Council,http://statistics.data.gov.uk/id/local-authority/00FC),Chief Executive,Director Of Economy & Growth,Street Lighting,Rep Alterations Maint Building,Street Lighting - Energy,GA110,03/05/2016,407402,1480.76,REVENUE,NPOWER LIMITED,101414
North East Lincolnshire Council,http://statistics.data.gov.uk/id/local-authority/00FC),Chief Executive,Director Of Economy & Growth,Street Lighting,Rep Alterations Maint Building,Street Lighting - Energy,GA110,03/05/2016,407023,1274.54,REVENUE,NPOWER LIMITED,101414
North East Lincolnshire Council,http://statistics.data.gov.uk/id/local-authority/00FC),Chief Executive,Director Of Economy & Growth,Street Lighting,Rep Alterations Maint Building,Street Lighting-General Maint,GA111,24/05/2016,411384,2542.54,REVENUE,NORTHERN POWERGRID (YORKSHIRE) PLC,108328
North East Lincolnshire Council,http://statistics.data.gov.uk/id/local-authority/00FC),Chief Executive,Director Of Economy & Growth,Street Lighting,Rep Alterations Maint Building,Street Lighting-General Maint,GA111,24/05/2016,411378,389.99,REVENUE,NORTHERN POWERGRID (YORKSHIRE) PLC,108328
North East Lincolnshire Council,http://statistics.data.gov.uk/id/local-authority/00FC),Chief Executive,Director Of Economy & Growth,Street Lighting,Rep Alterations Maint Building,Street Lighting-General Maint,GA111,24/05/2016,411379,1536.6,REVENUE,NORTHERN POWERGRID (YORKSHIRE) PLC,108328
North East Lincolnshire Council,http://statistics.data.gov.uk/id/local-authority/00FC),Chief Executive,Director Of Economy & Growth,Street Lighting,Rep Alterations Maint Building,Street Lighting-General Maint,GA111,24/05/2016,411385,1342.62,REVENUE,NORTHERN POWERGRID (YORKSHIRE) PLC,108328
North East Lincolnshire Council,http://statistics.data.gov.uk/id/local-authority/00FC),Chief Executive,Director Of Economy & Growth,Street Lighting,Rep Alterations Maint Building,Street Lighting-General Maint,GA111,24/05/2016,411386,779.98,REVENUE,NORTHERN POWERGRID (YORKSHIRE) PLC,108328
North East Lincolnshire Council,http://statistics.data.gov.uk/id/local-authority/00FC),Chief Executive,Director Of Economy & Growth,Street Lighting,Rep Alterations Maint Building,Street Lighting-General Maint,GA111,05/05/2016,408023,1559.96,REVENUE,NORTHERN POWERGRID (YORKSHIRE) PLC,108328
North East Lincolnshire Council,http://statistics.data.gov.uk/id/local-authority/00FC),Chief Executive,Director Of Economy & Growth,Street Lighting,Rep Alterations Maint Building,Street Lighting-General Maint,GA111,24/05/2016,411169,264,REVENUE,EGS TECHNOLOGIES,131711
North East Lincolnshire Council,http://statistics.data.gov.uk/id/local-authority/00FC),Chief Executive,Director Of Economy & Growth,Street Lighting,Rep Alterations Maint Building,Street Light-Irrecoverable Dam,GA112,05/05/2016,408024,562.64,REVENUE,NORTHERN POWERGRID (YORKSHIRE) PLC,108328
North East Lincolnshire Council,http://statistics.data.gov.uk/id/local-authority/00FC),Chief Executive,Director Of Economy & Growth,Street Lighting,Private Contractors,Third Party Prov - Private,PH101,24/05/2016,411377,389.99,REVENUE,NORTHERN POWERGRID (YORKSHIRE) PLC,108328
North East Lincolnshire Council,http://statistics.data.gov.uk/id/local-authority/00FC),Chief Executive,Director Of Economy & Growth,Street Lighting,Private Contractors,Third Party Prov - Private,PH101,24/05/2016,411383,389.99,REVENUE,NORTHERN POWERGRID (YORKSHIRE) PLC,108328
North East Lincolnshire Council,http://statistics.data.gov.uk/id/local-authority/00FC),Chief Executive,Director Of Economy & Growth,Transport Policy,Private Contractors,Concessionary Fares,PH104,12/05/2016,408690,REDACTED COMMERCIALLY SENSITIVE,REVENUE,ESP SYSTEX LTD,102062
North East Lincolnshire Council,http://statistics.data.gov.uk/id/local-authority/00FC),Chief Executive,Director Of Economy & Growth,Transport Policy,Private Contractors,Concessionary Fares,PH104,19/05/2016,410537,REDACTED COMMERCIALLY SENSITIVE,REVENUE,AMVALE LIMITED,101030
North East Lincolnshire Council,http://statistics.data.gov.uk/id/local-authority/00FC),Chief Executive,Director Of Economy & Growth,Transport Policy,Private Contractors,Concessionary Fares,PH104,19/05/2016,410233,REDACTED COMMERCIALLY SENSITIVE,REVENUE,GRAYSCROFT BUS SERVICES LIMITED,101786
North East Lincolnshire Council,http://statistics.data.gov.uk/id/local-authority/00FC),Chief Executive,Director Of Economy & Growth,Transport Policy,Private Contractors,Concessionary Fares,PH104,12/05/2016,409337,REDACTED COMMERCIALLY SENSITIVE,REVENUE,GY CLPS & DISTRICT DIAL A RIDE,100980
North East Lincolnshire Council,http://statistics.data.gov.uk/id/local-authority/00FC),Chief Executive,Director Of Economy & Growth,Transport Policy,Private Contractors,Concessionary Fares,PH104,26/05/2016,411593,REDACTED COMMERCIALLY SENSITIVE,REVENUE,GY CLPS & DISTRICT DIAL A RIDE,100980
North East Lincolnshire Council,http://statistics.data.gov.uk/id/local-authority/00FC),Chief Executive,Director Of Economy & Growth,Transport Policy,Private Contractors,Concessionary Fares,PH104,16/05/2016,409484,REDACTED COMMERCIALLY SENSITIVE,REVENUE,STAGECOACH SERVICES,101404
North East Lincolnshire Council,http://statistics.data.gov.uk/id/local-authority/00FC),Chief Executive,Director Of Economy & Growth,Transport Policy,Private Contractors,Concessionary Fares,PH104,31/05/2016,412581,REDACTED COMMERCIALLY SENSITIVE,REVENUE,ARRIVA RAIL NORTH LTD,134093
North East Lincolnshire Council,http://statistics.data.gov.uk/id/local-authority/00FC),Chief Executive,Director Of Economy & Growth,Transport Policy,Private Contractors,Subsidies,PH102,23/05/2016,410329,REDACTED COMMERCIALLY SENSITIVE,REVENUE,STAGECOACH SERVICES,101404
North East Lincolnshire Council,http://statistics.data.gov.uk/id/local-authority/00FC),Chief Executive,Director Of Economy & Growth,Transport Policy,Private Contractors,Contract Payments,PH105,09/05/2016,408319,22778.46,REVENUE,ESSENTIAL FLEET SERVICES LTD,101159
North East Lincolnshire Council,http://statistics.data.gov.uk/id/local-authority/00FC),Chief Executive,Director Of Public Health,Director Public Health,Equip / Furniture / Materials,Promotions,LA124,12/05/2016,408823,11125,REVENUE,GREEN FUTURES,102397
North East Lincolnshire Council,http://statistics.data.gov.uk/id/local-authority/00FC),Chief Executive,Director Of Public Health,Director Public Health,Health Authorities,Third Pp - Health Auth,PD101,12/05/2016,409081,-2059,REVENUE,NHS YORKSHIRE & THE HUMBER CS,129360
North East Lincolnshire Council,http://statistics.data.gov.uk/id/local-authority/00FC),Chief Executive,Director Of Public Health,Director Public Health,Health Authorities,Third Pp - Health Auth,PD101,16/05/2016,409147,2059,REVENUE,NHS YORKSHIRE & THE HUMBER CS,129360
North East Lincolnshire Council,http://statistics.data.gov.uk/id/local-authority/00FC),Chief Executive,Director Of Public Health,Director Public Health,Health Authorities,Third Pp - Health Auth,PD101,24/05/2016,411415,258,REVENUE,NHS YORKSHIRE & THE HUMBER CS,129360
North East Lincolnshire Council,http://statistics.data.gov.uk/id/local-authority/00FC),Chief Executive,Director Of Public Health,Drug / Alcohol Action Service,Private Contractors,Contract Payments,PH105,23/05/2016,410701,33203.31,REVENUE,NHSBSA (NHS BUSINESS SERVICES AUTHORITY),127751
North East Lincolnshire Council,http://statistics.data.gov.uk/id/local-authority/00FC),Chief Executive,Director Of Public Health,Drug / Alcohol Action Service,Private Contractors,Contract Payments,PH105,26/05/2016,411778,32651.79,REVENUE,NHSBSA (NHS BUSINESS SERVICES AUTHORITY),127751
North East Lincolnshire Council,http://statistics.data.gov.uk/id/local-authority/00FC),Chief Executive,Director Of Public Health,Drug / Alcohol Action Service,Private Contractors,Contract Payments,PH105,09/05/2016,408218,118583.33,REVENUE,CARE PLUS GROUP,106467
North East Lincolnshire Council,http://statistics.data.gov.uk/id/local-authority/00FC),Chief Executive,Director Of Public Health,Drug / Alcohol Action Service,Private Contractors,Contract Payments,PH105,26/05/2016,411768,118583.33,REVENUE,CARE PLUS GROUP,106467
North East Lincolnshire Council,http://statistics.data.gov.uk/id/local-authority/00FC),Chief Executive,Director Of Public Health,Drug / Alcohol Action Service,Private Contractors,Third Party Prov - Private,PH101,16/05/2016,408625,12500,REVENUE,FREELANCE NEEDLE EXCHANGE LIMITED,119999
North East Lincolnshire Council,http://statistics.data.gov.uk/id/local-authority/00FC),Chief Executive,Director Of Public Health,Drug / Alcohol Action Service,Private Contractors,Third Party Prov - Private,PH101,16/05/2016,408624,15833.33,REVENUE,FREELANCE NEEDLE EXCHANGE LIMITED,119999
North East Lincolnshire Council,http://statistics.data.gov.uk/id/local-authority/00FC),Chief Executive,Director Of Public Health,Sexual Health,Contributions To Provisions,Contributions - Communities,LK101,10/05/2016,408549,4222,REVENUE,VIRGIN CARE SERVICES LTD,120538
North East Lincolnshire Council,http://statistics.data.gov.uk/id/local-authority/00FC),Chief Executive,Director Of Public Health,Sexual Health,Voluntary Associations,Third Pp - Third Sector,PF101,05/05/2016,407921,2331.69,REVENUE,POSITIVE HEALTH,125235
North East Lincolnshire Council,http://statistics.data.gov.uk/id/local-authority/00FC),Chief Executive,Director Of Public Health,Sexual Health,Private Contractors,Contract Payments,PH105,05/05/2016,407933,55401,REVENUE,VIRGIN CARE SERVICES LTD,120538
North East Lincolnshire Council,http://statistics.data.gov.uk/id/local-authority/00FC),Chief Executive,Director Of Public Health,Sexual Health,Private Contractors,Contract Payments,PH105,23/05/2016,410337,55401,REVENUE,VIRGIN CARE SERVICES LTD,120538
North East Lincolnshire Council,http://statistics.data.gov.uk/id/local-authority/00FC),Chief Executive,Director Of Public Health,Sexual Health,Private Contractors,Third Party Prov - Private,PH101,05/05/2016,406654,285,REVENUE,ASDA PHARMACY,104011
North East Lincolnshire Council,http://statistics.data.gov.uk/id/local-authority/00FC),Chief Executive,Director Of Public Health,Sexual Health,Other Agencies,Contract Plus,PJ135,05/05/2016,406657,320,REVENUE,PASANTE HEALTHCARE LTD,103011
North East Lincolnshire Council,http://statistics.data.gov.uk/id/local-authority/00FC),Chief Executive,Director Of Public Health,Sexual Health,Other Agencies,Contract Plus,PJ135,05/05/2016,407918,384,REVENUE,PASANTE HEALTHCARE LTD,103011
North East Lincolnshire Council,http://statistics.data.gov.uk/id/local-authority/00FC),Chief Executive,Director Of Public Health,Sexual Health,Other Agencies,Health Charges,PJ131,05/05/2016,406642,1881,REVENUE,VIRGIN CARE SERVICES LTD,120538
North East Lincolnshire Council,http://statistics.data.gov.uk/id/local-authority/00FC),Chief Executive,Director Of Public Health,Sexual Health,Other Agencies,Health Charges,PJ131,05/05/2016,406644,702,REVENUE,VIRGIN CARE SERVICES LTD,120538
North East Lincolnshire Council,http://statistics.data.gov.uk/id/local-authority/00FC),Chief Executive,Director Of Public Health,Sexual Health,Other Agencies,Health Charges,PJ131,05/05/2016,407917,270,REVENUE,COUNTY DURHAM & DARLINGTON NHS FT,133805
North East Lincolnshire Council,http://statistics.data.gov.uk/id/local-authority/00FC),Chief Executive,Director Of Public Health,Sexual Health,Other Agencies,Health Charges,PJ131,10/05/2016,407923,402,REVENUE,CITY HEALTH CARE PARTNERSHIP CIC,110889
North East Lincolnshire Council,http://statistics.data.gov.uk/id/local-authority/00FC),Chief Executive,Director Of Public Health,Sexual Health,Other Agencies,Other,PJ121,05/05/2016,406659,400,REVENUE,SCARTHO MEDICAL CENTRE,107570
North East Lincolnshire Council,http://statistics.data.gov.uk/id/local-authority/00FC),Chief Executive,Director Of Public Health,Sexual Health,Other Agencies,Other,PJ121,05/05/2016,407922,400,REVENUE,CLEE MEDICAL CENTRE,105319
North East Lincolnshire Council,http://statistics.data.gov.uk/id/local-authority/00FC),Chief Executive,Director Of Public Health,Sexual Health,Other Agencies,Other,PJ121,10/05/2016,408016,2560,REVENUE,BEACON MEDICAL CENTRE,109525
North East Lincolnshire Council,http://statistics.data.gov.uk/id/local-authority/00FC),Chief Executive,Director Of Public Health,Sexual Health,Other Agencies,Other,PJ121,16/05/2016,409519,7280,REVENUE,BIRKWOOD SURGERY,105074
North East Lincolnshire Council,http://statistics.data.gov.uk/id/local-authority/00FC),Chief Executive,Director Of Public Health,Sexual Health,Other Agencies,Other,PJ121,16/05/2016,409516,1840,REVENUE,RAJ MEDICAL CENTRE,121130
North East Lincolnshire Council,http://statistics.data.gov.uk/id/local-authority/00FC),Chief Executive,Director Of Public Health,Sexual Health,Other Agencies,Other,PJ121,16/05/2016,409531,360,REVENUE,DR HOPPER & PARTNERS,103900
North East Lincolnshire Council,http://statistics.data.gov.uk/id/local-authority/00FC),Chief Executive,Director Of Public Health,Sexual Health,Other Agencies,Other,PJ121,16/05/2016,409532,1040,REVENUE,SCARTHO MEDICAL CENTRE,107570
North East Lincolnshire Council,http://statistics.data.gov.uk/id/local-authority/00FC),Chief Executive,Director Of Public Health,Sexual Health,Other Agencies,Other,PJ121,16/05/2016,409529,560,REVENUE,LITTLEFIELDS HEALTH CENTRE,111683
North East Lincolnshire Council,http://statistics.data.gov.uk/id/local-authority/00FC),Chief Executive,Director Of Public Health,Sexual Health,Other Agencies,Other,PJ121,23/05/2016,410279,640,REVENUE,WOODFORD MEDICAL CENTRE,107882
North East Lincolnshire Council,http://statistics.data.gov.uk/id/local-authority/00FC),Chief Executive,Ad Joint Delivery,Benefit Payments & Subsidy,Miscellaneous Income,Exp Recov - O/Side Scope Vat 4,VG107,16/05/2016,409149,480,REVENUE,JACOBS CERTIFIED BAILIFFS,101788
North East Lincolnshire Council,http://statistics.data.gov.uk/id/local-authority/00FC),Chief Executive,Ad Joint Delivery,Benefit Payments & Subsidy,Miscellaneous Income,Exp Recov - O/Side Scope Vat 4,VG107,31/05/2016,411785,310,REVENUE,ROSSENDALES LTD,101373
North East Lincolnshire Council,http://statistics.data.gov.uk/id/local-authority/00FC),Chief Executive,Ad Joint Delivery,Local Taxation & Benefits,Grants And Subscriptions,Subscriptions,LJ101,09/05/2016,408644,750,REVENUE,CIPFA BUSINESS LIMITED,102338
North East Lincolnshire Council,http://statistics.data.gov.uk/id/local-authority/00FC),Chief Executive,Ad Joint Delivery,Local Taxation & Benefits,Grants And Subscriptions,Subscriptions,LJ101,12/05/2016,408598,430,REVENUE,LA DIRECTORIES LTD,106403
North East Lincolnshire Council,http://statistics.data.gov.uk/id/local-authority/00FC),Chief Executive,Ad Joint Delivery,Local Taxation & Benefits,Communications And Computing,Computer S/Ware - Maintenance,LF102,12/05/2016,407825,1946,REVENUE,NORTHGATE PUBLIC SERVICES (UK) LTD,101841
North East Lincolnshire Council,http://statistics.data.gov.uk/id/local-authority/00FC),Chief Executive,Ad Joint Delivery,Local Taxation & Benefits,Miscellaneous Expenses,Debt Recovery Costs,LL111,24/05/2016,411138,2700,REVENUE,EXPERIAN LIMITED,100909
North East Lincolnshire Council,http://statistics.data.gov.uk/id/local-authority/00FC),Chief Executive,Ad Joint Delivery,Local Taxation & Benefits,Miscellaneous Expenses,Other Supplies & Services,LL110,31/05/2016,411195,41100,REVENUE,INFORM CPI,124803
North East Lincolnshire Council,http://statistics.data.gov.uk/id/local-authority/00FC),Chief Executive,Ad Joint Delivery,Local Taxation & Benefits,Grants And Subscriptions,Subscriptions,LJ101,09/05/2016,408644,1500,REVENUE,CIPFA BUSINESS LIMITED,102338
North East Lincolnshire Council,http://statistics.data.gov.uk/id/local-authority/00FC),Chief Executive,Ad Joint Delivery,Head Commission & Info Systems,Direct Employee Expenses,Agency Staff,EA105,23/05/2016,410597,4250,REVENUE,MECOS LTD,128199
North East Lincolnshire Council,http://statistics.data.gov.uk/id/local-authority/00FC),Chief Executive,Ad Joint Delivery,I.T Shared Service,Communications And Computing,Computer H/Ware - Purchases,LF105,10/05/2016,408674,2601.5,REVENUE,IMERJA LTD,102238
North East Lincolnshire Council,http://statistics.data.gov.uk/id/local-authority/00FC),Chief Executive,Ad Joint Delivery,I.T Shared Service,Communications And Computing,Computer H/Ware - Purchases,LF105,16/05/2016,409048,1736.1,REVENUE,VODAFONE LIMITED,103661
North East Lincolnshire Council,http://statistics.data.gov.uk/id/local-authority/00FC),Chief Executive,Ad Joint Delivery,I.T Shared Service,Communications And Computing,Computer S/Ware - Licences,LF103,16/05/2016,409885,17618.98,REVENUE,CAPITA BUSINESS SERVICES LTD,102314
North East Lincolnshire Council,http://statistics.data.gov.uk/id/local-authority/00FC),Chief Executive,Ad Joint Delivery,I.T Shared Service,Communications And Computing,Computer S/Ware - Licences,LF103,16/05/2016,409885,9586.42,REVENUE,CAPITA BUSINESS SERVICES LTD,102314
North East Lincolnshire Council,http://statistics.data.gov.uk/id/local-authority/00FC),Chief Executive,Ad Joint Delivery,I.T Shared Service,Communications And Computing,Computer S/Ware - Maintenance,LF102,05/05/2016,396663,10925,REVENUE,LEARNING POOL LIMITED,101834
North East Lincolnshire Council,http://statistics.data.gov.uk/id/local-authority/00FC),Chief Executive,Ad Joint Delivery,I.T Shared Service,Communications And Computing,Computer S/Ware - Maintenance,LF102,05/05/2016,396663,10925,REVENUE,LEARNING POOL LIMITED,101834
North East Lincolnshire Council,http://statistics.data.gov.uk/id/local-authority/00FC),Chief Executive,Ad Joint Delivery,I.T Shared Service,Communications And Computing,Computer S/Ware - Maintenance,LF102,05/05/2016,404226,50177.27,REVENUE,ORACLE CORPORATION UK LTD,100696
North East Lincolnshire Council,http://statistics.data.gov.uk/id/local-authority/00FC),Chief Executive,Ad Joint Delivery,I.T Shared Service,Communications And Computing,Computer S/Ware - Maintenance,LF102,16/05/2016,402845,8350,REVENUE,GEOWISE LIMITED,102016
North East Lincolnshire Council,http://statistics.data.gov.uk/id/local-authority/00FC),Chief Executive,Ad Joint Delivery,I.T Shared Service,Communications And Computing,Computer S/Ware - Maintenance,LF102,24/05/2016,411151,11826,REVENUE,DOTTED EYES LTD,102296
North East Lincolnshire Council,http://statistics.data.gov.uk/id/local-authority/00FC),Chief Executive,Ad Joint Delivery,I.T Shared Service,Grants And Subscriptions,Subscriptions,LJ101,10/05/2016,407955,1305.5,REVENUE,ITSA LIMITED,101451
North East Lincolnshire Council,http://statistics.data.gov.uk/id/local-authority/00FC),Chief Executive,Ad Joint Delivery,I.T Shared Service,Grants And Subscriptions,Subscriptions,LJ101,12/05/2016,409327,500,REVENUE,SHEFFIELD CITY COUNCIL,101195
North East Lincolnshire Council,http://statistics.data.gov.uk/id/local-authority/00FC),Chief Executive,Ad Joint Delivery,Community Support Mgmt A/C,Rep Alterations Maint Building,Buildings - Repairs And Maint,GA102,03/05/2016,407280,311.57,REVENUE,COFELY WORKPLACE LIMITED,123983
North East Lincolnshire Council,http://statistics.data.gov.uk/id/local-authority/00FC),Chief Executive,Ad Joint Delivery,Leisure Contracts,Indirect Employee Expenses,Redundancy,EC101,10/05/2016,407962,REDACTED PERSONAL INFORMATION,REVENUE,LINCS INSPIRE LIMITED,129063
North East Lincolnshire Council,http://statistics.data.gov.uk/id/local-authority/00FC),Chief Executive,Ad Joint Delivery,Leisure Contracts,Rep Alterations Maint Building,Buildings - Repairs And Maint,GA102,17/05/2016,410023,1515,REVENUE,ICE TECH UK,121107
North East Lincolnshire Council,http://statistics.data.gov.uk/id/local-authority/00FC),Chief Executive,Ad Joint Delivery,Leisure Contracts,Rep Alterations Maint Building,Buildings - Repairs And Maint,GA102,23/05/2016,410551,8464.75,REVENUE,COFELY WORKPLACE LIMITED,123983
North East Lincolnshire Council,http://statistics.data.gov.uk/id/local-authority/00FC),Chief Executive,Ad Joint Delivery,Leisure Contracts,Rep Alterations Maint Building,Buildings - Repairs And Maint,GA102,24/05/2016,411682,33222.9,REVENUE,ENGIE SERVICES LTD,133267
North East Lincolnshire Council,http://statistics.data.gov.uk/id/local-authority/00FC),Chief Executive,Ad Joint Delivery,Leisure Contracts,Rep Alterations Maint Building,Buildings - Repairs And Maint,GA102,26/05/2016,411730,2054,REVENUE,LEGEND CLUB MANAGMENT SYSTEMS (UK) LTD,119144
North East Lincolnshire Council,http://statistics.data.gov.uk/id/local-authority/00FC),Chief Executive,Ad Joint Delivery,Leisure Contracts,Energy Costs,Electricity,GB102,19/05/2016,410461,330,REVENUE,NPOWER,101368
North East Lincolnshire Council,http://statistics.data.gov.uk/id/local-authority/00FC),Chief Executive,Ad Joint Delivery,Leisure Contracts,Energy Costs,Electricity,GB102,19/05/2016,410463,330,REVENUE,NPOWER,101368
North East Lincolnshire Council,http://statistics.data.gov.uk/id/local-authority/00FC),Chief Executive,Ad Joint Delivery,Leisure Contracts,Energy Costs,Electricity,GB102,19/05/2016,410464,330,REVENUE,NPOWER,101368
North East Lincolnshire Council,http://statistics.data.gov.uk/id/local-authority/00FC),Chief Executive,Ad Joint Delivery,Leisure Contracts,Water Services,Water,GE101,09/05/2016,408548,625.16,REVENUE,ANGLIAN WATER,100508
North East Lincolnshire Council,http://statistics.data.gov.uk/id/local-authority/00FC),Chief Executive,Ad Joint Delivery,Leisure Contracts,Water Services,Water,GE101,09/05/2016,408548,579.55,REVENUE,ANGLIAN WATER,100508
North East Lincolnshire Council,http://statistics.data.gov.uk/id/local-authority/00FC),Chief Executive,Ad Joint Delivery,Leisure Contracts,Private Contractors,Third Party Prov - Private,PH101,19/05/2016,409921,2650.18,REVENUE,LEGEND LEISURE SERVICES LTD,121539
North East Lincolnshire Council,http://statistics.data.gov.uk/id/local-authority/00FC),Chief Executive,Ad Joint Delivery,Human Resources,Indirect Employee Expenses,Disclosure Checks,EB124,12/05/2016,409322,6336,REVENUE,DISCLOSURE & BARRING SERVICE,119180
North East Lincolnshire Council,http://statistics.data.gov.uk/id/local-authority/00FC),Chief Executive,Ad Joint Delivery,Human Resources,Miscellaneous Expenses,Other Supplies & Services,LL110,24/05/2016,409320,2608,REVENUE,EXCITELEARNING,130001
North East Lincolnshire Council,http://statistics.data.gov.uk/id/local-authority/00FC),Chief Executive,Ad Joint Delivery,Human Resources,Indirect Employee Expenses,Staff Training,EB122,05/05/2016,408217,783,REVENUE,MEDIA TRAINING LTD,125063
North East Lincolnshire Council,http://statistics.data.gov.uk/id/local-authority/00FC),Chief Executive,Ad Joint Delivery,Human Resources,Indirect Employee Expenses,Staff Training,EB122,23/05/2016,411464,1322.2,REVENUE,GARY STORR,132875
North East Lincolnshire Council,http://statistics.data.gov.uk/id/local-authority/00FC),Chief Executive,Ad Joint Delivery,Human Resources,Indirect Employee Expenses,Staff Training,EB122,23/05/2016,411465,1322.2,REVENUE,JOANNE WAGSTAFF,132877
North East Lincolnshire Council,http://statistics.data.gov.uk/id/local-authority/00FC),Chief Executive,Ad Joint Delivery,Human Resources,Indirect Employee Expenses,Staff Training,EB122,23/05/2016,411466,1322.2,REVENUE,RICHARD BOYTON,132876
North East Lincolnshire Council,http://statistics.data.gov.uk/id/local-authority/00FC),Chief Executive,Ad Joint Delivery,Human Resources,Indirect Employee Expenses,Staff Training,EB122,17/05/2016,409824,260,REVENUE,CENTRAL CONFERNCE CONSULTANTS LTD,109720
North East Lincolnshire Council,http://statistics.data.gov.uk/id/local-authority/00FC),Chief Executive,Ad Joint Delivery,Human Resources,Indirect Employee Expenses,Staff Training,EB122,16/05/2016,409883,300,REVENUE,MR NIGEL K BISHOP,109708
North East Lincolnshire Council,http://statistics.data.gov.uk/id/local-authority/00FC),Chief Executive,Ad Joint Delivery,Human Resources,Indirect Employee Expenses,Staff Training,EB122,24/05/2016,410247,330,REVENUE,FOREFRONT TRAINING LTD,105501
North East Lincolnshire Council,http://statistics.data.gov.uk/id/local-authority/00FC),Chief Executive,Ad Joint Delivery,Human Resources,Indirect Employee Expenses,Staff Training,EB122,31/05/2016,412186,4000,REVENUE,LINCS INSPIRE LIMITED,129063
North East Lincolnshire Council,http://statistics.data.gov.uk/id/local-authority/00FC),Chief Executive,Ad Joint Delivery,Human Resources,Indirect Employee Expenses,Medical Expenses - Employees,EB112,26/05/2016,412233,-40,REVENUE,RIVERSIDE PHARMACY,103958
North East Lincolnshire Council,http://statistics.data.gov.uk/id/local-authority/00FC),Chief Executive,Ad Joint Delivery,Human Resources,Indirect Employee Expenses,Medical Expenses - Employees,EB112,05/05/2016,407735,500,REVENUE,OCCUPATIONAL HEALTH SERVICES LTD,112584
North East Lincolnshire Council,http://statistics.data.gov.uk/id/local-authority/00FC),Chief Executive,Ad Joint Delivery,Human Resources,Indirect Employee Expenses,Medical Expenses - Employees,EB112,09/05/2016,407762,500,REVENUE,OCCUPATIONAL HEALTH SERVICES LTD,112584
North East Lincolnshire Council,http://statistics.data.gov.uk/id/local-authority/00FC),Chief Executive,Ad Joint Delivery,Human Resources,Indirect Employee Expenses,Medical Expenses - Employees,EB112,10/05/2016,409082,4500,REVENUE,PUROSEARCH LIMITED,133850
North East Lincolnshire Council,http://statistics.data.gov.uk/id/local-authority/00FC),Chief Executive,Ad Joint Delivery,Human Resources,Indirect Employee Expenses,Medical Expenses - Employees,EB112,23/05/2016,411132,290,REVENUE,NORTH LINCOLNSHIRE COUNCIL,101186
North East Lincolnshire Council,http://statistics.data.gov.uk/id/local-authority/00FC),Chief Executive,Ad Joint Delivery,Human Resources,Indirect Employee Expenses,Medical Expenses - Employees,EB112,23/05/2016,411133,785,REVENUE,NORTH LINCOLNSHIRE COUNCIL,101186
North East Lincolnshire Council,http://statistics.data.gov.uk/id/local-authority/00FC),Chief Executive,Ad Joint Delivery,Human Resources,Indirect Employee Expenses,Medical Expenses - Employees,EB112,23/05/2016,411184,1250,REVENUE,BIBBY FINANCIAL SERVICES,104574
North East Lincolnshire Council,http://statistics.data.gov.uk/id/local-authority/00FC),Chief Executive,Ad Joint Delivery,Human Resources,Indirect Employee Expenses,Medical Expenses - Employees,EB112,26/05/2016,411770,530.7,REVENUE,EA BROADBURN DISPENSING CHEMIST,101135
North East Lincolnshire Council,http://statistics.data.gov.uk/id/local-authority/00FC),Chief Executive,Ad Joint Delivery,Human Resources,Indirect Employee Expenses,Medical Expenses - Employees,EB112,26/05/2016,411772,518.12,REVENUE,N LINCS & GOOLE HOSPITALS NHS,111074
North East Lincolnshire Council,http://statistics.data.gov.uk/id/local-authority/00FC),Chief Executive,Ad Joint Delivery,Human Resources,Public Transport,Public Transport - Employees,JD101,19/05/2016,410945,-28.9,REVENUE,CLICK TRAVEL,127476
North East Lincolnshire Council,http://statistics.data.gov.uk/id/local-authority/00FC),Chief Executive,Ad Joint Delivery,Human Resources,Communications And Computing,Computer S/Ware - Maintenance,LF102,12/05/2016,408944,3348.68,REVENUE,MIDLAND SOFTWARE LTD,102633
North East Lincolnshire Council,http://statistics.data.gov.uk/id/local-authority/00FC),Chief Executive,Ad Joint Delivery,Human Resources,Miscellaneous Expenses,Legal Fees - General,LL103,05/05/2016,407937,250,REVENUE,BG SOLICITORS LLP,100514
North East Lincolnshire Council,http://statistics.data.gov.uk/id/local-authority/00FC),Chief Executive,Ad Joint Delivery,Human Resources,Miscellaneous Expenses,Legal Fees - General,LL103,05/05/2016,407936,250,REVENUE,DLG LEGAL SERVICES LTD,133808
North East Lincolnshire Council,http://statistics.data.gov.uk/id/local-authority/00FC),Chief Executive,Ad Joint Delivery,Human Resources,Miscellaneous Expenses,Legal Fees - General,LL103,10/05/2016,408571,350,REVENUE,THOMPSONS SOLICITORS,101854
North East Lincolnshire Council,http://statistics.data.gov.uk/id/local-authority/00FC),Chief Executive,Ad Joint Delivery,Human Resources,Miscellaneous Expenses,Legal Fees - General,LL103,10/05/2016,408749,350,REVENUE,BG SOLICITORS LLP,100514
North East Lincolnshire Council,http://statistics.data.gov.uk/id/local-authority/00FC),Chief Executive,Ad Joint Delivery,Human Resources,Miscellaneous Expenses,Legal Fees - General,LL103,10/05/2016,408751,350,REVENUE,THOMPSONS SOLICITORS,101854
North East Lincolnshire Council,http://statistics.data.gov.uk/id/local-authority/00FC),Chief Executive,Ad Joint Delivery,Human Resources,Miscellaneous Expenses,Legal Fees - General,LL103,10/05/2016,408779,250,REVENUE,JOHN BARKERS SOLICITORS,100928
North East Lincolnshire Council,http://statistics.data.gov.uk/id/local-authority/00FC),Chief Executive,Ad Joint Delivery,Human Resources,Consultancy,Consultancy,PL101,24/05/2016,410730,299.4,REVENUE,PHASE 3 CONSULTING LTD,129793
North East Lincolnshire Council,http://statistics.data.gov.uk/id/local-authority/00FC),Chief Executive,Ad Joint Delivery,Central Commissioning & Delive,Catering,Provisions,LB101,12/05/2016,408950,7054.83,REVENUE,DAIRY CREST LTD,101743
North East Lincolnshire Council,http://statistics.data.gov.uk/id/local-authority/00FC),Chief Executive,Ad Joint Delivery,Central Commissioning & Delive,Catering,Provisions,LB101,31/05/2016,411180,8443.55,REVENUE,DAIRY CREST LTD,101743
North East Lincolnshire Council,http://statistics.data.gov.uk/id/local-authority/00FC),Chief Executive,Ad Joint Delivery,Central Commissioning & Delive,Catering,Purchase School Meals,LB103,24/05/2016,411186,21193.2,REVENUE,CYGNET CATERING,108880
North East Lincolnshire Council,http://statistics.data.gov.uk/id/local-authority/00FC),Chief Executive,Ad Joint Delivery,Central Commissioning & Delive,Catering,Purchase School Meals,LB103,24/05/2016,411187,109392.8,REVENUE,CYGNET CATERING,108880
North East Lincolnshire Council,http://statistics.data.gov.uk/id/local-authority/00FC),Chief Executive,Ad Joint Delivery,Central Commissioning & Delive,Private Contractors,Contract Payments,PH105,10/05/2016,408599,4100.18,REVENUE,MATRIX SCM LTD,108117
North East Lincolnshire Council,http://statistics.data.gov.uk/id/local-authority/00FC),Chief Executive,Ad Joint Delivery,Central Commissioning & Delive,Private Contractors,Contract Payments,PH105,31/05/2016,412638,14249.11,REVENUE,MATRIX SCM LTD,108117
North East Lincolnshire Council,http://statistics.data.gov.uk/id/local-authority/00FC),Chief Executive,Ad Joint Delivery,Central Commissioning & Delive,Private Contractors,Contract Payments,PH105,31/05/2016,412640,10442.26,REVENUE,MATRIX SCM LTD,108117
North East Lincolnshire Council,http://statistics.data.gov.uk/id/local-authority/00FC),Chief Executive,Ad Joint Delivery,Central Commissioning & Delive,Private Contractors,Contract Payments,PH105,31/05/2016,412663,2840.94,REVENUE,MATRIX SCM LTD,108117
North East Lincolnshire Council,http://statistics.data.gov.uk/id/local-authority/00FC),Chief Executive,Ad Joint Delivery,Central Commissioning & Delive,Private Contractors,Contract Payments,PH105,31/05/2016,412664,12250.77,REVENUE,MATRIX SCM LTD,108117
North East Lincolnshire Council,http://statistics.data.gov.uk/id/local-authority/00FC),Chief Executive,Ad Joint Delivery,Central Commissioning & Delive,Private Contractors,Contract Payments,PH105,31/05/2016,412665,8859.49,REVENUE,MATRIX SCM LTD,108117
North East Lincolnshire Council,http://statistics.data.gov.uk/id/local-authority/00FC),Chief Executive,Ad Joint Delivery,Communications And Marketing,Equip / Furniture / Materials,Equipment - Purchase,LA101,23/05/2016,409845,329.76,REVENUE,ELLIOTT BAXTER & COMPANY LIMITED,101996
North East Lincolnshire Council,http://statistics.data.gov.uk/id/local-authority/00FC),Chief Executive,Ad Joint Delivery,Communications And Marketing,Equip / Furniture / Materials,Equipment - Purchase,LA101,23/05/2016,409919,600,REVENUE,ELLIOTT BAXTER & COMPANY LIMITED,101996
North East Lincolnshire Council,http://statistics.data.gov.uk/id/local-authority/00FC),Chief Executive,Ad Joint Delivery,Communications And Marketing,Equip / Furniture / Materials,Equipment - Purchase,LA101,26/05/2016,411333,1800,REVENUE,WATKISS AUTOMATION SALES LTD,101807
North East Lincolnshire Council,http://statistics.data.gov.uk/id/local-authority/00FC),Chief Executive,Ad Joint Delivery,Communications And Marketing,Print Stationery / Gen Off Exp,Photocopier - Acquistion,LD101,19/05/2016,409913,760,REVENUE,UNITED CARLTON OFFICE SYSTEMS LTD,101652
North East Lincolnshire Council,http://statistics.data.gov.uk/id/local-authority/00FC),Chief Executive,Ad Joint Delivery,Communications And Marketing,Private Contractors,Third Party Prov - Private,PH101,05/05/2016,407201,268,REVENUE,HOUND ENVELOPES LTD,110120
North East Lincolnshire Council,http://statistics.data.gov.uk/id/local-authority/00FC),Chief Executive,Ad Joint Delivery,Communications And Marketing,Private Contractors,Third Party Prov - Private,PH101,09/05/2016,406687,255,REVENUE,SYSTEMATIC PRINT MANAGEMENT LTD,101147
North East Lincolnshire Council,http://statistics.data.gov.uk/id/local-authority/00FC),Chief Executive,Ad Joint Delivery,Communications And Marketing,Private Contractors,Third Party Prov - Private,PH101,23/05/2016,410249,450,REVENUE,SYSTEMATIC PRINT MANAGEMENT LTD,101147
North East Lincolnshire Council,http://statistics.data.gov.uk/id/local-authority/00FC),Chief Executive,Ad Joint Delivery,Communications And Marketing,Private Contractors,Third Party Prov - Private,PH101,16/05/2016,408954,267,REVENUE,HOUND ENVELOPES LTD,110120
North East Lincolnshire Council,http://statistics.data.gov.uk/id/local-authority/00FC),Chief Executive,Ad Joint Delivery,Communications And Marketing,Private Contractors,Third Party Prov - Private,PH101,23/05/2016,410250,575.84,REVENUE,TOTAL SIGNS AND GRAPHICS LTD,104775
North East Lincolnshire Council,http://statistics.data.gov.uk/id/local-authority/00FC),Chief Executive,Ad Joint Delivery,Communications And Marketing,Direct Employee Expenses,Agency Staff,EA105,12/05/2016,409438,3200,REVENUE,WALTON MEDIA LTD,126989
North East Lincolnshire Council,http://statistics.data.gov.uk/id/local-authority/00FC),Chief Executive,Ad Joint Delivery,Communications And Marketing,Equip / Furniture / Materials,Books,LA121,19/05/2016,410507,445,REVENUE,PARTNERSHIP MEDIA GROUP LTD,101546
North East Lincolnshire Council,http://statistics.data.gov.uk/id/local-authority/00FC),Chief Executive,Ad Joint Delivery,Communications And Marketing,Print Stationery / Gen Off Exp,Printing And Stationery,LD103,23/05/2016,408200,1500,REVENUE,CLEETHORPES CHRONICLE,102013
North East Lincolnshire Council,http://statistics.data.gov.uk/id/local-authority/00FC),Chief Executive,Ad Joint Delivery,Communications And Marketing,Grants And Subscriptions,Subscriptions,LJ101,26/05/2016,412103,250,REVENUE,LG COMMUNICATIONS,119708
North East Lincolnshire Council,http://statistics.data.gov.uk/id/local-authority/00FC),Chief Executive,Ad Joint Delivery,Bus Support & Customer Serv,Print Stationery / Gen Off Exp,Printing And Stationery,LD103,23/05/2016,404686,-1.89,REVENUE,LYRECO UK LIMITED,101120
North East Lincolnshire Council,http://statistics.data.gov.uk/id/local-authority/00FC),Chief Executive,Ad Joint Delivery,Bus Support & Customer Serv,Print Stationery / Gen Off Exp,Printing And Stationery,LD103,31/05/2016,412208,315,REVENUE,Q-MATIC UK LIMITED,100975
North East Lincolnshire Council,http://statistics.data.gov.uk/id/local-authority/00FC),Chief Executive,Ad Joint Delivery,Bus Support & Customer Serv,Print Stationery / Gen Off Exp,Printing And Stationery,LD103,23/05/2016,404720,500.76,REVENUE,LYRECO UK LIMITED,101120
North East Lincolnshire Council,http://statistics.data.gov.uk/id/local-authority/00FC),Chief Executive,Ad Joint Delivery,Bus Support & Customer Serv,Print Stationery / Gen Off Exp,Printing And Stationery,LD103,12/05/2016,408961,348.7,REVENUE,LYRECO UK LIMITED,101120
North East Lincolnshire Council,http://statistics.data.gov.uk/id/local-authority/00FC),Chief Executive,Ad Joint Delivery,Bus Support & Customer Serv,Equip / Furniture / Materials,Goods For Resale,LA123,23/05/2016,409918,1008.8,REVENUE,NORTHGATE PUBLIC SERVICES (UK) LTD,101841
North East Lincolnshire Council,http://statistics.data.gov.uk/id/local-authority/00FC),Chief Executive,Ad Joint Delivery,Bus Support & Customer Serv,Private Contractors,External Security Services,PH103,31/05/2016,411253,464.51,REVENUE,G4S CASH SERVICES (UK) LIMITED,100952
North East Lincolnshire Council,http://statistics.data.gov.uk/id/local-authority/00FC),Chief Executive,Ad Joint Delivery,Bus Support & Customer Serv,Private Contractors,External Security Services,PH103,19/05/2016,410735,289.94,REVENUE,ALLPAY LIMITED,112919
North East Lincolnshire Council,http://statistics.data.gov.uk/id/local-authority/00FC),Chief Executive,Ad Joint Delivery,Bus Support & Customer Serv,Private Contractors,External Security Services,PH103,19/05/2016,410739,5064.25,REVENUE,ALLPAY LIMITED,112919
North East Lincolnshire Council,http://statistics.data.gov.uk/id/local-authority/00FC),Chief Executive,Ad Joint Delivery,Bus Support & Customer Serv,Communications And Computing,Postage,LF111,05/05/2016,407842,3383.41,REVENUE,ROYAL MAIL GROUP PLC,101082
North East Lincolnshire Council,http://statistics.data.gov.uk/id/local-authority/00FC),Chief Executive,Ad Joint Delivery,Bus Support & Customer Serv,Communications And Computing,Postage,LF111,10/05/2016,408784,1783.31,REVENUE,ROYAL MAIL GROUP PLC,101082
North East Lincolnshire Council,http://statistics.data.gov.uk/id/local-authority/00FC),Chief Executive,Ad Joint Delivery,Bus Support & Customer Serv,Communications And Computing,Postage,LF111,23/05/2016,410299,282.78,REVENUE,ROYAL MAIL GROUP PLC,101082
North East Lincolnshire Council,http://statistics.data.gov.uk/id/local-authority/00FC),Chief Executive,Ad Joint Delivery,Bus Support & Customer Serv,Communications And Computing,Postage,LF111,05/05/2016,408205,299.92,REVENUE,ROYAL MAIL GROUP PLC,101082
North East Lincolnshire Council,http://statistics.data.gov.uk/id/local-authority/00FC),Chief Executive,Ad Joint Delivery,Bus Support & Customer Serv,Print Stationery / Gen Off Exp,Photocopier - Running Costs,LD102,23/05/2016,410768,297.78,REVENUE,UNITED CARLTON OFFICE SYSTEMS LTD,101652
North East Lincolnshire Council,http://statistics.data.gov.uk/id/local-authority/00FC),Chief Executive,Ad Joint Delivery,Bus Support & Customer Serv,Print Stationery / Gen Off Exp,Photocopier - Running Costs,LD102,23/05/2016,410766,406.85,REVENUE,UNITED CARLTON OFFICE SYSTEMS LTD,101652
North East Lincolnshire Council,http://statistics.data.gov.uk/id/local-authority/00FC),Chief Executive,Ad Joint Delivery,Bus Support & Customer Serv,Print Stationery / Gen Off Exp,Printing And Stationery,LD103,23/05/2016,410770,372.97,REVENUE,UNITED CARLTON OFFICE SYSTEMS LTD,101652
North East Lincolnshire Council,http://statistics.data.gov.uk/id/local-authority/00FC),Chief Executive,Ad Joint Delivery,Bus Support & Customer Serv,Print Stationery / Gen Off Exp,Printing And Stationery,LD103,23/05/2016,410768,285.39,REVENUE,UNITED CARLTON OFFICE SYSTEMS LTD,101652
North East Lincolnshire Council,http://statistics.data.gov.uk/id/local-authority/00FC),Chief Executive,Ad Governance And Democracy,Democratic Services & Scrutiny,Private Contractors,Third Party Prov - Private,PH101,31/05/2016,412217,2490,REVENUE,HARVERLEA CONSULTING LTD,105303
North East Lincolnshire Council,http://statistics.data.gov.uk/id/local-authority/00FC),Chief Executive,Ad Governance And Democracy,Registrars & Civic Services,Clothes Uniforms And Laundry,Uniforms,LC102,26/05/2016,412076,-45.04,REVENUE,ARCO LTD,100509
North East Lincolnshire Council,http://statistics.data.gov.uk/id/local-authority/00FC),Chief Executive,Ad Governance And Democracy,Elections & Complaints,Print Stationery / Gen Off Exp,Printing And Stationery,LD103,05/05/2016,407893,975.15,REVENUE,PRINT IMAGE NETWORK LTD,103724
North East Lincolnshire Council,http://statistics.data.gov.uk/id/local-authority/00FC),Chief Executive,Ad Governance And Democracy,Elections & Complaints,Communications And Computing,Computer H/Ware - Maintenance,LF106,31/05/2016,411453,384,REVENUE,TWOFOLD MAILING LTD,105163
North East Lincolnshire Council,http://statistics.data.gov.uk/id/local-authority/00FC),Chief Executive,Ad Governance And Democracy,Elections & Complaints,Communications And Computing,Computer H/Ware - Purchases,LF105,05/05/2016,407906,4138.95,REVENUE,HALAROSE LIMITED,101974
North East Lincolnshire Council,http://statistics.data.gov.uk/id/local-authority/00FC),Chief Executive,Ad Governance And Democracy,Elections & Complaints,Contract Hire-Operating Leases,Vehicles - Contract Hire,JC101,17/05/2016,408247,300,REVENUE,M G COACHES LIMITED,101250
North East Lincolnshire Council,http://statistics.data.gov.uk/id/local-authority/00FC),Chief Executive,Ad Governance And Democracy,Elections & Complaints,Print Stationery / Gen Off Exp,Printing And Stationery,LD103,05/05/2016,407894,1955.1,REVENUE,SHAW & SONS LTD,100561
North East Lincolnshire Council,http://statistics.data.gov.uk/id/local-authority/00FC),Chief Executive,Ad Governance And Democracy,Elections & Complaints,Print Stationery / Gen Off Exp,Printing And Stationery,LD103,10/05/2016,408662,336,REVENUE,SHAW & SONS LTD,100561
North East Lincolnshire Council,http://statistics.data.gov.uk/id/local-authority/00FC),Chief Executive,Ad Governance And Democracy,Elections & Complaints,Print Stationery / Gen Off Exp,Printing And Stationery,LD103,31/05/2016,411455,505.2,REVENUE,PRINT IMAGE NETWORK LTD,103724
North East Lincolnshire Council,http://statistics.data.gov.uk/id/local-authority/00FC),Chief Executive,Ad Governance And Democracy,Elections & Complaints,Print Stationery / Gen Off Exp,Printing And Stationery,LD103,31/05/2016,411456,474.2,REVENUE,PRINT IMAGE NETWORK LTD,103724
North East Lincolnshire Council,http://statistics.data.gov.uk/id/local-authority/00FC),Chief Executive,Ad Governance And Democracy,Elections & Complaints,Communications And Computing,Postage,LF111,31/05/2016,411644,6316.3,REVENUE,ROYAL MAIL GROUP PLC,101082
North East Lincolnshire Council,http://statistics.data.gov.uk/id/local-authority/00FC),Chief Executive,Ad Governance And Democracy,Elections & Complaints,Communications And Computing,Postage,LF111,19/05/2016,410460,600.58,REVENUE,PRINT IMAGE FACILITIES LLP,125574
North East Lincolnshire Council,http://statistics.data.gov.uk/id/local-authority/00FC),Chief Executive,Ad Governance And Democracy,Elections & Complaints,Communications And Computing,Postage,LF111,31/05/2016,411457,14836.64,REVENUE,ROYAL MAIL GROUP PLC,101082
North East Lincolnshire Council,http://statistics.data.gov.uk/id/local-authority/00FC),Chief Executive,Ad Governance And Democracy,Elections & Complaints,Communications And Computing,Postage,LF111,19/05/2016,410462,635.85,REVENUE,PRINT IMAGE FACILITIES LLP,125574
North East Lincolnshire Council,http://statistics.data.gov.uk/id/local-authority/00FC),Chief Executive,Ad Governance And Democracy,Elections & Complaints,Communications And Computing,Postage,LF111,26/05/2016,412249,2170.36,REVENUE,PRINT IMAGE FACILITIES LLP,125574
North East Lincolnshire Council,http://statistics.data.gov.uk/id/local-authority/00FC),Chief Executive,Ad Governance And Democracy,Elections & Complaints,Miscellaneous Expenses,Other Expenses General,LL119,31/05/2016,411454,12032.5,REVENUE,W R CULLUM,100811
North East Lincolnshire Council,http://statistics.data.gov.uk/id/local-authority/00FC),Chief Executive,Ad Law,Coroners,Rents,Room Hire,GC103,23/05/2016,410324,1085,REVENUE,CLEETHORPES CHARTER TRUSTEES,101604
North East Lincolnshire Council,http://statistics.data.gov.uk/id/local-authority/00FC),Chief Executive,Ad Law,Coroners,Other Agencies,Mortuary Storage Charges,PJ156,10/05/2016,408659,7722,REVENUE,N LINCS & GOOLE HOSPITALS NHS,111074
North East Lincolnshire Council,http://statistics.data.gov.uk/id/local-authority/00FC),Chief Executive,Ad Law,Coroners,Other Agencies,Mortuary Storage Charges,PJ156,10/05/2016,408658,6459,REVENUE,N LINCS & GOOLE HOSPITALS NHS,111074
North East Lincolnshire Council,http://statistics.data.gov.uk/id/local-authority/00FC),Chief Executive,Ad Law,Coroners,Other Agencies,Post Mortems,PJ148,10/05/2016,408757,3126.7,REVENUE,UNIVERSITY HOSPITALS OF LEICESTER NHS TRUST,107238
North East Lincolnshire Council,http://statistics.data.gov.uk/id/local-authority/00FC),Chief Executive,Ad Law,Coroners,Other Agencies,Post Mortems,PJ148,10/05/2016,408790,580.8,REVENUE,REDACTED PERSONAL INFORMATION,REDACTED PERSONAL INFORMATION
North East Lincolnshire Council,http://statistics.data.gov.uk/id/local-authority/00FC),Chief Executive,Ad Law,Coroners,Other Agencies,Post Mortems,PJ148,10/05/2016,408791,320,REVENUE,M SHEPPARD PATHOLOGY LIMITED,107815
North East Lincolnshire Council,http://statistics.data.gov.uk/id/local-authority/00FC),Chief Executive,Ad Law,Coroners,Other Agencies,Post Mortems,PJ148,23/05/2016,411168,276.9,REVENUE,REDACTED PERSONAL INFORMATION,REDACTED PERSONAL INFORMATION
North East Lincolnshire Council,http://statistics.data.gov.uk/id/local-authority/00FC),Chief Executive,Ad Law,Coroners,Other Agencies,Post Mortems,PJ148,10/05/2016,408758,1270.2,REVENUE,REDACTED PERSONAL INFORMATION,REDACTED PERSONAL INFORMATION
North East Lincolnshire Council,http://statistics.data.gov.uk/id/local-authority/00FC),Chief Executive,Ad Law,Coroners,Other Agencies,Post Mortems,PJ148,23/05/2016,410322,591.9,REVENUE,REDACTED PERSONAL INFORMATION,REDACTED PERSONAL INFORMATION
North East Lincolnshire Council,http://statistics.data.gov.uk/id/local-authority/00FC),Chief Executive,Ad Law,Coroners,Other Agencies,Post Mortems,PJ148,23/05/2016,410608,1600.2,REVENUE,REDACTED PERSONAL INFORMATION,REDACTED PERSONAL INFORMATION
North East Lincolnshire Council,http://statistics.data.gov.uk/id/local-authority/00FC),Chief Executive,Ad Law,Coroners,Other Agencies,Post Mortems,PJ148,23/05/2016,410563,1839.2,REVENUE,REDACTED PERSONAL INFORMATION,REDACTED PERSONAL INFORMATION
North East Lincolnshire Council,http://statistics.data.gov.uk/id/local-authority/00FC),Chief Executive,Ad Law,Legal Services,Communications And Computing,Postage,LF111,10/05/2016,408692,3604.93,REVENUE,DX NETWORK SERVICES LTD,101576
North East Lincolnshire Council,http://statistics.data.gov.uk/id/local-authority/00FC),Chief Executive,Ad Law,Legal Services,Grants And Subscriptions,Subscriptions,LJ101,16/05/2016,409509,6934,REVENUE,THOMSON REUTERS,110059
North East Lincolnshire Council,http://statistics.data.gov.uk/id/local-authority/00FC),Chief Executive,Ad Law,Legal Services,Grants And Subscriptions,Subscriptions,LJ101,16/05/2016,409510,7166,REVENUE,THOMSON REUTERS,110059
North East Lincolnshire Council,http://statistics.data.gov.uk/id/local-authority/00FC),Chief Executive,Ad Law,Legal Services,Consultancy,Consultancy,PL101,05/05/2016,407885,11650,REVENUE,SLR CONSULTING LTD,129190
North East Lincolnshire Council,http://statistics.data.gov.uk/id/local-authority/00FC),Chief Executive,Ad Law,Legal Services,Consultancy,Consultancy,PL101,12/05/2016,408321,2731,REVENUE,BOND DICKINSON LLP,121775
North East Lincolnshire Council,http://statistics.data.gov.uk/id/local-authority/00FC),Chief Executive,Ad Law,Legal Services,Consultancy,Consultancy,PL101,19/05/2016,410222,2388,REVENUE,BOND DICKINSON LLP,121775
North East Lincolnshire Council,http://statistics.data.gov.uk/id/local-authority/00FC),Chief Executive,Ad Law,Legal Services,Grants And Subscriptions,Subscriptions,LJ101,10/05/2016,406445,6000,REVENUE,ENGIE SERVICES LTD,133267
North East Lincolnshire Council,http://statistics.data.gov.uk/id/local-authority/00FC),Chief Executive,Ad Law,Legal Services,Grants And Subscriptions,Subscriptions,LJ101,09/05/2016,407779,29491.1,REVENUE,LOCAL GOVERNMENT ASSOCIATION,101113
North East Lincolnshire Council,http://statistics.data.gov.uk/id/local-authority/00FC),Chief Executive,Ad Law,Legal Services,Miscellaneous Expenses,Legal Fees - General,LL103,05/05/2016,405824,800,REVENUE,WILBERFORCE CHAMBERS,122641
North East Lincolnshire Council,http://statistics.data.gov.uk/id/local-authority/00FC),Chief Executive,Ad Law,Legal Services,Miscellaneous Expenses,Legal Fees - General,LL103,05/05/2016,407860,352.5,REVENUE,DR ELLIS MOSLEY,104893
North East Lincolnshire Council,http://statistics.data.gov.uk/id/local-authority/00FC),Chief Executive,Ad Law,Legal Services,Miscellaneous Expenses,Legal Fees - General,LL103,05/05/2016,407859,1480,REVENUE,BATES & MOUNTAIN SOLICITORS,104183
North East Lincolnshire Council,http://statistics.data.gov.uk/id/local-authority/00FC),Chief Executive,Ad Law,Legal Services,Miscellaneous Expenses,Legal Fees - General,LL103,05/05/2016,407858,476.5,REVENUE,WILKIN CHAPMAN LLP,110675
North East Lincolnshire Council,http://statistics.data.gov.uk/id/local-authority/00FC),Chief Executive,Ad Law,Legal Services,Miscellaneous Expenses,Legal Fees - General,LL103,05/05/2016,407862,500,REVENUE,BRIDGE MCFARLAND,113665
North East Lincolnshire Council,http://statistics.data.gov.uk/id/local-authority/00FC),Chief Executive,Ad Law,Legal Services,Miscellaneous Expenses,Legal Fees - General,LL103,05/05/2016,407849,360.5,REVENUE,BG SOLICITORS LLP,100514
North East Lincolnshire Council,http://statistics.data.gov.uk/id/local-authority/00FC),Chief Executive,Ad Law,Legal Services,Miscellaneous Expenses,Legal Fees - General,LL103,05/05/2016,407878,793.37,REVENUE,CARTER BROWN THE EXPERT SERVICE,106320
North East Lincolnshire Council,http://statistics.data.gov.uk/id/local-authority/00FC),Chief Executive,Ad Law,Legal Services,Miscellaneous Expenses,Legal Fees - General,LL103,12/05/2016,408824,1839.77,REVENUE,LIZ HALL LTD,120213
North East Lincolnshire Council,http://statistics.data.gov.uk/id/local-authority/00FC),Chief Executive,Ad Law,Legal Services,Miscellaneous Expenses,Legal Fees - General,LL103,05/05/2016,407881,250,REVENUE,BURTON AND DYSON SOLICITORS,111298
North East Lincolnshire Council,http://statistics.data.gov.uk/id/local-authority/00FC),Chief Executive,Ad Law,Legal Services,Miscellaneous Expenses,Legal Fees - General,LL103,16/05/2016,409833,333.54,REVENUE,J L HARPHAM LTD,112780
North East Lincolnshire Council,http://statistics.data.gov.uk/id/local-authority/00FC),Chief Executive,Ad Law,Legal Services,Miscellaneous Expenses,Legal Fees - General,LL103,26/05/2016,411989,800,REVENUE,SARAH FEARON,131819
North East Lincolnshire Council,http://statistics.data.gov.uk/id/local-authority/00FC),Chief Executive,Ad Law,Legal Services,Miscellaneous Expenses,Legal Fees - General,LL103,26/05/2016,411984,280,REVENUE,MR MICHAEL S BURDON,104432
North East Lincolnshire Council,http://statistics.data.gov.uk/id/local-authority/00FC),Chief Executive,Ad Law,Legal Services,Miscellaneous Expenses,Legal Fees - General,LL103,26/05/2016,412010,280.16,REVENUE,JOHN BARKERS SOLICITORS,100928
North East Lincolnshire Council,http://statistics.data.gov.uk/id/local-authority/00FC),Chief Executive,Ad Law,Legal Services,Miscellaneous Expenses,Legal Fees - General,LL103,26/05/2016,411983,420,REVENUE,MR MICHAEL S BURDON,104432
North East Lincolnshire Council,http://statistics.data.gov.uk/id/local-authority/00FC),Chief Executive,Ad Law,Legal Services,Miscellaneous Expenses,Legal Fees - General,LL103,26/05/2016,411982,369.33,REVENUE,DAVID BRIGGS ASSOCIATES LTD,108259
North East Lincolnshire Council,http://statistics.data.gov.uk/id/local-authority/00FC),Chief Executive,Ad Law,Legal Services,Miscellaneous Expenses,Legal Fees - General,LL103,26/05/2016,411957,646.04,REVENUE,J L HARPHAM LTD,112780
North East Lincolnshire Council,http://statistics.data.gov.uk/id/local-authority/00FC),Chief Executive,Ad Law,Legal Services,Miscellaneous Expenses,Legal Fees - General,LL103,26/05/2016,411961,250.53,REVENUE,J L HARPHAM LTD,112780
North East Lincolnshire Council,http://statistics.data.gov.uk/id/local-authority/00FC),Chief Executive,Ad Law,Legal Services,Miscellaneous Expenses,Legal Fees - General,LL103,26/05/2016,411977,560,REVENUE,MR MICHAEL S BURDON,104432
North East Lincolnshire Council,http://statistics.data.gov.uk/id/local-authority/00FC),Chief Executive,Ad Law,Legal Services,Miscellaneous Expenses,Legal Fees - General,LL103,26/05/2016,411976,600,REVENUE,MR ANDREW COMAISH,133755
North East Lincolnshire Council,http://statistics.data.gov.uk/id/local-authority/00FC),Chief Executive,Ad Law,Legal Services,Miscellaneous Expenses,Legal Fees - General,LL103,26/05/2016,411950,789.48,REVENUE,J L HARPHAM LTD,112780
North East Lincolnshire Council,http://statistics.data.gov.uk/id/local-authority/00FC),Chief Executive,Ad Law,Legal Services,Miscellaneous Expenses,Legal Fees - General,LL103,26/05/2016,411947,302.94,REVENUE,J L HARPHAM LTD,112780
North East Lincolnshire Council,http://statistics.data.gov.uk/id/local-authority/00FC),Chief Executive,Ad Law,Legal Services,Miscellaneous Expenses,Legal Fees - General,LL103,26/05/2016,411975,337.5,REVENUE,DR JOHN SOMERS,119272
North East Lincolnshire Council,http://statistics.data.gov.uk/id/local-authority/00FC),Chief Executive,Ad Law,Legal Services,Miscellaneous Expenses,Legal Fees - General,LL103,26/05/2016,411979,270,REVENUE,DR JOHN SOMERS,119272
North East Lincolnshire Council,http://statistics.data.gov.uk/id/local-authority/00FC),Deputy Chief Executive,Ad Environment,Safer Communities P/Ship,Voluntary Associations,Third Pp - Third Sector,PF101,31/05/2016,412204,7500,REVENUE,GRIMSBY & SCUNTHORPE RAPE CRISIS,102472
North East Lincolnshire Council,http://statistics.data.gov.uk/id/local-authority/00FC),Deputy Chief Executive,Ad Environment,Safer Communities P/Ship,Voluntary Associations,Third Pp - Third Sector,PF101,31/05/2016,412204,34500,REVENUE,GRIMSBY & SCUNTHORPE RAPE CRISIS,102472
North East Lincolnshire Council,http://statistics.data.gov.uk/id/local-authority/00FC),Deputy Chief Executive,Ad Environment,Cemeteries & Crematorium,Rep Alterations Maint Building,Buildings - Repairs And Maint,GA102,24/05/2016,411159,912.33,REVENUE,ENGIE SERVICES LTD,133267
North East Lincolnshire Council,http://statistics.data.gov.uk/id/local-authority/00FC),Deputy Chief Executive,Ad Environment,Cemeteries & Crematorium,Rep Alterations Maint Building,Buildings - Repairs And Maint,GA102,24/05/2016,411159,1563.93,REVENUE,ENGIE SERVICES LTD,133267
North East Lincolnshire Council,http://statistics.data.gov.uk/id/local-authority/00FC),Deputy Chief Executive,Ad Environment,Cemeteries & Crematorium,Rep Alterations Maint Building,Buildings - Repairs And Maint,GA102,24/05/2016,411159,1395,REVENUE,ENGIE SERVICES LTD,133267
North East Lincolnshire Council,http://statistics.data.gov.uk/id/local-authority/00FC),Deputy Chief Executive,Ad Environment,Cemeteries & Crematorium,Grounds Maintenance Costs,Grounds Maintenance,GJ101,05/05/2016,406356,500,REVENUE,DEREK COMMANDER,128309
North East Lincolnshire Council,http://statistics.data.gov.uk/id/local-authority/00FC),Deputy Chief Executive,Ad Environment,Cemeteries & Crematorium,Equip / Furniture / Materials,Furniture - Purchase,LA105,10/05/2016,408679,3380,REVENUE,CROSSKILLS,102383
North East Lincolnshire Council,http://statistics.data.gov.uk/id/local-authority/00FC),Deputy Chief Executive,Ad Environment,Cemeteries & Crematorium,Rep Alterations Maint Building,Buildings - Repairs And Maint,GA102,24/05/2016,411159,2520,REVENUE,ENGIE SERVICES LTD,133267
North East Lincolnshire Council,http://statistics.data.gov.uk/id/local-authority/00FC),Deputy Chief Executive,Ad Environment,Cemeteries & Crematorium,Rep Alterations Maint Building,Buildings - Repairs And Maint,GA102,24/05/2016,411159,6385.42,REVENUE,ENGIE SERVICES LTD,133267
North East Lincolnshire Council,http://statistics.data.gov.uk/id/local-authority/00FC),Deputy Chief Executive,Ad Environment,Cemeteries & Crematorium,Grounds Maintenance Costs,Grounds Maintenance,GJ101,16/05/2016,408948,12240,REVENUE,GLASDON UK LTD,100531
North East Lincolnshire Council,http://statistics.data.gov.uk/id/local-authority/00FC),Deputy Chief Executive,Ad Environment,Cemeteries & Crematorium,Grounds Maintenance Costs,Grounds Maintenance,GJ101,24/05/2016,409869,1567,REVENUE,SOS SUPPLIES (T/A AWARD CRAFTERS LTD),125502
North East Lincolnshire Council,http://statistics.data.gov.uk/id/local-authority/00FC),Deputy Chief Executive,Ad Environment,Cemeteries & Crematorium,Equip / Furniture / Materials,Equipment - Maintenance,LA104,26/05/2016,411935,7550,REVENUE,DECEASED ONLINE LTD,131030
North East Lincolnshire Council,http://statistics.data.gov.uk/id/local-authority/00FC),Deputy Chief Executive,Ad Environment,Cemeteries & Crematorium,Equip / Furniture / Materials,Equipment - Maintenance,LA104,31/05/2016,411160,11775.93,REVENUE,FACULTATIEVE TECHNOLOGIES LTD,101165
North East Lincolnshire Council,http://statistics.data.gov.uk/id/local-authority/00FC),Deputy Chief Executive,Ad Environment,Cemeteries & Crematorium,Equip / Furniture / Materials,Equipment - Purchase,LA101,23/05/2016,410288,2060,REVENUE,S P DAVIS MEMORIALS LIMITED,130000
North East Lincolnshire Council,http://statistics.data.gov.uk/id/local-authority/00FC),Deputy Chief Executive,Ad Environment,Cemeteries & Crematorium,Equip / Furniture / Materials,Equipment - Purchase,LA101,12/05/2016,408349,490,REVENUE,S P DAVIS MEMORIALS LIMITED,130000
North East Lincolnshire Council,http://statistics.data.gov.uk/id/local-authority/00FC),Deputy Chief Executive,Ad Environment,Cemeteries & Crematorium,Equip / Furniture / Materials,Equipment - Purchase,LA101,10/05/2016,407940,522,REVENUE,S P DAVIS MEMORIALS LIMITED,130000
North East Lincolnshire Council,http://statistics.data.gov.uk/id/local-authority/00FC),Deputy Chief Executive,Ad Environment,Cemeteries & Crematorium,Equip / Furniture / Materials,Equipment - Purchase,LA101,12/05/2016,408348,380,REVENUE,S P DAVIS MEMORIALS LIMITED,130000
North East Lincolnshire Council,http://statistics.data.gov.uk/id/local-authority/00FC),Deputy Chief Executive,Ad Environment,Cemeteries & Crematorium,Equip / Furniture / Materials,Equipment - Purchase,LA101,05/05/2016,407946,639,REVENUE,S P DAVIS MEMORIALS LIMITED,130000
North East Lincolnshire Council,http://statistics.data.gov.uk/id/local-authority/00FC),Deputy Chief Executive,Ad Environment,Cemeteries & Crematorium,Equip / Furniture / Materials,Equipment - Purchase,LA101,05/05/2016,406003,350,REVENUE,THE COLUMBARIA COMPANY,100621
North East Lincolnshire Council,http://statistics.data.gov.uk/id/local-authority/00FC),Deputy Chief Executive,Ad Environment,Cemeteries & Crematorium,Equip / Furniture / Materials,Equipment - Purchase,LA101,19/05/2016,410028,415,REVENUE,THE COLUMBARIA COMPANY,100621
North East Lincolnshire Council,http://statistics.data.gov.uk/id/local-authority/00FC),Deputy Chief Executive,Ad Environment,Cemeteries & Crematorium,Equip / Furniture / Materials,Equipment - Purchase,LA101,10/05/2016,408540,441,REVENUE,S P DAVIS MEMORIALS LIMITED,130000
North East Lincolnshire Council,http://statistics.data.gov.uk/id/local-authority/00FC),Deputy Chief Executive,Ad Environment,Cemeteries & Crematorium,Equip / Furniture / Materials,Equipment - Purchase,LA101,16/05/2016,408947,346.56,REVENUE,BRIDGE INSURANCE BROKERS LTD,128411
North East Lincolnshire Council,http://statistics.data.gov.uk/id/local-authority/00FC),Deputy Chief Executive,Ad Environment,Cemeteries & Crematorium,Grants And Subscriptions,Subscriptions,LJ101,31/05/2016,412615,445,REVENUE,INSTITUTE OF CEMETERY & CREMATORIUM,101460
North East Lincolnshire Council,http://statistics.data.gov.uk/id/local-authority/00FC),Deputy Chief Executive,Ad Environment,Garage & Fleet Strategy,Direct Transport Costs,Vehicles - Repairs And Maint,JA105,12/05/2016,409429,-160,REVENUE,FLEET FACTORS LTD,100886
North East Lincolnshire Council,http://statistics.data.gov.uk/id/local-authority/00FC),Deputy Chief Executive,Ad Environment,Garage & Fleet Strategy,Direct Transport Costs,Vehicles - Repairs And Maint,JA105,05/05/2016,407057,3717.79,REVENUE,FLEET FACTORS LTD,100886
North East Lincolnshire Council,http://statistics.data.gov.uk/id/local-authority/00FC),Deputy Chief Executive,Ad Environment,Garage & Fleet Strategy,Direct Transport Costs,Vehicles - Repairs And Maint,JA105,09/05/2016,408344,430.52,REVENUE,B A BUSH & SON LTD,101828
North East Lincolnshire Council,http://statistics.data.gov.uk/id/local-authority/00FC),Deputy Chief Executive,Ad Environment,Garage & Fleet Strategy,Direct Transport Costs,Vehicles - Repairs And Maint,JA105,09/05/2016,408339,520.05,REVENUE,B A BUSH & SON LTD,101828
North East Lincolnshire Council,http://statistics.data.gov.uk/id/local-authority/00FC),Deputy Chief Executive,Ad Environment,Garage & Fleet Strategy,Direct Transport Costs,Vehicles - Repairs And Maint,JA105,10/05/2016,408566,1442.56,REVENUE,FLEET FACTORS LTD,100886
North East Lincolnshire Council,http://statistics.data.gov.uk/id/local-authority/00FC),Deputy Chief Executive,Ad Environment,Garage & Fleet Strategy,Direct Transport Costs,Vehicles - Repairs And Maint,JA105,10/05/2016,408567,2730.83,REVENUE,FLEET FACTORS LTD,100886
North East Lincolnshire Council,http://statistics.data.gov.uk/id/local-authority/00FC),Deputy Chief Executive,Ad Environment,Garage & Fleet Strategy,Direct Transport Costs,Vehicles - Repairs And Maint,JA105,10/05/2016,408561,1111.03,REVENUE,FLEET FACTORS LTD,100886
North East Lincolnshire Council,http://statistics.data.gov.uk/id/local-authority/00FC),Deputy Chief Executive,Ad Environment,Garage & Fleet Strategy,Direct Transport Costs,Vehicles - Repairs And Maint,JA105,10/05/2016,408563,2684.82,REVENUE,FLEET FACTORS LTD,100886
North East Lincolnshire Council,http://statistics.data.gov.uk/id/local-authority/00FC),Deputy Chief Executive,Ad Environment,Garage & Fleet Strategy,Direct Transport Costs,Vehicles - Repairs And Maint,JA105,10/05/2016,408564,4353.37,REVENUE,FLEET FACTORS LTD,100886
North East Lincolnshire Council,http://statistics.data.gov.uk/id/local-authority/00FC),Deputy Chief Executive,Ad Environment,Garage & Fleet Strategy,Direct Transport Costs,Vehicles - Repairs And Maint,JA105,10/05/2016,408556,250,REVENUE,P J PRESTON AUTO ELECT LTD,100739
North East Lincolnshire Council,http://statistics.data.gov.uk/id/local-authority/00FC),Deputy Chief Executive,Ad Environment,Garage & Fleet Strategy,Direct Transport Costs,Vehicles - Repairs And Maint,JA105,10/05/2016,408568,380,REVENUE,RIVERSIDE TRUCK RENTAL LTD,132217
North East Lincolnshire Council,http://statistics.data.gov.uk/id/local-authority/00FC),Deputy Chief Executive,Ad Environment,Garage & Fleet Strategy,Direct Transport Costs,Vehicles - Repairs And Maint,JA105,19/05/2016,409915,510,REVENUE,RIVERSIDE TRUCK RENTAL LTD,132217
North East Lincolnshire Council,http://statistics.data.gov.uk/id/local-authority/00FC),Deputy Chief Executive,Ad Environment,Garage & Fleet Strategy,Direct Transport Costs,Vehicles - Repairs And Maint,JA105,19/05/2016,409917,2520,REVENUE,RIVERSIDE TRUCK RENTAL LTD,132217
North East Lincolnshire Council,http://statistics.data.gov.uk/id/local-authority/00FC),Deputy Chief Executive,Ad Environment,Garage & Fleet Strategy,Direct Transport Costs,Vehicles - Repairs And Maint,JA105,12/05/2016,409432,397.3,REVENUE,JOHNSTON SWEEPERS LTD,101463
North East Lincolnshire Council,http://statistics.data.gov.uk/id/local-authority/00FC),Deputy Chief Executive,Ad Environment,Garage & Fleet Strategy,Direct Transport Costs,Vehicles - Repairs And Maint,JA105,16/05/2016,409479,2976.67,REVENUE,FLEET FACTORS LTD,100886
North East Lincolnshire Council,http://statistics.data.gov.uk/id/local-authority/00FC),Deputy Chief Executive,Ad Environment,Garage & Fleet Strategy,Direct Transport Costs,Vehicles - Repairs And Maint,JA105,16/05/2016,409480,300.76,REVENUE,FLEET FACTORS LTD,100886
North East Lincolnshire Council,http://statistics.data.gov.uk/id/local-authority/00FC),Deputy Chief Executive,Ad Environment,Garage & Fleet Strategy,Direct Transport Costs,Vehicles - Repairs And Maint,JA105,23/05/2016,409481,5366.29,REVENUE,FLEET FACTORS LTD,100886
North East Lincolnshire Council,http://statistics.data.gov.uk/id/local-authority/00FC),Deputy Chief Executive,Ad Environment,Garage & Fleet Strategy,Direct Transport Costs,Vehicles - Repairs And Maint,JA105,31/05/2016,410956,-308,REVENUE,FLEET FACTORS LTD,100886
North East Lincolnshire Council,http://statistics.data.gov.uk/id/local-authority/00FC),Deputy Chief Executive,Ad Environment,Garage & Fleet Strategy,Direct Transport Costs,Vehicles - Repairs And Maint,JA105,16/05/2016,409453,430,REVENUE,B A BUSH & SON LTD,101828
North East Lincolnshire Council,http://statistics.data.gov.uk/id/local-authority/00FC),Deputy Chief Executive,Ad Environment,Garage & Fleet Strategy,Direct Transport Costs,Vehicles - Repairs And Maint,JA105,16/05/2016,409477,4045.1,REVENUE,FLEET FACTORS LTD,100886
North East Lincolnshire Council,http://statistics.data.gov.uk/id/local-authority/00FC),Deputy Chief Executive,Ad Environment,Garage & Fleet Strategy,Direct Transport Costs,Vehicles - Repairs And Maint,JA105,16/05/2016,409478,1737.02,REVENUE,FLEET FACTORS LTD,100886
North East Lincolnshire Council,http://statistics.data.gov.uk/id/local-authority/00FC),Deputy Chief Executive,Ad Environment,Garage & Fleet Strategy,Direct Transport Costs,Vehicles - Repairs And Maint,JA105,16/05/2016,409469,435.5,REVENUE,B A BUSH & SON LTD,101828
North East Lincolnshire Council,http://statistics.data.gov.uk/id/local-authority/00FC),Deputy Chief Executive,Ad Environment,Garage & Fleet Strategy,Direct Transport Costs,Vehicles - Repairs And Maint,JA105,19/05/2016,409909,845.04,REVENUE,B A BUSH & SON LTD,101828
North East Lincolnshire Council,http://statistics.data.gov.uk/id/local-authority/00FC),Deputy Chief Executive,Ad Environment,Garage & Fleet Strategy,Direct Transport Costs,Vehicles - Repairs And Maint,JA105,19/05/2016,409910,453.66,REVENUE,B A BUSH & SON LTD,101828
North East Lincolnshire Council,http://statistics.data.gov.uk/id/local-authority/00FC),Deputy Chief Executive,Ad Environment,Garage & Fleet Strategy,Direct Transport Costs,Vehicles - Repairs And Maint,JA105,19/05/2016,410033,3401.89,REVENUE,LINCOLNSHIRE MOTORS LTD,100538
North East Lincolnshire Council,http://statistics.data.gov.uk/id/local-authority/00FC),Deputy Chief Executive,Ad Environment,Garage & Fleet Strategy,Direct Transport Costs,Vehicles - Repairs And Maint,JA105,23/05/2016,410720,4298.51,REVENUE,FLEET FACTORS LTD,100886
North East Lincolnshire Council,http://statistics.data.gov.uk/id/local-authority/00FC),Deputy Chief Executive,Ad Environment,Garage & Fleet Strategy,Direct Transport Costs,Vehicles - Repairs And Maint,JA105,23/05/2016,410722,1881.02,REVENUE,FLEET FACTORS LTD,100886
North East Lincolnshire Council,http://statistics.data.gov.uk/id/local-authority/00FC),Deputy Chief Executive,Ad Environment,Garage & Fleet Strategy,Direct Transport Costs,Vehicles - Repairs And Maint,JA105,26/05/2016,412078,315,REVENUE,J W LIBERA & SON LTD,104043
North East Lincolnshire Council,http://statistics.data.gov.uk/id/local-authority/00FC),Deputy Chief Executive,Ad Environment,Garage & Fleet Strategy,Direct Transport Costs,Vehicles - Repairs And Maint,JA105,26/05/2016,412059,526.7,REVENUE,FLEET FACTORS LTD,100886
North East Lincolnshire Council,http://statistics.data.gov.uk/id/local-authority/00FC),Deputy Chief Executive,Ad Environment,Garage & Fleet Strategy,Direct Transport Costs,Vehicles - Repairs And Maint,JA105,26/05/2016,412060,3660.3,REVENUE,FLEET FACTORS LTD,100886
North East Lincolnshire Council,http://statistics.data.gov.uk/id/local-authority/00FC),Deputy Chief Executive,Ad Environment,Garage & Fleet Strategy,Direct Transport Costs,Vehicles - Repairs And Maint,JA105,26/05/2016,412135,3160.28,REVENUE,FLEET FACTORS LTD,100886
North East Lincolnshire Council,http://statistics.data.gov.uk/id/local-authority/00FC),Deputy Chief Executive,Ad Environment,Garage & Fleet Strategy,Direct Transport Costs,Vehicles - Repairs And Maint,JA105,26/05/2016,412055,1002.81,REVENUE,FLEET FACTORS LTD,100886
North East Lincolnshire Council,http://statistics.data.gov.uk/id/local-authority/00FC),Deputy Chief Executive,Ad Environment,Garage & Fleet Strategy,Direct Transport Costs,Vehicles - Repairs And Maint,JA105,26/05/2016,412062,311.35,REVENUE,FLEET FACTORS LTD,100886
North East Lincolnshire Council,http://statistics.data.gov.uk/id/local-authority/00FC),Deputy Chief Executive,Ad Environment,Garage & Fleet Strategy,Equip / Furniture / Materials,Equipment - Maintenance,LA104,23/05/2016,410745,290.16,REVENUE,ENERGAS LIMITED,129000
North East Lincolnshire Council,http://statistics.data.gov.uk/id/local-authority/00FC),Deputy Chief Executive,Ad Environment,Garage & Fleet Strategy,Clothes Uniforms And Laundry,Laundry,LC103,17/05/2016,410030,352.36,REVENUE,JOHNSONS APPARELMASTER,100810
North East Lincolnshire Council,http://statistics.data.gov.uk/id/local-authority/00FC),Deputy Chief Executive,Ad Environment,Garage & Fleet Strategy,Grants And Subscriptions,Subscriptions,LJ101,16/05/2016,409846,260,REVENUE,FREIGHT TRANSPORT ASSOCIATION,101027
North East Lincolnshire Council,http://statistics.data.gov.uk/id/local-authority/00FC),Deputy Chief Executive,Ad Environment,Grounds And Street Cleansing,Direct Transport Costs,Vehicles - Repairs And Maint,JA105,10/05/2016,408554,652.97,REVENUE,VALE ENGINEERING (YORK) LTD,101700
North East Lincolnshire Council,http://statistics.data.gov.uk/id/local-authority/00FC),Deputy Chief Executive,Ad Environment,Grounds And Street Cleansing,Direct Transport Costs,Vehicles - Running Costs,JA104,12/05/2016,409407,703.36,REVENUE,ALLSTAR BUSINESS SOLUTIONS LTD,108278
North East Lincolnshire Council,http://statistics.data.gov.uk/id/local-authority/00FC),Deputy Chief Executive,Ad Environment,Grounds And Street Cleansing,Equip / Furniture / Materials,Equipment - Purchase,LA101,05/05/2016,407734,312,REVENUE,JACKSON BUILDING CENTRES LTD,100817
North East Lincolnshire Council,http://statistics.data.gov.uk/id/local-authority/00FC),Deputy Chief Executive,Ad Environment,Grounds And Street Cleansing,Equip / Furniture / Materials,Equipment - Purchase,LA101,10/05/2016,407960,560,REVENUE,SHERRIFF AMENITY SERVICES,101298
North East Lincolnshire Council,http://statistics.data.gov.uk/id/local-authority/00FC),Deputy Chief Executive,Ad Environment,Grounds And Street Cleansing,Equip / Furniture / Materials,Equipment - Purchase,LA101,12/05/2016,406747,372.56,REVENUE,BRIANPLANT (HUMBERSIDE) LTD,100583
North East Lincolnshire Council,http://statistics.data.gov.uk/id/local-authority/00FC),Deputy Chief Executive,Ad Environment,Grounds And Street Cleansing,Equip / Furniture / Materials,Equipment - Purchase,LA101,26/05/2016,408573,1250,REVENUE,AHS LTD,105516
North East Lincolnshire Council,http://statistics.data.gov.uk/id/local-authority/00FC),Deputy Chief Executive,Ad Environment,Grounds And Street Cleansing,Equip / Furniture / Materials,Equipment - Purchase,LA101,26/05/2016,411641,272,REVENUE,BRIANPLANT (HUMBERSIDE) LTD,100583
North East Lincolnshire Council,http://statistics.data.gov.uk/id/local-authority/00FC),Deputy Chief Executive,Ad Environment,Grounds And Street Cleansing,Communications And Computing,Telephones,LF112,10/05/2016,407993,324,REVENUE,RADPHONE LTD,101671
North East Lincolnshire Council,http://statistics.data.gov.uk/id/local-authority/00FC),Deputy Chief Executive,Ad Environment,Grounds And Street Cleansing,Communications And Computing,Telephones,LF112,26/05/2016,412040,324,REVENUE,RADPHONE LTD,101671
North East Lincolnshire Council,http://statistics.data.gov.uk/id/local-authority/00FC),Deputy Chief Executive,Ad Environment,Grounds And Street Cleansing,Miscellaneous Expenses,Environmental/Health Analysis,LL120,26/05/2016,410582,6608,REVENUE,LINCOLNSHIRE WILDLIFE TRUST,123513
North East Lincolnshire Council,http://statistics.data.gov.uk/id/local-authority/00FC),Deputy Chief Executive,Ad Environment,Grounds And Street Cleansing,Private Contractors,Third Party Prov - Private,PH101,26/05/2016,408789,4475,REVENUE,TOWN & COUNTRY GROUNDS,103976
North East Lincolnshire Council,http://statistics.data.gov.uk/id/local-authority/00FC),Deputy Chief Executive,Ad Environment,Grounds And Street Cleansing,Direct Transport Costs,Vehicles - Running Costs,JA104,12/05/2016,409407,296.78,REVENUE,ALLSTAR BUSINESS SOLUTIONS LTD,108278
North East Lincolnshire Council,http://statistics.data.gov.uk/id/local-authority/00FC),Deputy Chief Executive,Ad Environment,Grounds And Street Cleansing,Equip / Furniture / Materials,Equipment - Purchase,LA101,10/05/2016,407960,4792,REVENUE,SHERRIFF AMENITY SERVICES,101298
North East Lincolnshire Council,http://statistics.data.gov.uk/id/local-authority/00FC),Deputy Chief Executive,Ad Environment,Grounds And Street Cleansing,Equip / Furniture / Materials,Equipment - Purchase,LA101,19/05/2016,409414,473.54,REVENUE,NORTHERN MUNICIPAL SPARES LTD,103102
North East Lincolnshire Council,http://statistics.data.gov.uk/id/local-authority/00FC),Deputy Chief Executive,Ad Environment,Grounds And Street Cleansing,Equip / Furniture / Materials,Equipment - Purchase,LA101,19/05/2016,409413,1280.34,REVENUE,NORTHERN MUNICIPAL SPARES LTD,103102
North East Lincolnshire Council,http://statistics.data.gov.uk/id/local-authority/00FC),Deputy Chief Executive,Ad Environment,Grounds And Street Cleansing,Equip / Furniture / Materials,Equipment - Purchase,LA101,19/05/2016,409414,758.5,REVENUE,NORTHERN MUNICIPAL SPARES LTD,103102
North East Lincolnshire Council,http://statistics.data.gov.uk/id/local-authority/00FC),Deputy Chief Executive,Ad Environment,Grounds And Street Cleansing,Equip / Furniture / Materials,Equipment - Purchase,LA101,19/05/2016,409415,1590.4,REVENUE,NORTHERN MUNICIPAL SPARES LTD,103102
North East Lincolnshire Council,http://statistics.data.gov.uk/id/local-authority/00FC),Deputy Chief Executive,Ad Environment,Grounds And Street Cleansing,Equip / Furniture / Materials,Equipment - Purchase,LA101,19/05/2016,409414,266,REVENUE,NORTHERN MUNICIPAL SPARES LTD,103102
North East Lincolnshire Council,http://statistics.data.gov.uk/id/local-authority/00FC),Deputy Chief Executive,Ad Environment,Grounds And Street Cleansing,Communications And Computing,Telephones,LF112,10/05/2016,407993,264,REVENUE,RADPHONE LTD,101671
North East Lincolnshire Council,http://statistics.data.gov.uk/id/local-authority/00FC),Deputy Chief Executive,Ad Environment,Grounds And Street Cleansing,Communications And Computing,Telephones,LF112,26/05/2016,412040,264,REVENUE,RADPHONE LTD,101671
North East Lincolnshire Council,http://statistics.data.gov.uk/id/local-authority/00FC),Deputy Chief Executive,Ad Environment,Grounds And Street Cleansing,Miscellaneous Expenses,Licences,LL116,10/05/2016,407945,10070,REVENUE,ENVIRONMENT AGENCY,101076
North East Lincolnshire Council,http://statistics.data.gov.uk/id/local-authority/00FC),Deputy Chief Executive,Ad Environment,Grounds And Street Cleansing,Private Contractors,Third Party Prov - Private,PH101,09/05/2016,406452,320,REVENUE,COFELY WORKPLACE LIMITED,123983
North East Lincolnshire Council,http://statistics.data.gov.uk/id/local-authority/00FC),Deputy Chief Executive,Ad Environment,Grounds And Street Cleansing,Rep Alterations Maint Building,Buildings - Repairs And Maint,GA102,23/05/2016,409131,485,REVENUE,BCJ CONSTRUCTION LTD,112224
North East Lincolnshire Council,http://statistics.data.gov.uk/id/local-authority/00FC),Deputy Chief Executive,Ad Environment,Grounds And Street Cleansing,Rep Alterations Maint Building,Security Alarms And Cctv,GA101,10/05/2016,407944,412.5,REVENUE,CROWN ESTATE RE CARTER JONAS RENTAL AC,103817
North East Lincolnshire Council,http://statistics.data.gov.uk/id/local-authority/00FC),Deputy Chief Executive,Ad Environment,Grounds And Street Cleansing,Equip / Furniture / Materials,Equipment - Purchase,LA101,26/05/2016,409849,280.16,REVENUE,GLASDON UK LTD,100531
North East Lincolnshire Council,http://statistics.data.gov.uk/id/local-authority/00FC),Deputy Chief Executive,Ad Environment,Grounds And Street Cleansing,Rep Alterations Maint Building,Buildings - Repairs And Maint,GA102,23/05/2016,409130,720,REVENUE,BCJ CONSTRUCTION LTD,112224
North East Lincolnshire Council,http://statistics.data.gov.uk/id/local-authority/00FC),Deputy Chief Executive,Ad Environment,Neighbourhood Serv Mgmt A/C,Direct Employee Expenses,Agency Staff,EA105,05/05/2016,407959,16500,REVENUE,PENNA COMMUNICATIONS,102320
North East Lincolnshire Council,http://statistics.data.gov.uk/id/local-authority/00FC),Deputy Chief Executive,Ad Environment,Waste Services,Equip / Furniture / Materials,Equipment - Purchase,LA101,26/05/2016,410282,296.8,REVENUE,ARCO LTD,100509
North East Lincolnshire Council,http://statistics.data.gov.uk/id/local-authority/00FC),Deputy Chief Executive,Ad Environment,Waste Services,Clothes Uniforms And Laundry,Protective Clothing,LC101,19/05/2016,409411,1091.44,REVENUE,SORBUS INTERNATIONAL LTD,122947
North East Lincolnshire Council,http://statistics.data.gov.uk/id/local-authority/00FC),Deputy Chief Executive,Ad Environment,Waste Services,Communications And Computing,Computer S/Ware - Maintenance,LF102,09/05/2016,407044,4462.5,REVENUE,MAYRISE LIMITED,101670
North East Lincolnshire Council,http://statistics.data.gov.uk/id/local-authority/00FC),Deputy Chief Executive,Ad Environment,Waste Services,Private Contractors,Third Party Prov - Private,PH101,26/05/2016,408558,9436,REVENUE,MGB,101544
North East Lincolnshire Council,http://statistics.data.gov.uk/id/local-authority/00FC),Deputy Chief Executive,Ad Environment,Waste Services,Private Contractors,Third Party Prov - Private,PH101,16/05/2016,409866,2004.15,REVENUE,ALLPAY LIMITED,112919
North East Lincolnshire Council,http://statistics.data.gov.uk/id/local-authority/00FC),Deputy Chief Executive,Ad Environment,Waste Disposal And Strategy,Private Contractors,Contract Payments,PH105,16/05/2016,409956,REDACTED COMMERCIALLY SENSITIVE,REVENUE,NEWLINCS DEVELOPMENT LTD,101125
North East Lincolnshire Council,http://statistics.data.gov.uk/id/local-authority/00FC),Deputy Chief Executive,Ad Environment,Waste Disposal And Strategy,Private Contractors,Contract Payments,PH105,23/05/2016,411458,REDACTED COMMERCIALLY SENSITIVE,REVENUE,NEWLINCS DEVELOPMENT LTD,101125
North East Lincolnshire Council,http://statistics.data.gov.uk/id/local-authority/00FC),Deputy Chief Executive,Ad Environment,Waste Disposal And Strategy,Private Contractors,Contract Payments Landfill Tax,PH106,16/05/2016,409956,REDACTED COMMERCIALLY SENSITIVE,REVENUE,NEWLINCS DEVELOPMENT LTD,101125
North East Lincolnshire Council,http://statistics.data.gov.uk/id/local-authority/00FC),Deputy Chief Executive,Ad Environment,Waste Disposal And Strategy,Private Contractors,Contract Payments Landfill Tax,PH106,23/05/2016,411458,REDACTED COMMERCIALLY SENSITIVE,REVENUE,NEWLINCS DEVELOPMENT LTD,101125
North East Lincolnshire Council,http://statistics.data.gov.uk/id/local-authority/00FC),Deputy Chief Executive,Ad Environment,Community Protection,Private Contractors,Third Party Prov - Private,PH101,12/05/2016,409315,4380,REVENUE,SANGREAT KENNELS,103270
North East Lincolnshire Council,http://statistics.data.gov.uk/id/local-authority/00FC),Deputy Chief Executive,Ad Environment,Community Protection,Private Contractors,Third Party Prov - Private,PH101,19/05/2016,409925,640,REVENUE,EMPOWER EMPLOYABILITY MENTORING PROGRAMME,118831
North East Lincolnshire Council,http://statistics.data.gov.uk/id/local-authority/00FC),Deputy Chief Executive,Ad Environment,Community Protection,Rents,Rent,GC101,24/05/2016,411183,6793,REVENUE,ENGIE SERVICES LTD,133267
North East Lincolnshire Council,http://statistics.data.gov.uk/id/local-authority/00FC),Deputy Chief Executive,Ad Environment,Community Protection,Grants And Subscriptions,Subscriptions,LJ101,26/05/2016,412124,275,REVENUE,INSTITUTE OF LICENSING,108785
North East Lincolnshire Council,http://statistics.data.gov.uk/id/local-authority/00FC),Deputy Chief Executive,Ad Environment,Community Protection,Communications And Computing,Computer Consumables,LF109,12/05/2016,408712,637.5,REVENUE,DIAMOND PEOPLE LTD,104496
North East Lincolnshire Council,http://statistics.data.gov.uk/id/local-authority/00FC),Deputy Chief Executive,Ad Environment,Community Protection,Miscellaneous Expenses,Other Supplies & Services,LL110,09/05/2016,406017,309.5,REVENUE,INTELLIGENT DATA SYSTEMS (UK) LTD,128734
North East Lincolnshire Council,http://statistics.data.gov.uk/id/local-authority/00FC),Deputy Chief Executive,Ad Environment,Community Protection,Miscellaneous Expenses,Other Supplies & Services,LL110,23/05/2016,410564,351.5,REVENUE,INTELLIGENT DATA SYSTEMS (UK) LTD,128734
North East Lincolnshire Council,http://statistics.data.gov.uk/id/local-authority/00FC),Deputy Chief Executive,Ad Environment,Community Protection,Miscellaneous Expenses,Environmental/Health Analysis,LL120,31/05/2016,411894,2288.3,REVENUE,ALCONTROL LABORATORIES,100899
North East Lincolnshire Council,http://statistics.data.gov.uk/id/local-authority/00FC),Deputy Chief Executive,Ad Early Intervention,Integrated Youth Services,Miscellaneous Expenses,Activities - Service Users,LL114,09/05/2016,407775,650,REVENUE,BRITISH YOUTH COUNCIL,102822
North East Lincolnshire Council,http://statistics.data.gov.uk/id/local-authority/00FC),Deputy Chief Executive,Ad Early Intervention,Integrated Youth Services,Equip / Furniture / Materials,Equipment - Purchase,LA101,16/05/2016,409843,941.12,REVENUE,THE OUTDOORS COMPANY,132210
North East Lincolnshire Council,http://statistics.data.gov.uk/id/local-authority/00FC),Deputy Chief Executive,Ad Early Intervention,Integrated Youth Services,Grants And Subscriptions,Subscriptions,LJ101,12/05/2016,409107,1030,REVENUE,THE AWARD SCHEME LTD,109180
North East Lincolnshire Council,http://statistics.data.gov.uk/id/local-authority/00FC),Deputy Chief Executive,Ad Early Intervention,Integrated Youth Services,Indirect Employee Expenses,Staff Training,EB122,26/05/2016,411598,1700,REVENUE,G-MAP SERVICES,109932
North East Lincolnshire Council,http://statistics.data.gov.uk/id/local-authority/00FC),Deputy Chief Executive,Ad Early Intervention,Integrated Youth Services,Public Transport,Public Transport - Employees,JD101,03/05/2016,407419,615.55,REVENUE,YOUTH OFFENDING SERVICES,110694
North East Lincolnshire Council,http://statistics.data.gov.uk/id/local-authority/00FC),Deputy Chief Executive,Ad Early Intervention,Integrated Youth Services,Equip / Furniture / Materials,Equipment - Purchase,LA101,03/05/2016,407419,494.05,REVENUE,YOUTH OFFENDING SERVICES,110694
North East Lincolnshire Council,http://statistics.data.gov.uk/id/local-authority/00FC),Deputy Chief Executive,Ad Early Intervention,Integrated Youth Services,Miscellaneous Expenses,Activities - Service Users,LL114,17/05/2016,408678,600,REVENUE,FIRST MEDIA SOLUTIONS LTD,101489
North East Lincolnshire Council,http://statistics.data.gov.uk/id/local-authority/00FC),Deputy Chief Executive,Ad Early Intervention,Integrated Youth Services,Voluntary Associations,Third Pp - Third Sector,PF101,10/05/2016,409110,1561.85,REVENUE,VOLUNTARY ACTION NORTH EAST LINCOLNSHIRE,103631
North East Lincolnshire Council,http://statistics.data.gov.uk/id/local-authority/00FC),Deputy Chief Executive,Ad Early Intervention,Childrens Health,Cleaning And Domestic Supplies,Refuse Collection,GH104,05/05/2016,408256,293.14,REVENUE,OCS LIMITED,101291
North East Lincolnshire Council,http://statistics.data.gov.uk/id/local-authority/00FC),Deputy Chief Executive,Ad Early Intervention,Childrens Health,Private Contractors,Third Party Prov - Private,PH101,09/05/2016,407782,1157.1,REVENUE,JOANNE POOLE,132161
North East Lincolnshire Council,http://statistics.data.gov.uk/id/local-authority/00FC),Deputy Chief Executive,Ad Early Intervention,Childrens Health,Private Contractors,Third Party Prov - Private,PH101,31/05/2016,412218,1036.5,REVENUE,JOANNE POOLE,132161
North East Lincolnshire Council,http://statistics.data.gov.uk/id/local-authority/00FC),Deputy Chief Executive,Ad Early Intervention,Childrens Health,Private Contractors,Third Party Prov - Private,PH101,12/05/2016,409328,190194.83,REVENUE,LINCOLNSHIRE PARTNERSHIP NHS FOUNDATION TRUST,105021
North East Lincolnshire Council,http://statistics.data.gov.uk/id/local-authority/00FC),Deputy Chief Executive,Ad Early Intervention,Childrens Health,Other Agencies,Health Charges,PJ131,12/05/2016,409329,2227.5,REVENUE,LINCOLNSHIRE PARTNERSHIP NHS FOUNDATION TRUST,105021
North East Lincolnshire Council,http://statistics.data.gov.uk/id/local-authority/00FC),Deputy Chief Executive,Ad Early Intervention,Family Hubs,Rep Alterations Maint Building,Buildings - Repairs And Maint,GA102,19/05/2016,410366,354.9,REVENUE,ENGIE SERVICES LTD,133267
North East Lincolnshire Council,http://statistics.data.gov.uk/id/local-authority/00FC),Deputy Chief Executive,Ad Early Intervention,Family Hubs,Rep Alterations Maint Building,Buildings - Repairs And Maint,GA102,19/05/2016,410366,281.78,REVENUE,ENGIE SERVICES LTD,133267
North East Lincolnshire Council,http://statistics.data.gov.uk/id/local-authority/00FC),Deputy Chief Executive,Ad Early Intervention,Family Hubs,Rep Alterations Maint Building,Buildings - Repairs And Maint,GA102,19/05/2016,410442,966,REVENUE,ENGIE SERVICES LTD,133267
North East Lincolnshire Council,http://statistics.data.gov.uk/id/local-authority/00FC),Deputy Chief Executive,Ad Early Intervention,Family Hubs,Rep Alterations Maint Building,Buildings - Repairs And Maint,GA102,19/05/2016,410442,397.94,REVENUE,ENGIE SERVICES LTD,133267
North East Lincolnshire Council,http://statistics.data.gov.uk/id/local-authority/00FC),Deputy Chief Executive,Ad Early Intervention,Family Hubs,Private Contractors,Third Party Prov - Private,PH101,05/05/2016,403825,280,REVENUE,CENTRE4 LIMITED,126893
North East Lincolnshire Council,http://statistics.data.gov.uk/id/local-authority/00FC),Deputy Chief Executive,Ad Early Intervention,Family Hubs,Private Contractors,Third Party Prov - Private,PH101,05/05/2016,403824,295,REVENUE,CENTRE4 LIMITED,126893
North East Lincolnshire Council,http://statistics.data.gov.uk/id/local-authority/00FC),Deputy Chief Executive,Ad Early Intervention,Family Hubs,Cleaning And Domestic Supplies,Cleaning - Consumables,GH103,19/05/2016,409504,-1.61,REVENUE,PETER HOGARTH & SONS LTD,100815
North East Lincolnshire Council,http://statistics.data.gov.uk/id/local-authority/00FC),Deputy Chief Executive,Ad Early Intervention,Family Hubs,Cleaning And Domestic Supplies,Cleaning - Consumables,GH103,19/05/2016,409505,-60.94,REVENUE,PETER HOGARTH & SONS LTD,100815
North East Lincolnshire Council,http://statistics.data.gov.uk/id/local-authority/00FC),Deputy Chief Executive,Ad Early Intervention,Family Hubs,Rep Alterations Maint Building,Buildings - Repairs And Maint,GA102,19/05/2016,410439,612,REVENUE,ENGIE SERVICES LTD,133267
North East Lincolnshire Council,http://statistics.data.gov.uk/id/local-authority/00FC),Deputy Chief Executive,Ad Early Intervention,Family Hubs,Energy Costs,Electricity,GB102,10/05/2016,407846,299.97,REVENUE,EDWARD HENEAGE PRIMARY (ACADEMY),111742
North East Lincolnshire Council,http://statistics.data.gov.uk/id/local-authority/00FC),Deputy Chief Executive,Ad Early Intervention,Family Hubs,Energy Costs,Gas,GB101,05/05/2016,407884,251.38,REVENUE,BRITISH GAS TRADING LTD,101507
North East Lincolnshire Council,http://statistics.data.gov.uk/id/local-authority/00FC),Deputy Chief Executive,Ad Early Intervention,Family Hubs,Cleaning And Domestic Supplies,Cleaning - Services,GH102,23/05/2016,411170,648,REVENUE,FOR UNDER FIVES LTD,100647
North East Lincolnshire Council,http://statistics.data.gov.uk/id/local-authority/00FC),Deputy Chief Executive,Ad Early Intervention,Family Hubs,Cleaning And Domestic Supplies,Refuse Collection,GH104,12/05/2016,409318,464.62,REVENUE,BELL WASTE CONTROL,101433
North East Lincolnshire Council,http://statistics.data.gov.uk/id/local-authority/00FC),Deputy Chief Executive,Ad Early Intervention,Family Hubs,Rep Alterations Maint Building,Buildings - Repairs And Maint,GA102,19/05/2016,410456,252.09,REVENUE,ENGIE SERVICES LTD,133267
North East Lincolnshire Council,http://statistics.data.gov.uk/id/local-authority/00FC),Deputy Chief Executive,Ad Early Intervention,Family Hubs,Rep Alterations Maint Building,Buildings - Repairs And Maint,GA102,19/05/2016,410456,604.8,REVENUE,ENGIE SERVICES LTD,133267
North East Lincolnshire Council,http://statistics.data.gov.uk/id/local-authority/00FC),Deputy Chief Executive,Ad Early Intervention,Family Hubs,Rep Alterations Maint Building,Buildings - Repairs And Maint,GA102,19/05/2016,410365,695,REVENUE,ENGIE SERVICES LTD,133267
North East Lincolnshire Council,http://statistics.data.gov.uk/id/local-authority/00FC),Deputy Chief Executive,Ad Early Intervention,Family Hubs,Energy Costs,Electricity,GB102,05/05/2016,408214,518.37,REVENUE,WILLOWS PRIMARY ACADEMY,120478
North East Lincolnshire Council,http://statistics.data.gov.uk/id/local-authority/00FC),Deputy Chief Executive,Ad Early Intervention,Family Hubs,Rep Alterations Maint Building,Buildings - Repairs And Maint,GA102,19/05/2016,410443,1340,REVENUE,ENGIE SERVICES LTD,133267
North East Lincolnshire Council,http://statistics.data.gov.uk/id/local-authority/00FC),Deputy Chief Executive,Ad Early Intervention,Family Hubs,Rep Alterations Maint Building,Buildings - Repairs And Maint,GA102,19/05/2016,410443,550,REVENUE,ENGIE SERVICES LTD,133267
North East Lincolnshire Council,http://statistics.data.gov.uk/id/local-authority/00FC),Deputy Chief Executive,Ad Early Intervention,Family Hubs,Energy Costs,Electricity,GB102,09/05/2016,408295,415.63,REVENUE,YARBOROUGH ACADEMY,112852
North East Lincolnshire Council,http://statistics.data.gov.uk/id/local-authority/00FC),Deputy Chief Executive,Ad Early Intervention,Family Hubs,Rep Alterations Maint Building,Buildings - Repairs And Maint,GA102,05/05/2016,406468,2030.03,REVENUE,FAIRFIELD PRIMARY ACADEMY,129030
North East Lincolnshire Council,http://statistics.data.gov.uk/id/local-authority/00FC),Deputy Chief Executive,Ad Early Intervention,Family Hubs,Energy Costs,Electricity,GB102,10/05/2016,408019,735.93,REVENUE,REYNOLDS PRIMARY ACADEMY,122175
North East Lincolnshire Council,http://statistics.data.gov.uk/id/local-authority/00FC),Deputy Chief Executive,Ad Early Intervention,Family Hubs,Energy Costs,Gas,GB101,10/05/2016,408021,312.24,REVENUE,REYNOLDS PRIMARY ACADEMY,122175
North East Lincolnshire Council,http://statistics.data.gov.uk/id/local-authority/00FC),Deputy Chief Executive,Ad Early Intervention,Family Hubs,Premises Insurance,Premises Insurance - Premiums,GK101,09/05/2016,408298,427.35,REVENUE,TOLLBAR MULTI ACADEMY TRUST,122095
North East Lincolnshire Council,http://statistics.data.gov.uk/id/local-authority/00FC),Deputy Chief Executive,Ad Early Intervention,Family Hubs,Equip / Furniture / Materials,Equipment - Purchase,LA101,26/05/2016,411297,315,REVENUE,HARTSHOLME ACADEMY,125299
North East Lincolnshire Council,http://statistics.data.gov.uk/id/local-authority/00FC),Deputy Chief Executive,Ad Early Intervention,Family Hubs,Equip / Furniture / Materials,Furniture - Purchase,LA105,26/05/2016,411452,361,REVENUE,COMMUNITY PRODUCTS (UK) LTD,101007
North East Lincolnshire Council,http://statistics.data.gov.uk/id/local-authority/00FC),Deputy Chief Executive,Ad Early Intervention,Family Hubs,Catering,Provisions,LB101,31/05/2016,412693,257.25,REVENUE,REYNOLDS DAY CARE CNT,101704
North East Lincolnshire Council,http://statistics.data.gov.uk/id/local-authority/00FC),Deputy Chief Executive,Ad Early Intervention,Family Hubs,Other Agencies,Child Care Payments,PJ104,12/05/2016,409366,286.02,REVENUE,FOR UNDER FIVES,101931
North East Lincolnshire Council,http://statistics.data.gov.uk/id/local-authority/00FC),Deputy Chief Executive,Ad Early Intervention,Family Hubs,Other Agencies,Child Care Payments,PJ104,12/05/2016,409367,269.1,REVENUE,FOR UNDER FIVES,101931
North East Lincolnshire Council,http://statistics.data.gov.uk/id/local-authority/00FC),Deputy Chief Executive,Ad Early Intervention,Family Hubs,Other Agencies,Child Care Payments,PJ104,31/05/2016,411179,279.18,REVENUE,FOR UNDER FIVES,101931
North East Lincolnshire Council,http://statistics.data.gov.uk/id/local-authority/00FC),Deputy Chief Executive,Ad Early Intervention,Family Hubs,Equip / Furniture / Materials,Non-Teaching Resources,LA118,31/05/2016,412222,-80.8,REVENUE,EAST RIDING OF YORKSHIRE COUNCIL,100654
North East Lincolnshire Council,http://statistics.data.gov.uk/id/local-authority/00FC),Deputy Chief Executive,Ad Early Intervention,Family Hubs,Other Agencies,Child Care Payments,PJ104,23/05/2016,410332,554.67,REVENUE,IMMINGHAM DAY NURSERY,100998
North East Lincolnshire Council,http://statistics.data.gov.uk/id/local-authority/00FC),Deputy Chief Executive,Ad Early Intervention,Family Hubs,Water Services,Water,GE101,31/05/2016,411256,497.74,REVENUE,ANGLIAN WATER,100508
North East Lincolnshire Council,http://statistics.data.gov.uk/id/local-authority/00FC),Deputy Chief Executive,Ad Early Intervention,Community Learning Services,Public Transport,Public Transport - Serv User,JD102,05/05/2016,408222,630,REVENUE,STAGECOACH SERVICES,101404
North East Lincolnshire Council,http://statistics.data.gov.uk/id/local-authority/00FC),Deputy Chief Executive,Ad Early Intervention,Community Learning Services,Miscellaneous Expenses,Activities - Service Users,LL114,16/05/2016,410035,400,REVENUE,EMPOWER EMPLOYABILITY MENTORING PROGRAMME,118831
North East Lincolnshire Council,http://statistics.data.gov.uk/id/local-authority/00FC),Deputy Chief Executive,Ad Early Intervention,Community Learning Services,Miscellaneous Expenses,Exam Fees,LL115,10/05/2016,408735,922,REVENUE,NCFE-CACHE,103423
North East Lincolnshire Council,http://statistics.data.gov.uk/id/local-authority/00FC),Deputy Chief Executive,Ad Early Intervention,Community Learning Services,Miscellaneous Expenses,Exam Fees,LL115,03/05/2016,407995,1507.1,REVENUE,OCR,101048
North East Lincolnshire Council,http://statistics.data.gov.uk/id/local-authority/00FC),Deputy Chief Executive,Ad Early Intervention,Community Learning Services,Miscellaneous Expenses,Exam Fees,LL115,10/05/2016,408764,330,REVENUE,OCR,101048
North East Lincolnshire Council,http://statistics.data.gov.uk/id/local-authority/00FC),Deputy Chief Executive,Ad Early Intervention,Community Learning Services,Miscellaneous Expenses,Exam Fees,LL115,10/05/2016,408766,250,REVENUE,OCR,101048
North East Lincolnshire Council,http://statistics.data.gov.uk/id/local-authority/00FC),Deputy Chief Executive,Ad Early Intervention,Community Learning Services,Private Contractors,Third Party Prov - Private,PH101,05/05/2016,408191,17500,REVENUE,CENTRE4 LIMITED,126893
North East Lincolnshire Council,http://statistics.data.gov.uk/id/local-authority/00FC),Deputy Chief Executive,Ad Early Intervention,Community Learning Services,Rents,Rent,GC101,24/05/2016,411652,942,REVENUE,CENTRE4 LIMITED,126893
North East Lincolnshire Council,http://statistics.data.gov.uk/id/local-authority/00FC),Deputy Chief Executive,Ad Early Intervention,Community Learning Services,Private Contractors,Third Party Prov - Private,PH101,03/05/2016,407844,6000,REVENUE,CREATIVE COACHING CREATIVE CULTURES,132831
North East Lincolnshire Council,http://statistics.data.gov.uk/id/local-authority/00FC),Deputy Chief Executive,Ad Early Intervention,Community Learning Services,Private Contractors,Third Party Prov - Private,PH101,12/05/2016,409324,4500,REVENUE,CREATIVE COACHING CREATIVE CULTURES,132831
North East Lincolnshire Council,http://statistics.data.gov.uk/id/local-authority/00FC),Deputy Chief Executive,Ad Early Intervention,Integ Local Service Delivery,Other Agencies,Nursery Educ Fund - Standard,PJ139,10/05/2016,408792,647.64,REVENUE,LISLE MARSDEN CHILDCARE LIMITED,110493
North East Lincolnshire Council,http://statistics.data.gov.uk/id/local-authority/00FC),Deputy Chief Executive,Ad Early Intervention,Integ Local Service Delivery,Private Contractors,Third Party Prov - Private,PH101,05/05/2016,407042,326,REVENUE,LOCAL GOVERNMENT ASSOCIATION,101113
North East Lincolnshire Council,http://statistics.data.gov.uk/id/local-authority/00FC),Deputy Chief Executive,Ad Early Intervention,Child Protection / Safeguardin,Indirect Employee Expenses,Staff Training,EB122,10/05/2016,406684,525,REVENUE,DODS PARLIAMENTARY COMMUNICATIONS,101542
North East Lincolnshire Council,http://statistics.data.gov.uk/id/local-authority/00FC),Deputy Chief Executive,Ad Early Intervention,Child Protection / Safeguardin,Private Contractors,Contract Payments,PH105,16/05/2016,409871,6500,REVENUE,SIGNIS GROUP,133870
North East Lincolnshire Council,http://statistics.data.gov.uk/id/local-authority/00FC),Deputy Chief Executive,Ad Early Intervention,Child Protection / Safeguardin,Private Contractors,Third Party Prov - Private,PH101,16/05/2016,409870,714.72,REVENUE,SIMUL LTD,122141
North East Lincolnshire Council,http://statistics.data.gov.uk/id/local-authority/00FC),Deputy Chief Executive,Ad Early Intervention,Ad Early Intervention,Private Contractors,Third Party Prov - Private,PH101,10/05/2016,408637,42038.37,REVENUE,IMPOWER CONSULTING LIMITED,133446
North East Lincolnshire Council,http://statistics.data.gov.uk/id/local-authority/00FC),Deputy Chief Executive,Ad Early Intervention,Ad Early Intervention,Rents,Service Charge,GC102,09/05/2016,408684,2968.7,REVENUE,WEELSBY VIEW HEALTH CENTRE,101761
North East Lincolnshire Council,http://statistics.data.gov.uk/id/local-authority/00FC),Deputy Chief Executive,Ad Early Intervention,Palliative / Complex Care,Private Contractors,Third Party Prov - Private,PH101,09/05/2016,407805,728,REVENUE,THE ROWAN MANAGED ACCOUNT,127025
North East Lincolnshire Council,http://statistics.data.gov.uk/id/local-authority/00FC),Deputy Chief Executive,Ad Early Intervention,Palliative / Complex Care,Private Contractors,Third Party Prov - Private,PH101,24/05/2016,411394,1435.54,REVENUE,THORNBURY NURSING SERVICES,133994
North East Lincolnshire Council,http://statistics.data.gov.uk/id/local-authority/00FC),Deputy Chief Executive,Ad Early Intervention,Palliative / Complex Care,Private Contractors,Third Party Prov - Private,PH101,26/05/2016,411393,903.22,REVENUE,THORNBURY NURSING SERVICES,133994
North East Lincolnshire Council,http://statistics.data.gov.uk/id/local-authority/00FC),Deputy Chief Executive,Ad Early Intervention,Palliative / Complex Care,Private Contractors,Third Party Prov - Private,PH101,24/05/2016,411395,847.3,REVENUE,THORNBURY NURSING SERVICES,133994
North East Lincolnshire Council,http://statistics.data.gov.uk/id/local-authority/00FC),Deputy Chief Executive,Ad Early Intervention,Palliative / Complex Care,Private Contractors,Third Party Prov - Private,PH101,24/05/2016,411392,819.3,REVENUE,THORNBURY NURSING SERVICES,133994
North East Lincolnshire Council,http://statistics.data.gov.uk/id/local-authority/00FC),Deputy Chief Executive,Ad Early Intervention,Palliative / Complex Care,Private Contractors,Third Party Prov - Private,PH101,24/05/2016,411391,819.3,REVENUE,THORNBURY NURSING SERVICES,133994
North East Lincolnshire Council,http://statistics.data.gov.uk/id/local-authority/00FC),Deputy Chief Executive,Ad Early Intervention,Palliative / Complex Care,Private Contractors,Third Party Prov - Private,PH101,31/05/2016,412560,907.7,REVENUE,THORNBURY NURSING SERVICES,133994
North East Lincolnshire Council,http://statistics.data.gov.uk/id/local-authority/00FC),Deputy Chief Executive,Ad Early Intervention,Palliative / Complex Care,Private Contractors,Third Party Prov - Private,PH101,31/05/2016,412562,847.3,REVENUE,THORNBURY NURSING SERVICES,133994
North East Lincolnshire Council,http://statistics.data.gov.uk/id/local-authority/00FC),Deputy Chief Executive,Ad Early Intervention,Palliative / Complex Care,Private Contractors,Third Party Prov - Private,PH101,31/05/2016,412561,907.7,REVENUE,THORNBURY NURSING SERVICES,133994
North East Lincolnshire Council,http://statistics.data.gov.uk/id/local-authority/00FC),Deputy Chief Executive,Ad Early Intervention,Palliative / Complex Care,Private Contractors,Third Party Prov - Private,PH101,31/05/2016,412736,847.3,REVENUE,THORNBURY NURSING SERVICES,133994
North East Lincolnshire Council,http://statistics.data.gov.uk/id/local-authority/00FC),Deputy Chief Executive,Ad Early Intervention,Palliative / Complex Care,Private Contractors,Third Party Prov - Private,PH101,31/05/2016,412731,907.7,REVENUE,THORNBURY NURSING SERVICES,133994
North East Lincolnshire Council,http://statistics.data.gov.uk/id/local-authority/00FC),Deputy Chief Executive,Ad Early Intervention,Palliative / Complex Care,Private Contractors,Third Party Prov - Private,PH101,31/05/2016,412733,847.3,REVENUE,THORNBURY NURSING SERVICES,133994
North East Lincolnshire Council,http://statistics.data.gov.uk/id/local-authority/00FC),Deputy Chief Executive,Ad Early Intervention,Palliative / Complex Care,Private Contractors,Third Party Prov - Private,PH101,31/05/2016,412735,847.3,REVENUE,THORNBURY NURSING SERVICES,133994
North East Lincolnshire Council,http://statistics.data.gov.uk/id/local-authority/00FC),Deputy Chief Executive,Ad Early Intervention,Childrens Social Care Innov,Direct Employee Expenses,Agency Staff,EA105,16/05/2016,409841,1933.55,REVENUE,VOLUNTARY ACTION NORTH EAST LINCOLNSHIRE,103631
North East Lincolnshire Council,http://statistics.data.gov.uk/id/local-authority/00FC),Deputy Chief Executive,Ad Early Intervention,Childrens Social Care Innov,Equip / Furniture / Materials,Teaching Materials,LA117,05/05/2016,407824,1543.2,REVENUE,MARK FINNIS TRAINING & CONSULTANCY LTD,133739
North East Lincolnshire Council,http://statistics.data.gov.uk/id/local-authority/00FC),Deputy Chief Executive,Ad Early Intervention,Childrens Social Care Innov,Equip / Furniture / Materials,Teaching Materials,LA117,17/05/2016,409934,2960,REVENUE,PAUL CARLILE,119569
North East Lincolnshire Council,http://statistics.data.gov.uk/id/local-authority/00FC),Deputy Chief Executive,Ad Early Intervention,Childrens Social Care Innov,Equip / Furniture / Materials,Teaching Materials,LA117,23/05/2016,410606,4000,REVENUE,FOCUS 7 LTD,101046
North East Lincolnshire Council,http://statistics.data.gov.uk/id/local-authority/00FC),Deputy Chief Executive,Ad Early Intervention,Childrens Social Care Innov,Equip / Furniture / Materials,Teaching Materials,LA117,24/05/2016,411397,1680.5,REVENUE,DAVID BURNBY & ASSOCIATES,103325
North East Lincolnshire Council,http://statistics.data.gov.uk/id/local-authority/00FC),Deputy Chief Executive,Ad Early Intervention,Childrens Social Care Innov,Catering,Catering Costs,LB102,26/05/2016,411609,520.8,REVENUE,CENTRE4 LIMITED,126893
North East Lincolnshire Council,http://statistics.data.gov.uk/id/local-authority/00FC),Deputy Chief Executive,Ad Early Intervention,Childrens Social Care Innov,Private Contractors,Third Party Prov - Private,PH101,31/05/2016,412590,9100,REVENUE,YORK CONSULTING,131585
North East Lincolnshire Council,http://statistics.data.gov.uk/id/local-authority/00FC),Deputy Chief Executive,Ad Early Intervention,Childrens Social Care Innov,Consultancy,Consultancy,PL101,26/05/2016,411759,6000,REVENUE,ZEST THEATRE,134024
North East Lincolnshire Council,http://statistics.data.gov.uk/id/local-authority/00FC),Deputy Chief Executive,Ad Childrens Services,School Access Governor Student,Contract Hire-Operating Leases,Vehicles - Contract Hire,JC101,23/05/2016,411260,260,REVENUE,REVELLS TAXIS (ED/SOC SERV),100559
North East Lincolnshire Council,http://statistics.data.gov.uk/id/local-authority/00FC),Deputy Chief Executive,Ad Childrens Services,School Access Governor Student,Contract Hire-Operating Leases,Vehicles - Contract Hire,JC101,23/05/2016,411261,260,REVENUE,REVELLS TAXIS (ED/SOC SERV),100559
North East Lincolnshire Council,http://statistics.data.gov.uk/id/local-authority/00FC),Deputy Chief Executive,Ad Childrens Services,School Access Governor Student,Contract Hire-Operating Leases,Vehicles - Contract Hire,JC101,17/05/2016,409933,960,REVENUE,THE BUS RUN,101522
North East Lincolnshire Council,http://statistics.data.gov.uk/id/local-authority/00FC),Deputy Chief Executive,Ad Childrens Services,School Access Governor Student,Contract Hire-Operating Leases,Vehicles - Contract Hire,JC101,16/05/2016,409890,661.5,REVENUE,WHEELCHAIR FRIENDLY TAXI SERVICE,101915
North East Lincolnshire Council,http://statistics.data.gov.uk/id/local-authority/00FC),Deputy Chief Executive,Ad Childrens Services,School Access Governor Student,Contract Hire-Operating Leases,Vehicles - Contract Hire,JC101,19/05/2016,409901,732,REVENUE,AA RADIO CARS LTD,101222
North East Lincolnshire Council,http://statistics.data.gov.uk/id/local-authority/00FC),Deputy Chief Executive,Ad Childrens Services,School Access Governor Student,Contract Hire-Operating Leases,Vehicles - Contract Hire,JC101,17/05/2016,409935,810,REVENUE,COXONS CARS LIMITED,100578
North East Lincolnshire Council,http://statistics.data.gov.uk/id/local-authority/00FC),Deputy Chief Executive,Ad Childrens Services,School Access Governor Student,Contract Hire-Operating Leases,Vehicles - Contract Hire,JC101,31/05/2016,410683,484,REVENUE,LINKS TAXIS,100546
North East Lincolnshire Council,http://statistics.data.gov.uk/id/local-authority/00FC),Deputy Chief Executive,Ad Childrens Services,School Access Governor Student,Contract Hire-Operating Leases,Vehicles - Contract Hire,JC101,19/05/2016,409902,1290,REVENUE,AA RADIO CARS LTD,101222
North East Lincolnshire Council,http://statistics.data.gov.uk/id/local-authority/00FC),Deputy Chief Executive,Ad Childrens Services,School Access Governor Student,Contract Hire-Operating Leases,Vehicles - Contract Hire,JC101,26/05/2016,410682,855,REVENUE,LINKS TAXIS,100546
North East Lincolnshire Council,http://statistics.data.gov.uk/id/local-authority/00FC),Deputy Chief Executive,Ad Childrens Services,School Access Governor Student,Contract Hire-Operating Leases,Vehicles - Contract Hire,JC101,19/05/2016,410588,590,REVENUE,LINKS TAXIS,100546
North East Lincolnshire Council,http://statistics.data.gov.uk/id/local-authority/00FC),Deputy Chief Executive,Ad Childrens Services,School Access Governor Student,Contract Hire-Operating Leases,Vehicles - Contract Hire,JC101,31/05/2016,410684,544,REVENUE,LINKS TAXIS,100546
North East Lincolnshire Council,http://statistics.data.gov.uk/id/local-authority/00FC),Deputy Chief Executive,Ad Childrens Services,School Access Governor Student,Contract Hire-Operating Leases,Vehicles - Contract Hire,JC101,19/05/2016,410589,552,REVENUE,LINKS TAXIS,100546
North East Lincolnshire Council,http://statistics.data.gov.uk/id/local-authority/00FC),Deputy Chief Executive,Ad Childrens Services,School Access Governor Student,Contract Hire-Operating Leases,Vehicles - Contract Hire,JC101,19/05/2016,410581,1035,REVENUE,LINKS TAXIS,100546
North East Lincolnshire Council,http://statistics.data.gov.uk/id/local-authority/00FC),Deputy Chief Executive,Ad Childrens Services,School Access Governor Student,Contract Hire-Operating Leases,Vehicles - Contract Hire,JC101,26/05/2016,410680,870,REVENUE,LINKS TAXIS,100546
North East Lincolnshire Council,http://statistics.data.gov.uk/id/local-authority/00FC),Deputy Chief Executive,Ad Childrens Services,School Access Governor Student,Contract Hire-Operating Leases,Vehicles - Contract Hire,JC101,23/05/2016,410711,1050,REVENUE,LINKS TAXIS,100546
North East Lincolnshire Council,http://statistics.data.gov.uk/id/local-authority/00FC),Deputy Chief Executive,Ad Childrens Services,School Access Governor Student,Contract Hire-Operating Leases,Vehicles - Contract Hire,JC101,31/05/2016,410690,425.5,REVENUE,LINKS TAXIS,100546
North East Lincolnshire Council,http://statistics.data.gov.uk/id/local-authority/00FC),Deputy Chief Executive,Ad Childrens Services,School Access Governor Student,Contract Hire-Operating Leases,Vehicles - Contract Hire,JC101,26/05/2016,410676,720,REVENUE,LINKS TAXIS,100546
North East Lincolnshire Council,http://statistics.data.gov.uk/id/local-authority/00FC),Deputy Chief Executive,Ad Childrens Services,School Access Governor Student,Contract Hire-Operating Leases,Vehicles - Contract Hire,JC101,24/05/2016,411347,1687.5,REVENUE,AMVALE MEDICAL TRANSPORT LTD,130777
North East Lincolnshire Council,http://statistics.data.gov.uk/id/local-authority/00FC),Deputy Chief Executive,Ad Childrens Services,School Access Governor Student,Contract Hire-Operating Leases,Vehicles - Contract Hire,JC101,23/05/2016,409951,980,REVENUE,BEST FUTURES COMMUNITY INTEREST COMPANY,128600
North East Lincolnshire Council,http://statistics.data.gov.uk/id/local-authority/00FC),Deputy Chief Executive,Ad Childrens Services,School Access Governor Student,Contract Hire-Operating Leases,Vehicles - Contract Hire,JC101,19/05/2016,409906,826,REVENUE,AA RADIO CARS LTD,101222
North East Lincolnshire Council,http://statistics.data.gov.uk/id/local-authority/00FC),Deputy Chief Executive,Ad Childrens Services,School Access Governor Student,Contract Hire-Operating Leases,Vehicles - Contract Hire,JC101,19/05/2016,410584,885,REVENUE,LINKS TAXIS,100546
North East Lincolnshire Council,http://statistics.data.gov.uk/id/local-authority/00FC),Deputy Chief Executive,Ad Childrens Services,School Access Governor Student,Contract Hire-Operating Leases,Vehicles - Contract Hire,JC101,16/05/2016,409892,728,REVENUE,MINICABS CLEETHORPES (LINCS) LTD,102124
North East Lincolnshire Council,http://statistics.data.gov.uk/id/local-authority/00FC),Deputy Chief Executive,Ad Childrens Services,School Access Governor Student,Contract Hire-Operating Leases,Vehicles - Contract Hire,JC101,19/05/2016,409896,273,REVENUE,AA RADIO CARS LTD,101222
North East Lincolnshire Council,http://statistics.data.gov.uk/id/local-authority/00FC),Deputy Chief Executive,Ad Childrens Services,School Access Governor Student,Contract Hire-Operating Leases,Vehicles - Contract Hire,JC101,17/05/2016,410037,836,REVENUE,COXONS CARS LIMITED,100578
North East Lincolnshire Council,http://statistics.data.gov.uk/id/local-authority/00FC),Deputy Chief Executive,Ad Childrens Services,School Access Governor Student,Contract Hire-Operating Leases,Vehicles - Contract Hire,JC101,26/05/2016,410699,518,REVENUE,LINKS TAXIS,100546
North East Lincolnshire Council,http://statistics.data.gov.uk/id/local-authority/00FC),Deputy Chief Executive,Ad Childrens Services,School Access Governor Student,Contract Hire-Operating Leases,Vehicles - Contract Hire,JC101,31/05/2016,410677,330,REVENUE,LINKS TAXIS,100546
North East Lincolnshire Council,http://statistics.data.gov.uk/id/local-authority/00FC),Deputy Chief Executive,Ad Childrens Services,School Access Governor Student,Contract Hire-Operating Leases,Vehicles - Contract Hire,JC101,23/05/2016,410687,540,REVENUE,LINKS TAXIS,100546
North East Lincolnshire Council,http://statistics.data.gov.uk/id/local-authority/00FC),Deputy Chief Executive,Ad Childrens Services,School Access Governor Student,Contract Hire-Operating Leases,Vehicles - Contract Hire,JC101,26/05/2016,410665,490,REVENUE,LINKS TAXIS,100546
North East Lincolnshire Council,http://statistics.data.gov.uk/id/local-authority/00FC),Deputy Chief Executive,Ad Childrens Services,School Access Governor Student,Contract Hire-Operating Leases,Vehicles - Contract Hire,JC101,19/05/2016,410586,416,REVENUE,LINKS TAXIS,100546
North East Lincolnshire Council,http://statistics.data.gov.uk/id/local-authority/00FC),Deputy Chief Executive,Ad Childrens Services,School Access Governor Student,Contract Hire-Operating Leases,Vehicles - Contract Hire,JC101,31/05/2016,410703,390,REVENUE,LINKS TAXIS,100546
North East Lincolnshire Council,http://statistics.data.gov.uk/id/local-authority/00FC),Deputy Chief Executive,Ad Childrens Services,School Access Governor Student,Contract Hire-Operating Leases,Vehicles - Contract Hire,JC101,24/05/2016,411401,690,REVENUE,BEST FUTURES COMMUNITY INTEREST COMPANY,128600
North East Lincolnshire Council,http://statistics.data.gov.uk/id/local-authority/00FC),Deputy Chief Executive,Ad Childrens Services,School Access Governor Student,Contract Hire-Operating Leases,Vehicles - Contract Hire,JC101,26/05/2016,411337,1666,REVENUE,AMVALE MEDICAL TRANSPORT LTD,130777
North East Lincolnshire Council,http://statistics.data.gov.uk/id/local-authority/00FC),Deputy Chief Executive,Ad Childrens Services,School Access Governor Student,Contract Hire-Operating Leases,Vehicles - Contract Hire,JC101,26/05/2016,411335,1638,REVENUE,AMVALE MEDICAL TRANSPORT LTD,130777
North East Lincolnshire Council,http://statistics.data.gov.uk/id/local-authority/00FC),Deputy Chief Executive,Ad Childrens Services,School Access Governor Student,Contract Hire-Operating Leases,Vehicles - Contract Hire,JC101,19/05/2016,409900,2450,REVENUE,AMVALE LIMITED,101030
North East Lincolnshire Council,http://statistics.data.gov.uk/id/local-authority/00FC),Deputy Chief Executive,Ad Childrens Services,School Access Governor Student,Contract Hire-Operating Leases,Vehicles - Contract Hire,JC101,17/05/2016,410041,308,REVENUE,COXONS CARS LIMITED,100578
North East Lincolnshire Council,http://statistics.data.gov.uk/id/local-authority/00FC),Deputy Chief Executive,Ad Childrens Services,School Access Governor Student,Contract Hire-Operating Leases,Vehicles - Contract Hire,JC101,31/05/2016,410696,728,REVENUE,LINKS TAXIS,100546
North East Lincolnshire Council,http://statistics.data.gov.uk/id/local-authority/00FC),Deputy Chief Executive,Ad Childrens Services,School Access Governor Student,Contract Hire-Operating Leases,Vehicles - Contract Hire,JC101,19/05/2016,409842,743.75,REVENUE,GRIMSBY MINIBUSES LTD,121524
